Workbook

Sheet D15
B1: SERVICIO DE SALUD
B2: =CONCATENATE("COMUNA: ",[1]NOMBRE!$B$2," ","( ",[1]NOMBRE!$C$2,[1]NOMBRE!$D$2,[1]NOMBRE!$E$2,[1]NOMBRE!$F$2,[1]NOMBRE!$G$2," )") -> COMUNA: 0 ( 00000 )
B3: =CONCATENATE("ESTABLECIMIENTO/ESTRATEGIA: ",[1]NOMBRE!$B$3," ","( ",[1]NOMBRE!$C$3,[1]NOMBRE!$D$3,[1]NOMBRE!$E$3,[1]NOMBRE!$F$3,[1]NOMBRE!$G$3,[1]NOMBRE!$H$3," )") -> ESTABLECIMIENTO/ESTRATEGIA: 0 ( 000000 )
B4: =CONCATENATE("MES: ",[1]NOMBRE!$B$6," ","( ",[1]NOMBRE!$C$6,[1]NOMBRE!$D$6," )") -> MES: 0 ( 00 )
B5: =CONCATENATE("AÑO: ",[1]NOMBRE!$B$7) -> AÑO: 2024
B7: REM-D.15 - Programa Nacional de Alimentación Complementaria (PNAC)
B8: Sección A: PNAC - Cantidad distribuida (kg) a personas intrasistema
B9: Subprogramas | C9: Productos | D9: Total | E9: Menores a 6 años | L9: Gestantes | N9: Persona que amamanta a hijo/a menor a 12 meses
E10: 0 - 2 meses | F10: 3 - 5 meses | G10: 6 - 11 meses | H10: 12 - 17 meses | I10: 18 - 23 meses | J10: 24 - 47 meses | K10: 48 - 71 meses | L10: Normal, sobrepeso y obesas | M10: Bajo peso | N10: 0 a 5 meses con Lactancia Materna exclusiva | O10: 0 a 5 meses Lactancia Materna + Fórmula Láctea | P10: 6 a 11 meses Lactancia Materna
A13: 15010100 | B13: Básico | C13: Leche Purita Fortificada (LPF) | D13: =IFERROR(VLOOKUP($A13,Filtro_12!$A$5:$P$51,2,FALSE),0) -> 0 | E13: =IFERROR(VLOOKUP($A13,Filtro_12!$A$5:$P$51,3,FALSE),0) -> 0 | F13: =IFERROR(VLOOKUP($A13,Filtro_12!$A$5:$P$51,4,FALSE),0) -> 0 | G13: =IFERROR(VLOOKUP($A13,Filtro_12!$A$5:$P$51,5,FALSE),0) -> 0 | H13: =IFERROR(VLOOKUP($A13,Filtro_12!$A$5:$P$51,6,FALSE),0) -> 0 | I13: =IFERROR(VLOOKUP($A13,Filtro_12!$A$5:$P$51,7,FALSE),0) -> 0 | J13: =IFERROR(VLOOKUP($A13,Filtro_12!$A$5:$P$51,8,FALSE),0) -> 0 | K13: =IFERROR(VLOOKUP($A13,Filtro_12!$A$5:$P$51,9,FALSE),0) -> 0 | L13: =IFERROR(VLOOKUP($A13,Filtro_12!$A$5:$P$51,10,FALSE),0) -> 0 | M13: =IFERROR(VLOOKUP($A13,Filtro_12!$A$5:$P$51,11,FALSE),0) -> 0 | N13: =IFERROR(VLOOKUP($A13,Filtro_12!$A$5:$P$51,12,FALSE),0) -> 0 | O13: =IFERROR(VLOOKUP($A13,Filtro_12!$A$5:$P$51,13,FALSE),0) -> 0 | P13: =IFERROR(VLOOKUP($A13,Filtro_12!$A$5:$P$51,14,FALSE),0) -> 0
A14: 15080014 | C14: Purita +Pro 1 | D14: =IFERROR(VLOOKUP($A14,Filtro_12!$A$5:$P$51,2,FALSE),0) -> 99,764 | E14: =IFERROR(VLOOKUP($A14,Filtro_12!$A$5:$P$51,3,FALSE),0) -> 0 | F14: =IFERROR(VLOOKUP($A14,Filtro_12!$A$5:$P$51,4,FALSE),0) -> 0 | G14: =IFERROR(VLOOKUP($A14,Filtro_12!$A$5:$P$51,5,FALSE),0) -> 0 | H14: =IFERROR(VLOOKUP($A14,Filtro_12!$A$5:$P$51,6,FALSE),0) -> 49,544 | I14: =IFERROR(VLOOKUP($A14,Filtro_12!$A$5:$P$51,7,FALSE),0) -> 50,220 | J14: =IFERROR(VLOOKUP($A14,Filtro_12!$A$5:$P$51,8,FALSE),0) -> 0 | K14: =IFERROR(VLOOKUP($A14,Filtro_12!$A$5:$P$51,9,FALSE),0) -> 0 | L14: =IFERROR(VLOOKUP($A14,Filtro_12!$A$5:$P$51,10,FALSE),0) -> 0 | M14: =IFERROR(VLOOKUP($A14,Filtro_12!$A$5:$P$51,11,FALSE),0) -> 0 | N14: =IFERROR(VLOOKUP($A14,Filtro_12!$A$5:$P$51,12,FALSE),0) -> 0 | O14: =IFERROR(VLOOKUP($A14,Filtro_12!$A$5:$P$51,13,FALSE),0) -> 0 | P14: =IFERROR(VLOOKUP($A14,Filtro_12!$A$5:$P$51,14,FALSE),0) -> 0
A15: 15010200 | C15: Purita Cereal (PC) | D15: =IFERROR(VLOOKUP($A15,Filtro_12!$A$5:$P$51,2,FALSE),0) -> 0 | E15: =IFERROR(VLOOKUP($A15,Filtro_12!$A$5:$P$51,3,FALSE),0) -> 0 | F15: =IFERROR(VLOOKUP($A15,Filtro_12!$A$5:$P$51,4,FALSE),0) -> 0 | G15: =IFERROR(VLOOKUP($A15,Filtro_12!$A$5:$P$51,5,FALSE),0) -> 0 | H15: =IFERROR(VLOOKUP($A15,Filtro_12!$A$5:$P$51,6,FALSE),0) -> 0 | I15: =IFERROR(VLOOKUP($A15,Filtro_12!$A$5:$P$51,7,FALSE),0) -> 0 | J15: =IFERROR(VLOOKUP($A15,Filtro_12!$A$5:$P$51,8,FALSE),0) -> 0 | K15: =IFERROR(VLOOKUP($A15,Filtro_12!$A$5:$P$51,9,FALSE),0) -> 0 | L15: =IFERROR(VLOOKUP($A15,Filtro_12!$A$5:$P$51,10,FALSE),0) -> 0 | M15: =IFERROR(VLOOKUP($A15,Filtro_12!$A$5:$P$51,11,FALSE),0) -> 0 | N15: =IFERROR(VLOOKUP($A15,Filtro_12!$A$5:$P$51,12,FALSE),0) -> 0 | O15: =IFERROR(VLOOKUP($A15,Filtro_12!$A$5:$P$51,13,FALSE),0) -> 0 | P15: =IFERROR(VLOOKUP($A15,Filtro_12!$A$5:$P$51,14,FALSE),0) -> 0
A16: 15080015 | C16: Purita +Pro 2 | D16: =IFERROR(VLOOKUP($A16,Filtro_12!$A$5:$P$51,2,FALSE),0) -> 164,158 | E16: =IFERROR(VLOOKUP($A16,Filtro_12!$A$5:$P$51,3,FALSE),0) -> 0 | F16: =IFERROR(VLOOKUP($A16,Filtro_12!$A$5:$P$51,4,FALSE),0) -> 0 | G16: =IFERROR(VLOOKUP($A16,Filtro_12!$A$5:$P$51,5,FALSE),0) -> 0 | H16: =IFERROR(VLOOKUP($A16,Filtro_12!$A$5:$P$51,6,FALSE),0) -> 0 | I16: =IFERROR(VLOOKUP($A16,Filtro_12!$A$5:$P$51,7,FALSE),0) -> 0 | J16: =IFERROR(VLOOKUP($A16,Filtro_12!$A$5:$P$51,8,FALSE),0) -> 90,506 | K16: =IFERROR(VLOOKUP($A16,Filtro_12!$A$5:$P$51,9,FALSE),0) -> 73,031 | L16: =IFERROR(VLOOKUP($A16,Filtro_12!$A$5:$P$51,10,FALSE),0) -> 673 | M16: =IFERROR(VLOOKUP($A16,Filtro_12!$A$5:$P$51,11,FALSE),0) -> 0 | N16: =IFERROR(VLOOKUP($A16,Filtro_12!$A$5:$P$51,12,FALSE),0) -> 250 | O16: =IFERROR(VLOOKUP($A16,Filtro_12!$A$5:$P$51,13,FALSE),0) -> 25 | P16: =IFERROR(VLOOKUP($A16,Filtro_12!$A$5:$P$51,14,FALSE),0) -> 33
A17: 15080008 | C17: Purita Mamá (PM) | D17: =IFERROR(VLOOKUP($A17,Filtro_12!$A$5:$P$51,2,FALSE),0) -> 43,721 | E17: =IFERROR(VLOOKUP($A17,Filtro_12!$A$5:$P$51,3,FALSE),0) -> 0 | F17: =IFERROR(VLOOKUP($A17,Filtro_12!$A$5:$P$51,4,FALSE),0) -> 0 | G17: =IFERROR(VLOOKUP($A17,Filtro_12!$A$5:$P$51,5,FALSE),0) -> 0 | H17: =IFERROR(VLOOKUP($A17,Filtro_12!$A$5:$P$51,6,FALSE),0) -> 0 | I17: =IFERROR(VLOOKUP($A17,Filtro_12!$A$5:$P$51,7,FALSE),0) -> 0 | J17: =IFERROR(VLOOKUP($A17,Filtro_12!$A$5:$P$51,8,FALSE),0) -> 0 | K17: =IFERROR(VLOOKUP($A17,Filtro_12!$A$5:$P$51,9,FALSE),0) -> 0 | L17: =IFERROR(VLOOKUP($A17,Filtro_12!$A$5:$P$51,10,FALSE),0) -> 21,208 | M17: =IFERROR(VLOOKUP($A17,Filtro_12!$A$5:$P$51,11,FALSE),0) -> 0 | N17: =IFERROR(VLOOKUP($A17,Filtro_12!$A$5:$P$51,12,FALSE),0) -> 12,431 | O17: =IFERROR(VLOOKUP($A17,Filtro_12!$A$5:$P$51,13,FALSE),0) -> 3,407 | P17: =IFERROR(VLOOKUP($A17,Filtro_12!$A$5:$P$51,14,FALSE),0) -> 6,675 | Q17: =$AB17&$AC17&$AD17&$AE17 ->  | AB17: =IF(AND(OR(L13<>0,L14<>0,L17<>0),N42=""),"* No olvide ingresar el Nº de personas que retiran alimento de la sección B en el grupo de Gestantes Normal, Sobrepeso y Obesas.","") ->  | AC17: =IF(AND(SUM(N13,N14,N17)<>0,P42=""),"* No olvide ingresar el Nº de personas que retiran alimento de la sección B en el grupo de Madre con hijo/a menor a 6 meses con Lactancia materna exclusiva.","") ->  | AD17: =IF(AND(SUM(O13,O14,O17)<>0,Q42=""),"* No olvide ingresar el Nº de personas que retiran alimento de la sección D en el grupo de Madre con hijo/a menor a 6 meses con Lactancia materna predominante.","") ->  | AE17: =IF(AND(SUM(P13,P14,P17)<>0,R42=""),"* No olvide ingresar el Nº de personas que retiran alimento de la sección B en el grupo de Madre con hijo/a menor a 6 meses con Formula predominantes o exclusiva.","") -> 
A18: 15900010 | C18: Fórmula de Inicio (FI) | D18: =IFERROR(VLOOKUP($A18,Filtro_12!$A$5:$P$51,2,FALSE),0) -> 66,462 | E18: =IFERROR(VLOOKUP($A18,Filtro_12!$A$5:$P$51,3,FALSE),0) -> 5,777 | F18: =IFERROR(VLOOKUP($A18,Filtro_12!$A$5:$P$51,4,FALSE),0) -> 15,051 | G18: =IFERROR(VLOOKUP($A18,Filtro_12!$A$5:$P$51,5,FALSE),0) -> 45,633 | H18: =IFERROR(VLOOKUP($A18,Filtro_12!$A$5:$P$51,6,FALSE),0) -> 0 | I18: =IFERROR(VLOOKUP($A18,Filtro_12!$A$5:$P$51,7,FALSE),0) -> 0 | J18: =IFERROR(VLOOKUP($A18,Filtro_12!$A$5:$P$51,8,FALSE),0) -> 0 | K18: =IFERROR(VLOOKUP($A18,Filtro_12!$A$5:$P$51,9,FALSE),0) -> 0 | L18: =IFERROR(VLOOKUP($A18,Filtro_12!$A$5:$P$51,10,FALSE),0) -> 0 | M18: =IFERROR(VLOOKUP($A18,Filtro_12!$A$5:$P$51,11,FALSE),0) -> 0 | N18: =IFERROR(VLOOKUP($A18,Filtro_12!$A$5:$P$51,12,FALSE),0) -> 0 | O18: =IFERROR(VLOOKUP($A18,Filtro_12!$A$5:$P$51,13,FALSE),0) -> 0 | P18: =IFERROR(VLOOKUP($A18,Filtro_12!$A$5:$P$51,14,FALSE),0) -> 0
C19: Subtotal | D19: =SUM(E19:P19) -> 374,464 | E19: =SUM(E18) -> 5,777 | F19: =SUM(F18) -> 15,051 | G19: =SUM(G18) -> 45,633 | H19: =SUM(H14) -> 49,544 | I19: =SUM(I14) -> 50,220 | J19: =SUM(J16) -> 90,506 | K19: =SUM(K16) -> 73,031 | L19: =SUM(L16:L17) -> 21,881 | N19: =SUM(N16:N17) -> 12,681 | O19: =SUM(O16:O17) -> 3,432 | P19: =SUM(P16:P17) -> 6,708
A20: 15010300 | B20: Refuerzo | C20: Leche Purita Fortificada (LPF) | D20: =IFERROR(VLOOKUP($A20,Filtro_12!$A$5:$P$51,2,FALSE),0) -> 0 | E20: =IFERROR(VLOOKUP($A20,Filtro_12!$A$5:$P$51,3,FALSE),0) -> 0 | F20: =IFERROR(VLOOKUP($A20,Filtro_12!$A$5:$P$51,4,FALSE),0) -> 0 | G20: =IFERROR(VLOOKUP($A20,Filtro_12!$A$5:$P$51,5,FALSE),0) -> 0 | H20: =IFERROR(VLOOKUP($A20,Filtro_12!$A$5:$P$51,6,FALSE),0) -> 0 | I20: =IFERROR(VLOOKUP($A20,Filtro_12!$A$5:$P$51,7,FALSE),0) -> 0 | J20: =IFERROR(VLOOKUP($A20,Filtro_12!$A$5:$P$51,8,FALSE),0) -> 0 | K20: =IFERROR(VLOOKUP($A20,Filtro_12!$A$5:$P$51,9,FALSE),0) -> 0 | L20: =IFERROR(VLOOKUP($A20,Filtro_12!$A$5:$P$51,10,FALSE),0) -> 0 | M20: =IFERROR(VLOOKUP($A20,Filtro_12!$A$5:$P$51,11,FALSE),0) -> 0 | N20: =IFERROR(VLOOKUP($A20,Filtro_12!$A$5:$P$51,12,FALSE),0) -> 0 | O20: =IFERROR(VLOOKUP($A20,Filtro_12!$A$5:$P$51,13,FALSE),0) -> 0 | P20: =IFERROR(VLOOKUP($A20,Filtro_12!$A$5:$P$51,14,FALSE),0) -> 0
A21: 15080016 | C21: Purita +Pro 1 | D21: =IFERROR(VLOOKUP($A21,Filtro_12!$A$5:$P$51,2,FALSE),0) -> 6,378 | E21: =IFERROR(VLOOKUP($A21,Filtro_12!$A$5:$P$51,3,FALSE),0) -> 0 | F21: =IFERROR(VLOOKUP($A21,Filtro_12!$A$5:$P$51,4,FALSE),0) -> 0 | G21: =IFERROR(VLOOKUP($A21,Filtro_12!$A$5:$P$51,5,FALSE),0) -> 0 | H21: =IFERROR(VLOOKUP($A21,Filtro_12!$A$5:$P$51,6,FALSE),0) -> 898 | I21: =IFERROR(VLOOKUP($A21,Filtro_12!$A$5:$P$51,7,FALSE),0) -> 800 | J21: =IFERROR(VLOOKUP($A21,Filtro_12!$A$5:$P$51,8,FALSE),0) -> 2,876 | K21: =IFERROR(VLOOKUP($A21,Filtro_12!$A$5:$P$51,9,FALSE),0) -> 1,804 | L21: =IFERROR(VLOOKUP($A21,Filtro_12!$A$5:$P$51,10,FALSE),0) -> 0 | M21: =IFERROR(VLOOKUP($A21,Filtro_12!$A$5:$P$51,11,FALSE),0) -> 0 | N21: =IFERROR(VLOOKUP($A21,Filtro_12!$A$5:$P$51,12,FALSE),0) -> 0 | O21: =IFERROR(VLOOKUP($A21,Filtro_12!$A$5:$P$51,13,FALSE),0) -> 0 | P21: =IFERROR(VLOOKUP($A21,Filtro_12!$A$5:$P$51,14,FALSE),0) -> 0
A22: 15010400 | C22: Purita Cereal (PC) | D22: =IFERROR(VLOOKUP($A22,Filtro_12!$A$5:$P$51,2,FALSE),0) -> 0 | E22: =IFERROR(VLOOKUP($A22,Filtro_12!$A$5:$P$51,3,FALSE),0) -> 0 | F22: =IFERROR(VLOOKUP($A22,Filtro_12!$A$5:$P$51,4,FALSE),0) -> 0 | G22: =IFERROR(VLOOKUP($A22,Filtro_12!$A$5:$P$51,5,FALSE),0) -> 0 | H22: =IFERROR(VLOOKUP($A22,Filtro_12!$A$5:$P$51,6,FALSE),0) -> 0 | I22: =IFERROR(VLOOKUP($A22,Filtro_12!$A$5:$P$51,7,FALSE),0) -> 0 | J22: =IFERROR(VLOOKUP($A22,Filtro_12!$A$5:$P$51,8,FALSE),0) -> 0 | K22: =IFERROR(VLOOKUP($A22,Filtro_12!$A$5:$P$51,9,FALSE),0) -> 0 | L22: =IFERROR(VLOOKUP($A22,Filtro_12!$A$5:$P$51,10,FALSE),0) -> 0 | M22: =IFERROR(VLOOKUP($A22,Filtro_12!$A$5:$P$51,11,FALSE),0) -> 0 | N22: =IFERROR(VLOOKUP($A22,Filtro_12!$A$5:$P$51,12,FALSE),0) -> 0 | O22: =IFERROR(VLOOKUP($A22,Filtro_12!$A$5:$P$51,13,FALSE),0) -> 0 | P22: =IFERROR(VLOOKUP($A22,Filtro_12!$A$5:$P$51,14,FALSE),0) -> 0
C23: Purita +Pro 2 | D23: =IFERROR(VLOOKUP($A23,Filtro_12!$A$5:$P$51,2,FALSE),0) -> 0 | E23: =IFERROR(VLOOKUP($A23,Filtro_12!$A$5:$P$51,3,FALSE),0) -> 0 | F23: =IFERROR(VLOOKUP($A23,Filtro_12!$A$5:$P$51,4,FALSE),0) -> 0 | G23: =IFERROR(VLOOKUP($A23,Filtro_12!$A$5:$P$51,5,FALSE),0) -> 0 | H23: =IFERROR(VLOOKUP($A23,Filtro_12!$A$5:$P$51,6,FALSE),0) -> 0 | I23: =IFERROR(VLOOKUP($A23,Filtro_12!$A$5:$P$51,7,FALSE),0) -> 0 | J23: =IFERROR(VLOOKUP($A23,Filtro_12!$A$5:$P$51,8,FALSE),0) -> 0 | K23: =IFERROR(VLOOKUP($A23,Filtro_12!$A$5:$P$51,9,FALSE),0) -> 0 | L23: =IFERROR(VLOOKUP($A23,Filtro_12!$A$5:$P$51,10,FALSE),0) -> 0 | M23: =IFERROR(VLOOKUP($A23,Filtro_12!$A$5:$P$51,11,FALSE),0) -> 0 | N23: =IFERROR(VLOOKUP($A23,Filtro_12!$A$5:$P$51,12,FALSE),0) -> 0 | O23: =IFERROR(VLOOKUP($A23,Filtro_12!$A$5:$P$51,13,FALSE),0) -> 0 | P23: =IFERROR(VLOOKUP($A23,Filtro_12!$A$5:$P$51,14,FALSE),0) -> 0
A24: 15010500 | C24: Mi Sopita (MS) | D24: =IFERROR(VLOOKUP($A24,Filtro_12!$A$5:$P$51,2,FALSE),0) -> 7,266 | E24: =IFERROR(VLOOKUP($A24,Filtro_12!$A$5:$P$51,3,FALSE),0) -> 0 | F24: =IFERROR(VLOOKUP($A24,Filtro_12!$A$5:$P$51,4,FALSE),0) -> 26 | G24: =IFERROR(VLOOKUP($A24,Filtro_12!$A$5:$P$51,5,FALSE),0) -> 888 | H24: =IFERROR(VLOOKUP($A24,Filtro_12!$A$5:$P$51,6,FALSE),0) -> 894 | I24: =IFERROR(VLOOKUP($A24,Filtro_12!$A$5:$P$51,7,FALSE),0) -> 804 | J24: =IFERROR(VLOOKUP($A24,Filtro_12!$A$5:$P$51,8,FALSE),0) -> 2,850 | K24: =IFERROR(VLOOKUP($A24,Filtro_12!$A$5:$P$51,9,FALSE),0) -> 1,804 | L24: =IFERROR(VLOOKUP($A24,Filtro_12!$A$5:$P$51,10,FALSE),0) -> 0 | M24: =IFERROR(VLOOKUP($A24,Filtro_12!$A$5:$P$51,11,FALSE),0) -> 0 | N24: =IFERROR(VLOOKUP($A24,Filtro_12!$A$5:$P$51,12,FALSE),0) -> 0 | O24: =IFERROR(VLOOKUP($A24,Filtro_12!$A$5:$P$51,13,FALSE),0) -> 0 | P24: =IFERROR(VLOOKUP($A24,Filtro_12!$A$5:$P$51,14,FALSE),0) -> 0
A25: 15080009 | C25: Purita Mamá (PM) | D25: =IFERROR(VLOOKUP($A25,Filtro_12!$A$5:$P$51,2,FALSE),0) -> 782 | E25: =IFERROR(VLOOKUP($A25,Filtro_12!$A$5:$P$51,3,FALSE),0) -> 0 | F25: =IFERROR(VLOOKUP($A25,Filtro_12!$A$5:$P$51,4,FALSE),0) -> 0 | G25: =IFERROR(VLOOKUP($A25,Filtro_12!$A$5:$P$51,5,FALSE),0) -> 0 | H25: =IFERROR(VLOOKUP($A25,Filtro_12!$A$5:$P$51,6,FALSE),0) -> 0 | I25: =IFERROR(VLOOKUP($A25,Filtro_12!$A$5:$P$51,7,FALSE),0) -> 0 | J25: =IFERROR(VLOOKUP($A25,Filtro_12!$A$5:$P$51,8,FALSE),0) -> 0 | K25: =IFERROR(VLOOKUP($A25,Filtro_12!$A$5:$P$51,9,FALSE),0) -> 0 | L25: =IFERROR(VLOOKUP($A25,Filtro_12!$A$5:$P$51,10,FALSE),0) -> 0 | M25: =IFERROR(VLOOKUP($A25,Filtro_12!$A$5:$P$51,11,FALSE),0) -> 675 | N25: =IFERROR(VLOOKUP($A25,Filtro_12!$A$5:$P$51,12,FALSE),0) -> 73 | O25: =IFERROR(VLOOKUP($A25,Filtro_12!$A$5:$P$51,13,FALSE),0) -> 20 | P25: =IFERROR(VLOOKUP($A25,Filtro_12!$A$5:$P$51,14,FALSE),0) -> 14
A26: 15900020 | C26: Fórmula de Inicio (FI) | D26: =IFERROR(VLOOKUP($A26,Filtro_12!$A$5:$P$51,2,FALSE),0) -> 2,103 | E26: =IFERROR(VLOOKUP($A26,Filtro_12!$A$5:$P$51,3,FALSE),0) -> 227 | F26: =IFERROR(VLOOKUP($A26,Filtro_12!$A$5:$P$51,4,FALSE),0) -> 470 | G26: =IFERROR(VLOOKUP($A26,Filtro_12!$A$5:$P$51,5,FALSE),0) -> 1,407 | H26: =IFERROR(VLOOKUP($A26,Filtro_12!$A$5:$P$51,6,FALSE),0) -> 0 | I26: =IFERROR(VLOOKUP($A26,Filtro_12!$A$5:$P$51,7,FALSE),0) -> 0 | J26: =IFERROR(VLOOKUP($A26,Filtro_12!$A$5:$P$51,8,FALSE),0) -> 0 | K26: =IFERROR(VLOOKUP($A26,Filtro_12!$A$5:$P$51,9,FALSE),0) -> 0 | L26: =IFERROR(VLOOKUP($A26,Filtro_12!$A$5:$P$51,10,FALSE),0) -> 0 | M26: =IFERROR(VLOOKUP($A26,Filtro_12!$A$5:$P$51,11,FALSE),0) -> 0 | N26: =IFERROR(VLOOKUP($A26,Filtro_12!$A$5:$P$51,12,FALSE),0) -> 0 | O26: =IFERROR(VLOOKUP($A26,Filtro_12!$A$5:$P$51,13,FALSE),0) -> 0 | P26: =IFERROR(VLOOKUP($A26,Filtro_12!$A$5:$P$51,14,FALSE),0) -> 0
C27: Subtotal | D27: =SUM(E27:P27) -> 16,529 | E27: =SUM(E26) -> 227 | F27: =SUM(F24+F26) -> 496 | G27: =SUM(G24+G26) -> 2,295 | H27: =SUM(H21+H24) -> 1,792 | I27: =SUM(I21+I24) -> 1,604 | J27: =SUM(J21+J24) -> 5,726 | K27: =SUM(K21+K24) -> 3,608 | M27: =SUM(M23+M25) -> 675 | N27: =SUM(N23+N25) -> 73 | O27: =SUM(O23+O25) -> 20 | P27: =SUM(P23+P25) -> 14
A28: 15030100 | B28: Prematuros | C28: Fórmula de Prematuros (FP) | D28: =IFERROR(VLOOKUP($A28,Filtro_12!$A$5:$P$51,2,FALSE),0) -> 1,987 | E28: =IFERROR(VLOOKUP($A28,Filtro_12!$A$5:$P$51,3,FALSE),0) -> 588 | F28: =IFERROR(VLOOKUP($A28,Filtro_12!$A$5:$P$51,4,FALSE),0) -> 666 | G28: =IFERROR(VLOOKUP($A28,Filtro_12!$A$5:$P$51,5,FALSE),0) -> 732 | H28: =IFERROR(VLOOKUP($A28,Filtro_12!$A$5:$P$51,6,FALSE),0) -> 0 | I28: =IFERROR(VLOOKUP($A28,Filtro_12!$A$5:$P$51,7,FALSE),0) -> 0 | J28: =IFERROR(VLOOKUP($A28,Filtro_12!$A$5:$P$51,8,FALSE),0) -> 0 | K28: =IFERROR(VLOOKUP($A28,Filtro_12!$A$5:$P$51,9,FALSE),0) -> 0 | L28: =IFERROR(VLOOKUP($A28,Filtro_12!$A$5:$P$51,10,FALSE),0) -> 0 | M28: =IFERROR(VLOOKUP($A28,Filtro_12!$A$5:$P$51,11,FALSE),0) -> 0 | N28: =IFERROR(VLOOKUP($A28,Filtro_12!$A$5:$P$51,12,FALSE),0) -> 0 | O28: =IFERROR(VLOOKUP($A28,Filtro_12!$A$5:$P$51,13,FALSE),0) -> 0 | P28: =IFERROR(VLOOKUP($A28,Filtro_12!$A$5:$P$51,14,FALSE),0) -> 0
A29: 15901500 | C29: Fórmula de Incio (FI) | D29: =IFERROR(VLOOKUP($A29,Filtro_12!$A$5:$P$51,2,FALSE),0) -> 596 | E29: =IFERROR(VLOOKUP($A29,Filtro_12!$A$5:$P$51,3,FALSE),0) -> 35 | F29: =IFERROR(VLOOKUP($A29,Filtro_12!$A$5:$P$51,4,FALSE),0) -> 134 | G29: =IFERROR(VLOOKUP($A29,Filtro_12!$A$5:$P$51,5,FALSE),0) -> 428 | H29: =IFERROR(VLOOKUP($A29,Filtro_12!$A$5:$P$51,6,FALSE),0) -> 0 | I29: =IFERROR(VLOOKUP($A29,Filtro_12!$A$5:$P$51,7,FALSE),0) -> 0 | J29: =IFERROR(VLOOKUP($A29,Filtro_12!$A$5:$P$51,8,FALSE),0) -> 0 | K29: =IFERROR(VLOOKUP($A29,Filtro_12!$A$5:$P$51,9,FALSE),0) -> 0 | L29: =IFERROR(VLOOKUP($A29,Filtro_12!$A$5:$P$51,10,FALSE),0) -> 0 | M29: =IFERROR(VLOOKUP($A29,Filtro_12!$A$5:$P$51,11,FALSE),0) -> 0 | N29: =IFERROR(VLOOKUP($A29,Filtro_12!$A$5:$P$51,12,FALSE),0) -> 0 | O29: =IFERROR(VLOOKUP($A29,Filtro_12!$A$5:$P$51,13,FALSE),0) -> 0 | P29: =IFERROR(VLOOKUP($A29,Filtro_12!$A$5:$P$51,14,FALSE),0) -> 0
A30: 15080012 | C30: Mi Sopita (MS) | D30: =IFERROR(VLOOKUP($A30,Filtro_12!$A$5:$P$51,2,FALSE),0) -> 22 | E30: =IFERROR(VLOOKUP($A30,Filtro_12!$A$5:$P$51,3,FALSE),0) -> 0 | F30: =IFERROR(VLOOKUP($A30,Filtro_12!$A$5:$P$51,4,FALSE),0) -> 0 | G30: =IFERROR(VLOOKUP($A30,Filtro_12!$A$5:$P$51,5,FALSE),0) -> 22 | H30: =IFERROR(VLOOKUP($A30,Filtro_12!$A$5:$P$51,6,FALSE),0) -> 0 | I30: =IFERROR(VLOOKUP($A30,Filtro_12!$A$5:$P$51,7,FALSE),0) -> 0 | J30: =IFERROR(VLOOKUP($A30,Filtro_12!$A$5:$P$51,8,FALSE),0) -> 0 | K30: =IFERROR(VLOOKUP($A30,Filtro_12!$A$5:$P$51,9,FALSE),0) -> 0 | L30: =IFERROR(VLOOKUP($A30,Filtro_12!$A$5:$P$51,10,FALSE),0) -> 0 | M30: =IFERROR(VLOOKUP($A30,Filtro_12!$A$5:$P$51,11,FALSE),0) -> 0 | N30: =IFERROR(VLOOKUP($A30,Filtro_12!$A$5:$P$51,12,FALSE),0) -> 0 | O30: =IFERROR(VLOOKUP($A30,Filtro_12!$A$5:$P$51,13,FALSE),0) -> 0 | P30: =IFERROR(VLOOKUP($A30,Filtro_12!$A$5:$P$51,14,FALSE),0) -> 0
C31: Subtotal | D31: =SUM(E31:P31) -> 2,605 | E31: =SUM(E28:E29) -> 623 | F31: =SUM(F28:F30) -> 800 | G31: =SUM(G28:G30) -> 1,182
A32: 15900030 | B32: Alergia a la proteína de la leche de vaca | C32: Fórmula Extensamente Hidrolizada (FEH) | D32: =IFERROR(VLOOKUP($A32,Filtro_12!$A$5:$P$51,2,FALSE),0) -> 6,161 | E32: =IFERROR(VLOOKUP($A32,Filtro_12!$A$5:$P$51,3,FALSE),0) -> 356 | F32: =IFERROR(VLOOKUP($A32,Filtro_12!$A$5:$P$51,4,FALSE),0) -> 812 | G32: =IFERROR(VLOOKUP($A32,Filtro_12!$A$5:$P$51,5,FALSE),0) -> 1,994 | H32: =IFERROR(VLOOKUP($A32,Filtro_12!$A$5:$P$51,6,FALSE),0) -> 1,756 | I32: =IFERROR(VLOOKUP($A32,Filtro_12!$A$5:$P$51,7,FALSE),0) -> 1,000 | J32: =IFERROR(VLOOKUP($A32,Filtro_12!$A$5:$P$51,8,FALSE),0) -> 191 | K32: =IFERROR(VLOOKUP($A32,Filtro_12!$A$5:$P$51,9,FALSE),0) -> 52 | L32: =IFERROR(VLOOKUP($A32,Filtro_12!$A$5:$P$51,10,FALSE),0) -> 0 | M32: =IFERROR(VLOOKUP($A32,Filtro_12!$A$5:$P$51,11,FALSE),0) -> 0 | N32: =IFERROR(VLOOKUP($A32,Filtro_12!$A$5:$P$51,12,FALSE),0) -> 0 | O32: =IFERROR(VLOOKUP($A32,Filtro_12!$A$5:$P$51,13,FALSE),0) -> 0 | P32: =IFERROR(VLOOKUP($A32,Filtro_12!$A$5:$P$51,14,FALSE),0) -> 0
A33: 15900040 | C33: Fórmula Aminoacídica (FAA) | D33: =IFERROR(VLOOKUP($A33,Filtro_12!$A$5:$P$51,2,FALSE),0) -> 3,221 | E33: =IFERROR(VLOOKUP($A33,Filtro_12!$A$5:$P$51,3,FALSE),0) -> 177 | F33: =IFERROR(VLOOKUP($A33,Filtro_12!$A$5:$P$51,4,FALSE),0) -> 497 | G33: =IFERROR(VLOOKUP($A33,Filtro_12!$A$5:$P$51,5,FALSE),0) -> 1,235 | H33: =IFERROR(VLOOKUP($A33,Filtro_12!$A$5:$P$51,6,FALSE),0) -> 750 | I33: =IFERROR(VLOOKUP($A33,Filtro_12!$A$5:$P$51,7,FALSE),0) -> 442 | J33: =IFERROR(VLOOKUP($A33,Filtro_12!$A$5:$P$51,8,FALSE),0) -> 108 | K33: =IFERROR(VLOOKUP($A33,Filtro_12!$A$5:$P$51,9,FALSE),0) -> 12 | L33: =IFERROR(VLOOKUP($A33,Filtro_12!$A$5:$P$51,10,FALSE),0) -> 0 | M33: =IFERROR(VLOOKUP($A33,Filtro_12!$A$5:$P$51,11,FALSE),0) -> 0 | N33: =IFERROR(VLOOKUP($A33,Filtro_12!$A$5:$P$51,12,FALSE),0) -> 0 | O33: =IFERROR(VLOOKUP($A33,Filtro_12!$A$5:$P$51,13,FALSE),0) -> 0 | P33: =IFERROR(VLOOKUP($A33,Filtro_12!$A$5:$P$51,14,FALSE),0) -> 0
C34: Subtotal | D34: =SUM(E34:P34) -> 0 | E34: =IFERROR(VLOOKUP($A34,Filtro_12!$A$5:$P$51,3,FALSE),0) -> 0 | F34: =IFERROR(VLOOKUP($A34,Filtro_12!A26:P72,4,FALSE),0) -> 0 | G34: =IFERROR(VLOOKUP($A34,Filtro_12!A26:P72,5,FALSE),0) -> 0 | H34: =IFERROR(VLOOKUP($A34,Filtro_12!A26:P72,6,FALSE),0) -> 0 | I34: =IFERROR(VLOOKUP($A34,Filtro_12!A26:P72,7,FALSE),0) -> 0 | J34: =IFERROR(VLOOKUP($A34,Filtro_12!A26:P72,8,FALSE),0) -> 0 | K34: =IFERROR(VLOOKUP($A34,Filtro_12!A26:P72,9,FALSE),0) -> 0 | L34: =IFERROR(VLOOKUP($A34,Filtro_12!A26:P72,10,FALSE),0) -> 0 | M34: =IFERROR(VLOOKUP($A34,Filtro_12!A26:P72,11,FALSE),0) -> 0 | N34: =IFERROR(VLOOKUP($A34,Filtro_12!A26:P72,12,FALSE),0) -> 0 | O34: =IFERROR(VLOOKUP($A34,Filtro_12!A26:P72,13,FALSE),0) -> 0 | P34: =IFERROR(VLOOKUP($A34,Filtro_12!A26:P72,14,FALSE),0) -> 0
B35: Total | D35: =SUM(E35:P35) -> 393,598 | E35: =+E19+E27+E31+E34 -> 6,627 | F35: =+F19+F27+F31+F34 -> 16,347 | G35: 49,110 | H35: 51,336 | I35: 51,824 | J35: 96,232 | K35: 76,639 | L35: =+L19+L27+L31+L34 -> 21,881 | M35: 675 | N35: 12,754 | O35: 3,452 | P35: 6,722
B37: Sección B: PNAC - Número de personas intrasistema que retiran
B38: Subprogramas | D38: Total | E38: Hombres | F38: Mujeres | G38: Menores a 6 años | N38: Gestantes | P38: Persona que amamanta a hijo/a menor a 12 meses
G39: 0 - 2 meses | H39: 3 - 5 meses | I39: 6 - 11 meses | J39: 12 - 17 meses | K39: 18 - 23 meses | L39: 24 - 47 meses | M39: 48 - 71 meses | N39: Normal, sobrepeso y obesas | O39: Bajo peso | P39: 0 a 5 meses con Lactancia Materna exclusiva | Q39: 0 a 5 meses Lactancia Materna + Fórmula Láctea | R39: 6 a 11 meses Lactancia Materna
A42: 15050100 | B42: Básico | D42: =IFERROR(VLOOKUP($A42,Filtro_12!A5:P51,2,FALSE),0) -> 191,470 | E42: =IFERROR(VLOOKUP($A42,Filtro_12!$A$5:$P$51,3,FALSE),0) -> 79,227 | F42: =IFERROR(VLOOKUP($A42,Filtro_12!$A$5:$P$51,4,FALSE),0) -> 111,569 | G42: =IFERROR(VLOOKUP($A42,Filtro_12!$A$5:$P$51,5,FALSE),0) -> 2,366 | H42: =IFERROR(VLOOKUP($A42,Filtro_12!$A$5:$P$51,6,FALSE),0) -> 5,029 | I42: =IFERROR(VLOOKUP($A42,Filtro_12!$A$5:$P$51,7,FALSE),0) -> 14,174 | J42: =IFERROR(VLOOKUP($A42,Filtro_12!$A$5:$P$51,8,FALSE),0) -> 24,724 | K42: =IFERROR(VLOOKUP($A42,Filtro_12!$A$5:$P$51,9,FALSE),0) -> 25,137 | L42: =IFERROR(VLOOKUP($A42,Filtro_12!$A$5:$P$51,10,FALSE),0) -> 45,130 | M42: =IFERROR(VLOOKUP($A42,Filtro_12!$A$5:$P$51,11,FALSE),0) -> 36,884 | N42: =IFERROR(VLOOKUP($A42,Filtro_12!$A$5:$P$51,12,FALSE),0) -> 21,598 | O42: =IFERROR(VLOOKUP($A42,Filtro_12!$A$5:$P$51,13,FALSE),0) -> 0 | P42: =IFERROR(VLOOKUP($A42,Filtro_12!$A$5:$P$51,14,FALSE),0) -> 6,388 | Q42: =IFERROR(VLOOKUP($A42,Filtro_12!$A$5:$P$51,15,FALSE),0) -> 3,380 | R42: =IFERROR(VLOOKUP($A42,Filtro_12!$A$5:$P$51,16,FALSE),0) -> 6,659 | S42: =AA42&AB42 -> * La suma del Total según grupo etario, gestantes y Personas que amamantan no pueden superar al Total por Sexo. | AA42: =IF(AF42=1,"* La suma del Total según grupo etario, gestantes y Personas que amamantan no pueden superar al Total por Sexo. ","") -> * La suma del Total según grupo etario, gestantes y Personas que amamantan no pueden superar al Total por Sexo. | AF42: =IF(SUM(E42:F42)<SUM(G42:M42,N42,P42:R42),1,0) -> 1
A43: 15050200 | B43: Refuerzo | D43: =IFERROR(VLOOKUP($A43,Filtro_12!A6:P52,2,FALSE),0) -> 4,138 | E43: =IFERROR(VLOOKUP($A43,Filtro_12!$A$5:$P$51,3,FALSE),0) -> 2,227 | F43: =IFERROR(VLOOKUP($A43,Filtro_12!$A$5:$P$51,4,FALSE),0) -> 1,815 | G43: =IFERROR(VLOOKUP($A43,Filtro_12!$A$5:$P$51,5,FALSE),0) -> 92 | H43: =IFERROR(VLOOKUP($A43,Filtro_12!$A$5:$P$51,6,FALSE),0) -> 140 | I43: =IFERROR(VLOOKUP($A43,Filtro_12!$A$5:$P$51,7,FALSE),0) -> 449 | J43: =IFERROR(VLOOKUP($A43,Filtro_12!$A$5:$P$51,8,FALSE),0) -> 450 | K43: =IFERROR(VLOOKUP($A43,Filtro_12!$A$5:$P$51,9,FALSE),0) -> 398 | L43: =IFERROR(VLOOKUP($A43,Filtro_12!$A$5:$P$51,10,FALSE),0) -> 1,439 | M43: =IFERROR(VLOOKUP($A43,Filtro_12!$A$5:$P$51,11,FALSE),0) -> 888 | N43: =IFERROR(VLOOKUP($A43,Filtro_12!$A$5:$P$51,12,FALSE),0) -> 0 | O43: =IFERROR(VLOOKUP($A43,Filtro_12!A6:P52,13,FALSE),0) -> 231 | P43: =IFERROR(VLOOKUP($A43,Filtro_12!$A$5:$P$51,14,FALSE),0) -> 26 | Q43: =IFERROR(VLOOKUP($A43,Filtro_12!$A$5:$P$51,15,FALSE),0) -> 15 | R43: =IFERROR(VLOOKUP($A43,Filtro_12!$A$5:$P$51,16,FALSE),0) -> 10 | S43: =AA43&AB43 ->  | AA43: =IF(AF43=1,"* La suma del Total según grupo etario, gestantes y Personas que amamantan no pueden superar al Total por Sexo. ","") ->  | AF43: =IF(D43<SUM(G43:M43,O43:R43),1,0) -> 0
A44: 15050500 | B44: Prematuros | D44: =IFERROR(VLOOKUP($A44,Filtro_12!A7:P53,2,FALSE),0) -> 589 | E44: =IFERROR(VLOOKUP($A44,Filtro_12!$A$5:$P$51,3,FALSE),0) -> 289 | F44: =IFERROR(VLOOKUP($A44,Filtro_12!$A$5:$P$51,4,FALSE),0) -> 293 | G44: =IFERROR(VLOOKUP($A44,Filtro_12!$A$5:$P$51,5,FALSE),0) -> 162 | H44: =IFERROR(VLOOKUP($A44,Filtro_12!$A$5:$P$51,6,FALSE),0) -> 177 | I44: =IFERROR(VLOOKUP($A44,Filtro_12!$A$5:$P$51,7,FALSE),0) -> 250 | J44: =IFERROR(VLOOKUP($A44,Filtro_12!$A$5:$P$51,8,FALSE),0) -> 0 | K44: =IFERROR(VLOOKUP($A44,Filtro_12!$A$5:$P$51,9,FALSE),0) -> 0 | L44: =IFERROR(VLOOKUP($A44,Filtro_12!$A$5:$P$51,10,FALSE),0) -> 0 | M44: =IFERROR(VLOOKUP($A44,Filtro_12!$A$5:$P$51,11,FALSE),0) -> 0 | N44: =IFERROR(VLOOKUP($A44,Filtro_12!$A$5:$P$51,12,FALSE),0) -> 0 | O44: =IFERROR(VLOOKUP($A44,Filtro_12!A7:P53,13,FALSE),0) -> 0 | P44: =IFERROR(VLOOKUP($A44,Filtro_12!$A$5:$P$51,14,FALSE),0) -> 0 | Q44: =IFERROR(VLOOKUP($A44,Filtro_12!$A$5:$P$51,15,FALSE),0) -> 0 | R44: =IFERROR(VLOOKUP($A44,Filtro_12!$A$5:$P$51,16,FALSE),0) -> 0 | AA44: =IF(AF44=1,"* El Total según grupo etario no puede superar al Total por Sexo. ","") ->  | AF44: =IF(D44<SUM(G44:M44),1,0) -> 0
A45: 15900050 | B45: Alergia a la Proteína de la leche de vaca | D45: =IFERROR(VLOOKUP($A45,Filtro_12!A8:P54,2,FALSE),0) -> 2,535 | E45: =IFERROR(VLOOKUP($A45,Filtro_12!$A$5:$P$51,3,FALSE),0) -> 1,259 | F45: =IFERROR(VLOOKUP($A45,Filtro_12!$A$5:$P$51,4,FALSE),0) -> 1,179 | G45: =IFERROR(VLOOKUP($A45,Filtro_12!$A$5:$P$51,5,FALSE),0) -> 163 | H45: =IFERROR(VLOOKUP($A45,Filtro_12!$A$5:$P$51,6,FALSE),0) -> 350 | I45: =IFERROR(VLOOKUP($A45,Filtro_12!$A$5:$P$51,7,FALSE),0) -> 868 | J45: =IFERROR(VLOOKUP($A45,Filtro_12!$A$5:$P$51,8,FALSE),0) -> 659 | K45: =IFERROR(VLOOKUP($A45,Filtro_12!$A$5:$P$51,9,FALSE),0) -> 388 | L45: =IFERROR(VLOOKUP($A45,Filtro_12!$A$5:$P$51,10,FALSE),0) -> 91 | M45: =IFERROR(VLOOKUP($A45,Filtro_12!$A$5:$P$51,11,FALSE),0) -> 16 | N45: =IFERROR(VLOOKUP($A45,Filtro_12!$A$5:$P$51,12,FALSE),0) -> 0 | O45: =IFERROR(VLOOKUP($A45,Filtro_12!A8:P54,13,FALSE),0) -> 0 | P45: =IFERROR(VLOOKUP($A45,Filtro_12!$A$5:$P$51,14,FALSE),0) -> 0 | Q45: =IFERROR(VLOOKUP($A45,Filtro_12!$A$5:$P$51,15,FALSE),0) -> 0 | R45: =IFERROR(VLOOKUP($A45,Filtro_12!$A$5:$P$51,16,FALSE),0) -> 0 | AF45: 0
B46: TOTAL | D46: =SUM(E46:F46) -> 197,858 | E46: =SUM(E42:E45) -> 83,002 | F46: 114,856 | G46: 2,783 | H46: 5,696 | I46: 15,741 | J46: 25,833 | K46: 25,923 | L46: 46,660 | M46: 37,788 | N46: =N42 -> 21,598 | O46: =O43 -> 231 | P46: =SUM(P42:P43) -> 6,414 | Q46: =SUM(Q42:Q43) -> 3,395 | R46: =SUM(R42:R43) -> 6,669
A47: 15900060 | B47: Programas Sociales (*) | D47: =IFERROR(VLOOKUP($A47,#REF!,2,FALSE),0) -> 0 | E47: =IFERROR(VLOOKUP($A47,#REF!,3,FALSE),0) -> 0 | F47: =IFERROR(VLOOKUP($A47,#REF!,4,FALSE),0) -> 0 | G47: =IFERROR(VLOOKUP($A47,#REF!,5,FALSE),0) -> 0 | H47: =IFERROR(VLOOKUP($A47,#REF!,6,FALSE),0) -> 0 | I47: =IFERROR(VLOOKUP($A47,#REF!,7,FALSE),0) -> 0 | J47: =IFERROR(VLOOKUP($A47,#REF!,8,FALSE),0) -> 0 | K47: =IFERROR(VLOOKUP($A47,#REF!,9,FALSE),0) -> 0 | L47: =IFERROR(VLOOKUP($A47,Filtro_12!A10:P56,10,FALSE),0) -> 0 | M47: =IFERROR(VLOOKUP($A47,Filtro_12!B10:Q56,10,FALSE),0) -> 0 | N47: =IFERROR(VLOOKUP($A47,Filtro_12!C10:R56,10,FALSE),0) -> 0 | O47: =IFERROR(VLOOKUP($A47,Filtro_12!D10:S56,10,FALSE),0) -> 0 | P47: =IFERROR(VLOOKUP($A47,Filtro_12!E10:T56,10,FALSE),0) -> 0 | Q47: =IFERROR(VLOOKUP($A47,Filtro_12!F10:U56,10,FALSE),0) -> 0 | R47: =IFERROR(VLOOKUP($A47,Filtro_12!G10:V56,10,FALSE),0) -> 0 | S47: =AA47&AC47&AB47 ->  | AA47: =IF(AF47=1,"* La suma del Total según grupo etario, gestantes y Personas que amamantan no pueden superar al Total por Sexo. ","") ->  | AB47: =IF(AG47=1,"* Compruebe que lo ingresado en Programas Sociales no supere al Total registrado en los subprogramas. ","") ->  | AC47: =IF(AH47=1,"* El Total registrado en Programas Sociales no puede ser mayor al Total registrado en los subprogramas. ","") ->  | AF47: =IF(SUM(E47:F47)<SUM(G47:R47),1,0) -> 0 | AG47: =IF(OR(E47>E46,F47>F46,G47>G46,H47>H46,I47>I46,J47>J46,K47>K46,L47>L46,M47>M46,N47>N46,O47>O46,P47>P46,Q47>Q46,R47>R46),1,0) -> 0 | AH47: =IF(D47>D46,1,0) -> 0
B48: Nota: (*) Información referencial, ya incluida en los subprogramas.
B50: Sección C: PNAC: Cantidad distribuida (kg) a personas extrasistema (incluye modalidad libre elección)
B51: Subprogramas | C51: Productos | D51: Total | E51: Menores a 6 años | L51: Gestantes | N51: Persona que amamanta a hijo/a menor a 12 meses
E52: 0 - 2 meses | F52: 3 - 5 meses | G52: 6 - 11 meses | H52: 12 - 17 meses | I52: 18 - 23 meses | J52: 24 - 47 meses | K52: 48 - 71 meses | L52: Normal, sobrepeso y obesas | M52: Bajo peso | N52: 0 a 5 meses con Lactancia Materna exclusiva | O52: 0 a 5 meses Lactancia Materna + Fórmula Láctea | P52: 6 a 11 meses Lactancia Materna
A55: 15020100 | B55: Básico | C55: Leche Purita Fortificada (LPF) | D55: =IFERROR(VLOOKUP($A55,Filtro_12!$A$5:$P$51,2,FALSE),0) -> 0 | E55: =IFERROR(VLOOKUP($A55,Filtro_12!$A$5:$P$51,3,FALSE),0) -> 0 | F55: =IFERROR(VLOOKUP($A55,Filtro_12!$A$5:$P$51,4,FALSE),0) -> 0 | G55: =IFERROR(VLOOKUP($A55,Filtro_12!$A$5:$P$51,5,FALSE),0) -> 0 | H55: =IFERROR(VLOOKUP($A55,Filtro_12!$A$5:$P$51,6,FALSE),0) -> 0 | I55: =IFERROR(VLOOKUP($A55,Filtro_12!$A$5:$P$51,7,FALSE),0) -> 0 | J55: =IFERROR(VLOOKUP($A55,Filtro_12!$A$5:$P$51,8,FALSE),0) -> 0 | K55: =IFERROR(VLOOKUP($A55,Filtro_12!$A$5:$P$51,9,FALSE),0) -> 0 | L55: =IFERROR(VLOOKUP($A55,Filtro_12!$A$5:$P$51,10,FALSE),0) -> 0 | M55: =IFERROR(VLOOKUP($A55,Filtro_12!$A$5:$P$51,11,FALSE),0) -> 0 | N55: =IFERROR(VLOOKUP($A55,Filtro_12!$A$5:$P$51,12,FALSE),0) -> 0 | O55: =IFERROR(VLOOKUP($A55,Filtro_12!$A$5:$P$51,13,FALSE),0) -> 0 | P55: =IFERROR(VLOOKUP($A55,Filtro_12!$A$5:$P$51,14,FALSE),0) -> 0 | Q55: =AB55&" "&AC55 -> 
A56: 15080018 | C56: Purita +Pro 1 | D56: =IFERROR(VLOOKUP($A56,Filtro_12!$A$5:$P$51,2,FALSE),0) -> 2,281 | E56: =IFERROR(VLOOKUP($A56,Filtro_12!$A$5:$P$51,3,FALSE),0) -> 34 | F56: =IFERROR(VLOOKUP($A56,Filtro_12!$A$5:$P$51,4,FALSE),0) -> 62 | G56: =IFERROR(VLOOKUP($A56,Filtro_12!$A$5:$P$51,5,FALSE),0) -> 363 | H56: =IFERROR(VLOOKUP($A56,Filtro_12!$A$5:$P$51,6,FALSE),0) -> 930 | I56: =IFERROR(VLOOKUP($A56,Filtro_12!$A$5:$P$51,7,FALSE),0) -> 892 | J56: =IFERROR(VLOOKUP($A56,Filtro_12!$A$5:$P$51,8,FALSE),0) -> 0 | K56: =IFERROR(VLOOKUP($A56,Filtro_12!$A$5:$P$51,9,FALSE),0) -> 0 | L56: =IFERROR(VLOOKUP($A56,Filtro_12!$A$5:$P$51,10,FALSE),0) -> 0 | M56: =IFERROR(VLOOKUP($A56,Filtro_12!$A$5:$P$51,11,FALSE),0) -> 0 | N56: =IFERROR(VLOOKUP($A56,Filtro_12!$A$5:$P$51,12,FALSE),0) -> 0 | O56: =IFERROR(VLOOKUP($A56,Filtro_12!$A$5:$P$51,13,FALSE),0) -> 0 | P56: =IFERROR(VLOOKUP($A56,Filtro_12!$A$5:$P$51,14,FALSE),0) -> 0
A57: 15020200 | C57: Purita Cereal (PC) | D57: =IFERROR(VLOOKUP($A57,Filtro_12!$A$5:$P$51,2,FALSE),0) -> 0 | E57: =IFERROR(VLOOKUP($A57,Filtro_12!$A$5:$P$51,3,FALSE),0) -> 0 | F57: =IFERROR(VLOOKUP($A57,Filtro_12!$A$5:$P$51,4,FALSE),0) -> 0 | G57: =IFERROR(VLOOKUP($A57,Filtro_12!$A$5:$P$51,5,FALSE),0) -> 0 | H57: =IFERROR(VLOOKUP($A57,Filtro_12!$A$5:$P$51,6,FALSE),0) -> 0 | I57: =IFERROR(VLOOKUP($A57,Filtro_12!$A$5:$P$51,7,FALSE),0) -> 0 | J57: =IFERROR(VLOOKUP($A57,Filtro_12!$A$5:$P$51,8,FALSE),0) -> 0 | K57: =IFERROR(VLOOKUP($A57,Filtro_12!$A$5:$P$51,9,FALSE),0) -> 0 | L57: =IFERROR(VLOOKUP($A57,Filtro_12!$A$5:$P$51,10,FALSE),0) -> 0 | M57: =IFERROR(VLOOKUP($A57,Filtro_12!$A$5:$P$51,11,FALSE),0) -> 0 | N57: =IFERROR(VLOOKUP($A57,Filtro_12!$A$5:$P$51,12,FALSE),0) -> 0 | O57: =IFERROR(VLOOKUP($A57,Filtro_12!$A$5:$P$51,13,FALSE),0) -> 0 | P57: =IFERROR(VLOOKUP($A57,Filtro_12!$A$5:$P$51,14,FALSE),0) -> 0
A58: 15080019 | C58: Purita +Pro 2 | D58: =IFERROR(VLOOKUP($A58,Filtro_12!$A$5:$P$51,2,FALSE),0) -> 2,537 | E58: =IFERROR(VLOOKUP($A58,Filtro_12!$A$5:$P$51,3,FALSE),0) -> 0 | F58: =IFERROR(VLOOKUP($A58,Filtro_12!$A$5:$P$51,4,FALSE),0) -> 0 | G58: =IFERROR(VLOOKUP($A58,Filtro_12!$A$5:$P$51,5,FALSE),0) -> 0 | H58: =IFERROR(VLOOKUP($A58,Filtro_12!$A$5:$P$51,6,FALSE),0) -> 0 | I58: =IFERROR(VLOOKUP($A58,Filtro_12!$A$5:$P$51,7,FALSE),0) -> 0 | J58: =IFERROR(VLOOKUP($A58,Filtro_12!$A$5:$P$51,8,FALSE),0) -> 1,534 | K58: =IFERROR(VLOOKUP($A58,Filtro_12!$A$5:$P$51,9,FALSE),0) -> 999 | L58: =IFERROR(VLOOKUP($A58,Filtro_12!$A$5:$P$51,10,FALSE),0) -> 3 | M58: =IFERROR(VLOOKUP($A58,Filtro_12!$A$5:$P$51,11,FALSE),0) -> 0 | N58: =IFERROR(VLOOKUP($A58,Filtro_12!$A$5:$P$51,12,FALSE),0) -> 1 | O58: =IFERROR(VLOOKUP($A58,Filtro_12!$A$5:$P$51,13,FALSE),0) -> 0 | P58: =IFERROR(VLOOKUP($A58,Filtro_12!$A$5:$P$51,14,FALSE),0) -> 0
A59: 15080010 | C59: Purita Mamá (PM) | D59: =IFERROR(VLOOKUP($A59,Filtro_12!$A$5:$P$51,2,FALSE),0) -> 91 | E59: =IFERROR(VLOOKUP($A59,Filtro_12!$A$5:$P$51,3,FALSE),0) -> 0 | F59: =IFERROR(VLOOKUP($A59,Filtro_12!$A$5:$P$51,4,FALSE),0) -> 0 | G59: =IFERROR(VLOOKUP($A59,Filtro_12!$A$5:$P$51,5,FALSE),0) -> 0 | H59: =IFERROR(VLOOKUP($A59,Filtro_12!$A$5:$P$51,6,FALSE),0) -> 0 | I59: =IFERROR(VLOOKUP($A59,Filtro_12!$A$5:$P$51,7,FALSE),0) -> 0 | J59: =IFERROR(VLOOKUP($A59,Filtro_12!$A$5:$P$51,8,FALSE),0) -> 0 | K59: =IFERROR(VLOOKUP($A59,Filtro_12!$A$5:$P$51,9,FALSE),0) -> 0 | L59: =IFERROR(VLOOKUP($A59,Filtro_12!$A$5:$P$51,10,FALSE),0) -> 35 | M59: =IFERROR(VLOOKUP($A59,Filtro_12!$A$5:$P$51,11,FALSE),0) -> 0 | N59: =IFERROR(VLOOKUP($A59,Filtro_12!$A$5:$P$51,12,FALSE),0) -> 27 | O59: =IFERROR(VLOOKUP($A59,Filtro_12!$A$5:$P$51,13,FALSE),0) -> 23 | P59: =IFERROR(VLOOKUP($A59,Filtro_12!$A$5:$P$51,14,FALSE),0) -> 6 | Q59: =$AB59&$AC59&$AD59&$AE59 ->  | AB59: =IF(AND(SUM(L55,L56,L59)<>0,N84=""),"* No olvide ingresar el Nº de personas que retiran alimento de la sección D en el grupo de Gestantes Normal, Sobrepeso y Obesas.","") ->  | AC59: =IF(AND(SUM(N56,N55,N59)<>0,P84=""),"* No olvide ingresar el Nº de personas que retiran alimento de la sección D en el grupo de Madre con hijo/a menor a 6 meses con Lactancia materna exclusiva.","") ->  | AD59: =IF(AND(SUM(O57,O56,O59)<>0,Q84=""),"* No olvide ingresar el Nº de personas que retiran alimento de la sección D en el grupo de Madre con hijo/a menor a 6 meses con Lactancia materna predominante.","") ->  | AE59: =IF(AND(SUM(P57,P56,P59)<>0,R84=""),"No olvide ingresar el Nº de personas que retiran alimento de la sección D en el grupo de Madre con hijo/a menor a 6 meses con Fórmula predominantes o exclusiva.","") -> 
A60: 15900070 | C60: Fórmula de Inicio (FI) | D60: =IFERROR(VLOOKUP($A60,Filtro_12!$A$5:$P$51,2,FALSE),0) -> 49 | E60: =IFERROR(VLOOKUP($A60,Filtro_12!$A$5:$P$51,3,FALSE),0) -> 17 | F60: =IFERROR(VLOOKUP($A60,Filtro_12!$A$5:$P$51,4,FALSE),0) -> 13 | G60: =IFERROR(VLOOKUP($A60,Filtro_12!$A$5:$P$51,5,FALSE),0) -> 19 | H60: =IFERROR(VLOOKUP($A60,Filtro_12!$A$5:$P$51,6,FALSE),0) -> 0 | I60: =IFERROR(VLOOKUP($A60,Filtro_12!$A$5:$P$51,7,FALSE),0) -> 0 | J60: =IFERROR(VLOOKUP($A60,Filtro_12!$A$5:$P$51,8,FALSE),0) -> 0 | K60: =IFERROR(VLOOKUP($A60,Filtro_12!$A$5:$P$51,9,FALSE),0) -> 0 | L60: =IFERROR(VLOOKUP($A60,Filtro_12!$A$5:$P$51,10,FALSE),0) -> 0 | M60: =IFERROR(VLOOKUP($A60,Filtro_12!$A$5:$P$51,11,FALSE),0) -> 0 | N60: =IFERROR(VLOOKUP($A60,Filtro_12!$A$5:$P$51,12,FALSE),0) -> 0 | O60: =IFERROR(VLOOKUP($A60,Filtro_12!$A$5:$P$51,13,FALSE),0) -> 0 | P60: =IFERROR(VLOOKUP($A60,Filtro_12!$A$5:$P$51,14,FALSE),0) -> 0
C61: Subtotal | D61: =SUM(E61:P61) -> 4,958 | E61: =SUM(E55:E60) -> 51 | F61: =SUM(F55:F60) -> 75 | G61: =SUM(G55:G60) -> 382 | H61: =SUM(H55:H56) -> 930 | I61: =SUM(I55:I57) -> 892 | J61: =SUM(J55:J58) -> 1,534 | K61: =SUM(K55:K58) -> 999 | L61: =SUM(L55:L60) -> 38 | M61: =SUM(M55:M56) -> 0 | N61: =SUM(N55:N60) -> 28 | O61: =SUM(O55:O60) -> 23 | P61: =SUM(P55:P60) -> 6
A62: 15020300 | B62: Refuerzo | C62: Leche Purita Fortificada (LPF) | D62: =IFERROR(VLOOKUP($A62,Filtro_12!$A$5:$P$51,2,FALSE),0) -> 0 | E62: =IFERROR(VLOOKUP($A62,Filtro_12!$A$5:$P$51,3,FALSE),0) -> 0 | F62: =IFERROR(VLOOKUP($A62,Filtro_12!$A$5:$P$51,4,FALSE),0) -> 0 | G62: =IFERROR(VLOOKUP($A62,Filtro_12!$A$5:$P$51,5,FALSE),0) -> 0 | H62: =IFERROR(VLOOKUP($A62,Filtro_12!$A$5:$P$51,6,FALSE),0) -> 0 | I62: =IFERROR(VLOOKUP($A62,Filtro_12!$A$5:$P$51,7,FALSE),0) -> 0 | J62: =IFERROR(VLOOKUP($A62,Filtro_12!$A$5:$P$51,8,FALSE),0) -> 0 | K62: =IFERROR(VLOOKUP($A62,Filtro_12!$A$5:$P$51,9,FALSE),0) -> 0 | L62: =IFERROR(VLOOKUP($A62,Filtro_12!$A$5:$P$51,10,FALSE),0) -> 0 | M62: =IFERROR(VLOOKUP($A62,Filtro_12!$A$5:$P$51,11,FALSE),0) -> 0 | N62: =IFERROR(VLOOKUP($A62,Filtro_12!$A$5:$P$51,12,FALSE),0) -> 0 | O62: =IFERROR(VLOOKUP($A62,Filtro_12!$A$5:$P$51,13,FALSE),0) -> 0 | P62: =IFERROR(VLOOKUP($A62,Filtro_12!$A$5:$P$51,14,FALSE),0) -> 0 | Q62: =AB62&" "&AC62 -> 
A63: 15080020 | C63: Purita +Pro 1 | D63: =IFERROR(VLOOKUP($A63,Filtro_12!$A$5:$P$51,2,FALSE),0) -> 66 | E63: =IFERROR(VLOOKUP($A63,Filtro_12!$A$5:$P$51,3,FALSE),0) -> 0 | F63: =IFERROR(VLOOKUP($A63,Filtro_12!$A$5:$P$51,4,FALSE),0) -> 0 | G63: =IFERROR(VLOOKUP($A63,Filtro_12!$A$5:$P$51,5,FALSE),0) -> 12 | H63: =IFERROR(VLOOKUP($A63,Filtro_12!$A$5:$P$51,6,FALSE),0) -> 18 | I63: =IFERROR(VLOOKUP($A63,Filtro_12!$A$5:$P$51,7,FALSE),0) -> 14 | J63: =IFERROR(VLOOKUP($A63,Filtro_12!$A$5:$P$51,8,FALSE),0) -> 6 | K63: =IFERROR(VLOOKUP($A63,Filtro_12!$A$5:$P$51,9,FALSE),0) -> 16 | L63: =IFERROR(VLOOKUP($A63,Filtro_12!$A$5:$P$51,10,FALSE),0) -> 0 | M63: =IFERROR(VLOOKUP($A63,Filtro_12!$A$5:$P$51,11,FALSE),0) -> 0 | N63: =IFERROR(VLOOKUP($A63,Filtro_12!$A$5:$P$51,12,FALSE),0) -> 0 | O63: =IFERROR(VLOOKUP($A63,Filtro_12!$A$5:$P$51,13,FALSE),0) -> 0 | P63: =IFERROR(VLOOKUP($A63,Filtro_12!$A$5:$P$51,14,FALSE),0) -> 0
A64: 15020400 | C64: Purita Cereal (PC) | D64: =IFERROR(VLOOKUP($A64,Filtro_12!$A$5:$P$51,2,FALSE),0) -> 0 | E64: =IFERROR(VLOOKUP($A64,Filtro_12!$A$5:$P$51,3,FALSE),0) -> 0 | F64: =IFERROR(VLOOKUP($A64,Filtro_12!$A$5:$P$51,4,FALSE),0) -> 0 | G64: =IFERROR(VLOOKUP($A64,Filtro_12!$A$5:$P$51,5,FALSE),0) -> 0 | H64: =IFERROR(VLOOKUP($A64,Filtro_12!$A$5:$P$51,6,FALSE),0) -> 0 | I64: =IFERROR(VLOOKUP($A64,Filtro_12!$A$5:$P$51,7,FALSE),0) -> 0 | J64: =IFERROR(VLOOKUP($A64,Filtro_12!$A$5:$P$51,8,FALSE),0) -> 0 | K64: =IFERROR(VLOOKUP($A64,Filtro_12!$A$5:$P$51,9,FALSE),0) -> 0 | L64: =IFERROR(VLOOKUP($A64,Filtro_12!$A$5:$P$51,10,FALSE),0) -> 0 | M64: =IFERROR(VLOOKUP($A64,Filtro_12!$A$5:$P$51,11,FALSE),0) -> 0 | N64: =IFERROR(VLOOKUP($A64,Filtro_12!$A$5:$P$51,12,FALSE),0) -> 0 | O64: =IFERROR(VLOOKUP($A64,Filtro_12!$A$5:$P$51,13,FALSE),0) -> 0 | P64: =IFERROR(VLOOKUP($A64,Filtro_12!$A$5:$P$51,14,FALSE),0) -> 0 | Q64: =AB64&" "&AC64&" "&AD64&" "&AE64 -> 
C65: Purita +Pro 2 | D65: =IFERROR(VLOOKUP($A65,Filtro_12!$A$5:$P$51,2,FALSE),0) -> 0 | E65: =IFERROR(VLOOKUP($A65,Filtro_12!$A$5:$P$51,3,FALSE),0) -> 0 | F65: =IFERROR(VLOOKUP($A65,Filtro_12!$A$5:$P$51,4,FALSE),0) -> 0 | G65: =IFERROR(VLOOKUP($A65,Filtro_12!$A$5:$P$51,5,FALSE),0) -> 0 | H65: =IFERROR(VLOOKUP($A65,Filtro_12!$A$5:$P$51,6,FALSE),0) -> 0 | I65: =IFERROR(VLOOKUP($A65,Filtro_12!$A$5:$P$51,7,FALSE),0) -> 0 | J65: =IFERROR(VLOOKUP($A65,Filtro_12!$A$5:$P$51,8,FALSE),0) -> 0 | K65: =IFERROR(VLOOKUP($A65,Filtro_12!$A$5:$P$51,9,FALSE),0) -> 0 | L65: =IFERROR(VLOOKUP($A65,Filtro_12!$A$5:$P$51,10,FALSE),0) -> 0 | M65: =IFERROR(VLOOKUP($A65,Filtro_12!$A$5:$P$51,11,FALSE),0) -> 0 | N65: =IFERROR(VLOOKUP($A65,Filtro_12!$A$5:$P$51,12,FALSE),0) -> 0 | O65: =IFERROR(VLOOKUP($A65,Filtro_12!$A$5:$P$51,13,FALSE),0) -> 0 | P65: =IFERROR(VLOOKUP($A65,Filtro_12!$A$5:$P$51,14,FALSE),0) -> 0
A66: 15020500 | C66: Mi Sopita (MS) | D66: =IFERROR(VLOOKUP($A66,Filtro_12!$A$5:$P$51,2,FALSE),0) -> 51 | E66: =IFERROR(VLOOKUP($A66,Filtro_12!$A$5:$P$51,3,FALSE),0) -> 0 | F66: =IFERROR(VLOOKUP($A66,Filtro_12!$A$5:$P$51,4,FALSE),0) -> 0 | G66: =IFERROR(VLOOKUP($A66,Filtro_12!$A$5:$P$51,5,FALSE),0) -> 10 | H66: =IFERROR(VLOOKUP($A66,Filtro_12!$A$5:$P$51,6,FALSE),0) -> 12 | I66: =IFERROR(VLOOKUP($A66,Filtro_12!$A$5:$P$51,7,FALSE),0) -> 10 | J66: =IFERROR(VLOOKUP($A66,Filtro_12!$A$5:$P$51,8,FALSE),0) -> 6 | K66: =IFERROR(VLOOKUP($A66,Filtro_12!$A$5:$P$51,9,FALSE),0) -> 13 | L66: =IFERROR(VLOOKUP($A66,Filtro_12!$A$5:$P$51,10,FALSE),0) -> 0 | M66: =IFERROR(VLOOKUP($A66,Filtro_12!$A$5:$P$51,11,FALSE),0) -> 0 | N66: =IFERROR(VLOOKUP($A66,Filtro_12!$A$5:$P$51,12,FALSE),0) -> 0 | O66: =IFERROR(VLOOKUP($A66,Filtro_12!$A$5:$P$51,13,FALSE),0) -> 0 | P66: =IFERROR(VLOOKUP($A66,Filtro_12!$A$5:$P$51,14,FALSE),0) -> 0 | Q66: =AB66&" "&AC66&" "&AD66&" "&AE66&" "&AB67&" "&AC67 -> 
A67: 15080011 | C67: Purita Mamá (PM) | D67: =IFERROR(VLOOKUP($A67,Filtro_12!$A$5:$P$51,2,FALSE),0) -> 1 | E67: =IFERROR(VLOOKUP($A67,Filtro_12!$A$5:$P$51,3,FALSE),0) -> 0 | F67: =IFERROR(VLOOKUP($A67,Filtro_12!$A$5:$P$51,4,FALSE),0) -> 0 | G67: =IFERROR(VLOOKUP($A67,Filtro_12!$A$5:$P$51,5,FALSE),0) -> 0 | H67: =IFERROR(VLOOKUP($A67,Filtro_12!$A$5:$P$51,6,FALSE),0) -> 0 | I67: =IFERROR(VLOOKUP($A67,Filtro_12!$A$5:$P$51,7,FALSE),0) -> 0 | J67: =IFERROR(VLOOKUP($A67,Filtro_12!$A$5:$P$51,8,FALSE),0) -> 0 | K67: =IFERROR(VLOOKUP($A67,Filtro_12!$A$5:$P$51,9,FALSE),0) -> 0 | L67: =IFERROR(VLOOKUP($A67,Filtro_12!$A$5:$P$51,10,FALSE),0) -> 0 | M67: =IFERROR(VLOOKUP($A67,Filtro_12!$A$5:$P$51,11,FALSE),0) -> 0 | N67: =IFERROR(VLOOKUP($A67,Filtro_12!$A$5:$P$51,12,FALSE),0) -> 0 | O67: =IFERROR(VLOOKUP($A67,Filtro_12!$A$5:$P$51,13,FALSE),0) -> 0 | P67: =IFERROR(VLOOKUP($A67,Filtro_12!$A$5:$P$51,14,FALSE),0) -> 1
A68: 15900080 | C68: Fórmula de Inicio (FI) | D68: =IFERROR(VLOOKUP($A68,Filtro_12!$A$5:$P$51,2,FALSE),0) -> 0 | E68: =IFERROR(VLOOKUP($A68,Filtro_12!$A$5:$P$51,3,FALSE),0) -> 0 | F68: =IFERROR(VLOOKUP($A68,Filtro_12!$A$5:$P$51,4,FALSE),0) -> 0 | G68: =IFERROR(VLOOKUP($A68,Filtro_12!$A$5:$P$51,5,FALSE),0) -> 0 | H68: =IFERROR(VLOOKUP($A68,Filtro_12!$A$5:$P$51,6,FALSE),0) -> 0 | I68: =IFERROR(VLOOKUP($A68,Filtro_12!$A$5:$P$51,7,FALSE),0) -> 0 | J68: =IFERROR(VLOOKUP($A68,Filtro_12!$A$5:$P$51,8,FALSE),0) -> 0 | K68: =IFERROR(VLOOKUP($A68,Filtro_12!$A$5:$P$51,9,FALSE),0) -> 0 | L68: =IFERROR(VLOOKUP($A68,Filtro_12!$A$5:$P$51,10,FALSE),0) -> 0 | M68: =IFERROR(VLOOKUP($A68,Filtro_12!$A$5:$P$51,11,FALSE),0) -> 0 | N68: =IFERROR(VLOOKUP($A68,Filtro_12!$A$5:$P$51,12,FALSE),0) -> 0 | O68: =IFERROR(VLOOKUP($A68,Filtro_12!$A$5:$P$51,13,FALSE),0) -> 0 | P68: =IFERROR(VLOOKUP($A68,Filtro_12!$A$5:$P$51,14,FALSE),0) -> 0 | Q68: =AD67&" "&AE67 -> 
C69: Subtotal | D69: =SUM(E69:P69) -> 118 | E69: =SUM(E62:E68) -> 0 | F69: =SUM(F62:F68) -> 0 | G69: =SUM(G62:G68) -> 22 | H69: =SUM(H62:H66) -> 30 | I69: =SUM(I62:I66) -> 24 | J69: =SUM(J62:J66) -> 12 | K69: =SUM(K62:K66) -> 29 | L69: =SUM(L62:L63) -> 0 | M69: =SUM(M62:M68) -> 0 | N69: =SUM(N62:N68) -> 0 | O69: =SUM(O62:O68) -> 0 | P69: =SUM(P62:P68) -> 1
A70: 15040100 | B70: Prematuros | C70: Fórmula de Prematuros (FP) | D70: =IFERROR(VLOOKUP($A70,Filtro_12!$A$5:$P$51,2,FALSE),0) -> 73 | E70: =IFERROR(VLOOKUP($A70,Filtro_12!$A$5:$P$51,3,FALSE),0) -> 5 | F70: =IFERROR(VLOOKUP($A70,Filtro_12!$A$5:$P$51,4,FALSE),0) -> 14 | G70: =IFERROR(VLOOKUP($A70,Filtro_12!$A$5:$P$51,5,FALSE),0) -> 54 | H70: =IFERROR(VLOOKUP($A70,Filtro_12!$A$5:$P$51,6,FALSE),0) -> 0 | I70: =IFERROR(VLOOKUP($A70,Filtro_12!$A$5:$P$51,7,FALSE),0) -> 0 | J70: =IFERROR(VLOOKUP($A70,Filtro_12!$A$5:$P$51,8,FALSE),0) -> 0 | K70: =IFERROR(VLOOKUP($A70,Filtro_12!$A$5:$P$51,9,FALSE),0) -> 0 | L70: =IFERROR(VLOOKUP($A70,Filtro_12!$A$5:$P$51,10,FALSE),0) -> 0 | M70: =IFERROR(VLOOKUP($A70,Filtro_12!$A$5:$P$51,11,FALSE),0) -> 0 | N70: =IFERROR(VLOOKUP($A70,Filtro_12!$A$5:$P$51,12,FALSE),0) -> 0 | O70: =IFERROR(VLOOKUP($A70,Filtro_12!$A$5:$P$51,13,FALSE),0) -> 0 | P70: =IFERROR(VLOOKUP($A70,Filtro_12!$A$5:$P$51,14,FALSE),0) -> 0
A71: 15901600 | C71: Fórmula de Incio (FI) | D71: =IFERROR(VLOOKUP($A71,Filtro_12!$A$5:$P$51,2,FALSE),0) -> 0 | E71: =IFERROR(VLOOKUP($A71,Filtro_12!$A$5:$P$51,3,FALSE),0) -> 0 | F71: =IFERROR(VLOOKUP($A71,Filtro_12!$A$5:$P$51,4,FALSE),0) -> 0 | G71: =IFERROR(VLOOKUP($A71,Filtro_12!$A$5:$P$51,5,FALSE),0) -> 0 | H71: =IFERROR(VLOOKUP($A71,Filtro_12!$A$5:$P$51,6,FALSE),0) -> 0 | I71: =IFERROR(VLOOKUP($A71,Filtro_12!$A$5:$P$51,7,FALSE),0) -> 0 | J71: =IFERROR(VLOOKUP($A71,Filtro_12!$A$5:$P$51,8,FALSE),0) -> 0 | K71: =IFERROR(VLOOKUP($A71,Filtro_12!$A$5:$P$51,9,FALSE),0) -> 0 | L71: =IFERROR(VLOOKUP($A71,Filtro_12!$A$5:$P$51,10,FALSE),0) -> 0 | M71: =IFERROR(VLOOKUP($A71,Filtro_12!$A$5:$P$51,11,FALSE),0) -> 0 | N71: =IFERROR(VLOOKUP($A71,Filtro_12!$A$5:$P$51,12,FALSE),0) -> 0 | O71: =IFERROR(VLOOKUP($A71,Filtro_12!$A$5:$P$51,13,FALSE),0) -> 0 | P71: =IFERROR(VLOOKUP($A71,Filtro_12!$A$5:$P$51,14,FALSE),0) -> 0
A72: 15080013 | C72: Mi Sopita (MS) | D72: =IFERROR(VLOOKUP($A72,Filtro_12!$A$5:$P$51,2,FALSE),0) -> 0 | E72: =IFERROR(VLOOKUP($A72,Filtro_12!$A$5:$P$51,3,FALSE),0) -> 0 | F72: =IFERROR(VLOOKUP($A72,Filtro_12!$A$5:$P$51,4,FALSE),0) -> 0 | G72: =IFERROR(VLOOKUP($A72,Filtro_12!$A$5:$P$51,5,FALSE),0) -> 0 | H72: =IFERROR(VLOOKUP($A72,Filtro_12!$A$5:$P$51,6,FALSE),0) -> 0 | I72: =IFERROR(VLOOKUP($A72,Filtro_12!$A$5:$P$51,7,FALSE),0) -> 0 | J72: =IFERROR(VLOOKUP($A72,Filtro_12!$A$5:$P$51,8,FALSE),0) -> 0 | K72: =IFERROR(VLOOKUP($A72,Filtro_12!$A$5:$P$51,9,FALSE),0) -> 0 | L72: =IFERROR(VLOOKUP($A72,Filtro_12!$A$5:$P$51,10,FALSE),0) -> 0 | M72: =IFERROR(VLOOKUP($A72,Filtro_12!$A$5:$P$51,11,FALSE),0) -> 0 | N72: =IFERROR(VLOOKUP($A72,Filtro_12!$A$5:$P$51,12,FALSE),0) -> 0 | O72: =IFERROR(VLOOKUP($A72,Filtro_12!$A$5:$P$51,13,FALSE),0) -> 0 | P72: =IFERROR(VLOOKUP($A72,Filtro_12!$A$5:$P$51,14,FALSE),0) -> 0
C73: Subtotal | D73: =SUM(E73:P73) -> 73 | E73: =SUM(E70:E72) -> 5 | F73: =SUM(F70:F72) -> 14 | G73: =SUM(G70:G72) -> 54
A74: 15901200 | B74: Alergia a la proteína de la leche de vaca | C74: Fórmula Extensamente Hidrolizada (FEH) | D74: =IFERROR(VLOOKUP($A74,Filtro_12!$A$5:$P$51,2,FALSE),0) -> 2,789 | E74: =IFERROR(VLOOKUP($A74,Filtro_12!$A$5:$P$51,3,FALSE),0) -> 120 | F74: =IFERROR(VLOOKUP($A74,Filtro_12!$A$5:$P$51,4,FALSE),0) -> 350 | G74: =IFERROR(VLOOKUP($A74,Filtro_12!$A$5:$P$51,5,FALSE),0) -> 1,084 | H74: =IFERROR(VLOOKUP($A74,Filtro_12!$A$5:$P$51,6,FALSE),0) -> 812 | I74: =IFERROR(VLOOKUP($A74,Filtro_12!$A$5:$P$51,7,FALSE),0) -> 393 | J74: =IFERROR(VLOOKUP($A74,Filtro_12!$A$5:$P$51,8,FALSE),0) -> 31 | K74: =IFERROR(VLOOKUP($A74,Filtro_12!$A$5:$P$51,9,FALSE),0) -> 0 | L74: =IFERROR(VLOOKUP($A74,Filtro_12!$A$5:$P$51,10,FALSE),0) -> 0 | M74: =IFERROR(VLOOKUP($A74,Filtro_12!$A$5:$P$51,11,FALSE),0) -> 0 | N74: =IFERROR(VLOOKUP($A74,Filtro_12!$A$5:$P$51,12,FALSE),0) -> 0 | O74: =IFERROR(VLOOKUP($A74,Filtro_12!$A$5:$P$51,13,FALSE),0) -> 0 | P74: =IFERROR(VLOOKUP($A74,Filtro_12!$A$5:$P$51,14,FALSE),0) -> 0
A75: 15901300 | C75: Fórmula Aminoacídica (FAA) | D75: =IFERROR(VLOOKUP($A75,Filtro_12!$A$5:$P$51,2,FALSE),0) -> 1,110 | E75: =IFERROR(VLOOKUP($A75,Filtro_12!$A$5:$P$51,3,FALSE),0) -> 92 | F75: =IFERROR(VLOOKUP($A75,Filtro_12!$A$5:$P$51,4,FALSE),0) -> 238 | G75: =IFERROR(VLOOKUP($A75,Filtro_12!$A$5:$P$51,5,FALSE),0) -> 494 | H75: =IFERROR(VLOOKUP($A75,Filtro_12!$A$5:$P$51,6,FALSE),0) -> 179 | I75: =IFERROR(VLOOKUP($A75,Filtro_12!$A$5:$P$51,7,FALSE),0) -> 96 | J75: =IFERROR(VLOOKUP($A75,Filtro_12!$A$5:$P$51,8,FALSE),0) -> 11 | K75: =IFERROR(VLOOKUP($A75,Filtro_12!$A$5:$P$51,9,FALSE),0) -> 0 | L75: =IFERROR(VLOOKUP($A75,Filtro_12!$A$5:$P$51,10,FALSE),0) -> 0 | M75: =IFERROR(VLOOKUP($A75,Filtro_12!$A$5:$P$51,11,FALSE),0) -> 0 | N75: =IFERROR(VLOOKUP($A75,Filtro_12!$A$5:$P$51,12,FALSE),0) -> 0 | O75: =IFERROR(VLOOKUP($A75,Filtro_12!$A$5:$P$51,13,FALSE),0) -> 0 | P75: =IFERROR(VLOOKUP($A75,Filtro_12!$A$5:$P$51,14,FALSE),0) -> 0
C76: Subtotal | D76: =SUM(E76:P76) -> 3,899 | E76: =SUM(E74:E75) -> 212 | F76: 588 | G76: 1,577 | H76: =SUM(H74:H75) -> 990 | I76: 489 | J76: 42 | K76: 0
B77: Total | D77: =SUM(E77:P77) -> 9,048 | E77: =+E61+E69+E73+E76 -> 268 | F77: 677 | G77: 2,035 | H77: 1,950 | I77: 1,405 | J77: 1,588 | K77: 1,028 | L77: =+L61+L69+L73+L76 -> 38 | M77: 0 | N77: 28 | O77: 23 | P77: 7
B79: Sección D: PNAC - Número de personas extrasistema que retiran
B80: Subprogramas | D80: Total | E80: Hombres | F80: Mujeres | G80: Menores a 6 años | N80: Gestantes | P80: Persona que amamanta a hijo/a menor a 12 meses
G81: 0 - 2 meses | H81: 3 - 5 meses | I81: 6 - 11 meses | J81: 12 - 17 meses | K81: 18 - 23 meses | L81: 24 - 47 meses | M81: 48 - 71 meses | N81: Normal, sobrepeso y obesas | O81: Bajo peso | P81: 0 a 5 meses con Lactancia Materna exclusiva | Q81: 0 a 5 meses Lactancia Materna + Fórmula Láctea | R81: 6 a 11 meses Lactancia Materna
A84: 15060100 | B84: Básico | D84: =IFERROR(VLOOKUP($A84,Filtro_12!$A$5:$P$51,2,FALSE),0) -> 2,584 | E84: =IFERROR(VLOOKUP($A84,Filtro_12!$A$5:$P$51,3,FALSE),0) -> 1,194 | F84: =IFERROR(VLOOKUP($A84,Filtro_12!$A$5:$P$51,4,FALSE),0) -> 1,372 | G84: =IFERROR(VLOOKUP($A84,Filtro_12!$A$5:$P$51,5,FALSE),0) -> 24 | H84: =IFERROR(VLOOKUP($A84,Filtro_12!$A$5:$P$51,6,FALSE),0) -> 42 | I84: =IFERROR(VLOOKUP($A84,Filtro_12!$A$5:$P$51,7,FALSE),0) -> 200 | J84: =IFERROR(VLOOKUP($A84,Filtro_12!$A$5:$P$51,8,FALSE),0) -> 482 | K84: =IFERROR(VLOOKUP($A84,Filtro_12!$A$5:$P$51,9,FALSE),0) -> 462 | L84: =IFERROR(VLOOKUP($A84,Filtro_12!$A$5:$P$51,10,FALSE),0) -> 772 | M84: =IFERROR(VLOOKUP($A84,Filtro_12!$A$5:$P$51,11,FALSE),0) -> 512 | N84: =IFERROR(VLOOKUP($A84,Filtro_12!$A$5:$P$51,12,FALSE),0) -> 43 | O84: =IFERROR(VLOOKUP($A84,Filtro_12!$A$5:$P$51,13,FALSE),0) -> 0 | P84: =IFERROR(VLOOKUP($A84,Filtro_12!$A$5:$P$51,14,FALSE),0) -> 19 | Q84: =IFERROR(VLOOKUP($A84,Filtro_12!$A$5:$P$51,15,FALSE),0) -> 21 | R84: =IFERROR(VLOOKUP($A84,Filtro_12!$A$5:$P$51,16,FALSE),0) -> 7 | S84: =AA84&AB84 -> * La suma del Total según grupo etario, gestantes y Personas que amamantan no pueden superar al Total por Sexo. | AA84: =IF(AF84=1,"* La suma del Total según grupo etario, gestantes y Personas que amamantan no pueden superar al Total por Sexo. ","") -> * La suma del Total según grupo etario, gestantes y Personas que amamantan no pueden superar al Total por Sexo. | AF84: =IF(SUM(E84:F84)<SUM(G84:M84,N84,P84:R84),1,0) -> 1
A85: 15060200 | B85: Refuerzo | D85: =IFERROR(VLOOKUP($A85,Filtro_12!$A$5:$P$51,2,FALSE),0) -> 34 | E85: =IFERROR(VLOOKUP($A85,Filtro_12!$A$5:$P$51,3,FALSE),0) -> 25 | F85: =IFERROR(VLOOKUP($A85,Filtro_12!$A$5:$P$51,4,FALSE),0) -> 10 | G85: =IFERROR(VLOOKUP($A85,Filtro_12!$A$5:$P$51,5,FALSE),0) -> 0 | H85: =IFERROR(VLOOKUP($A85,Filtro_12!$A$5:$P$51,6,FALSE),0) -> 0 | I85: =IFERROR(VLOOKUP($A85,Filtro_12!$A$5:$P$51,7,FALSE),0) -> 8 | J85: =IFERROR(VLOOKUP($A85,Filtro_12!$A$5:$P$51,8,FALSE),0) -> 7 | K85: =IFERROR(VLOOKUP($A85,Filtro_12!$A$5:$P$51,9,FALSE),0) -> 5 | L85: =IFERROR(VLOOKUP($A85,Filtro_12!$A$5:$P$51,10,FALSE),0) -> 3 | M85: =IFERROR(VLOOKUP($A85,Filtro_12!$A$5:$P$51,11,FALSE),0) -> 10 | N85: =IFERROR(VLOOKUP($A85,Filtro_12!$A$5:$P$51,12,FALSE),0) -> 0 | O85: =IFERROR(VLOOKUP($A85,Filtro_12!$A$5:$P$51,13,FALSE),0) -> 1 | P85: =IFERROR(VLOOKUP($A85,Filtro_12!$A$5:$P$51,14,FALSE),0) -> 0 | Q85: =IFERROR(VLOOKUP($A85,Filtro_12!$A$5:$P$51,15,FALSE),0) -> 0 | R85: =IFERROR(VLOOKUP($A85,Filtro_12!$A$5:$P$51,16,FALSE),0) -> 0 | S85: =AA85&AB85 ->  | AA85: =IF(AF85=1,"* La suma del Total según grupo etario, gestantes y Personas que amamantan no pueden superar al Total por Sexo. ","") ->  | AF85: =IF(D85<SUM(G85:M85,O85:R85),1,0) -> 0
A86: 15060600 | B86: Prematuros | D86: =IFERROR(VLOOKUP($A86,Filtro_12!$A$5:$P$51,2,FALSE),0) -> 14 | E86: =IFERROR(VLOOKUP($A86,Filtro_12!$A$5:$P$51,3,FALSE),0) -> 10 | F86: =IFERROR(VLOOKUP($A86,Filtro_12!$A$5:$P$51,4,FALSE),0) -> 4 | G86: =IFERROR(VLOOKUP($A86,Filtro_12!$A$5:$P$51,5,FALSE),0) -> 1 | H86: =IFERROR(VLOOKUP($A86,Filtro_12!$A$5:$P$51,6,FALSE),0) -> 3 | I86: =IFERROR(VLOOKUP($A86,Filtro_12!$A$5:$P$51,7,FALSE),0) -> 10 | J86: =IFERROR(VLOOKUP($A86,Filtro_12!$A$5:$P$51,8,FALSE),0) -> 0 | K86: =IFERROR(VLOOKUP($A86,Filtro_12!$A$5:$P$51,9,FALSE),0) -> 0 | L86: =IFERROR(VLOOKUP($A86,Filtro_12!$A$5:$P$51,10,FALSE),0) -> 0 | M86: =IFERROR(VLOOKUP($A86,Filtro_12!$A$5:$P$51,11,FALSE),0) -> 0 | N86: =IFERROR(VLOOKUP($A86,Filtro_12!$A$5:$P$51,12,FALSE),0) -> 0 | O86: =IFERROR(VLOOKUP($A86,Filtro_12!$A$5:$P$51,13,FALSE),0) -> 0 | P86: =IFERROR(VLOOKUP($A86,Filtro_12!$A$5:$P$51,14,FALSE),0) -> 0 | Q86: =IFERROR(VLOOKUP($A86,Filtro_12!$A$5:$P$51,15,FALSE),0) -> 0 | R86: =IFERROR(VLOOKUP($A86,Filtro_12!$A$5:$P$51,16,FALSE),0) -> 0 | AA86: =IF(AF86=1,"* El Total según grupo etario no puede superar al Total por Sexo. ","") ->  | AF86: =IF(D86<SUM(G86:M86),1,0) -> 0
A87: 15901400 | B87: Alergia a la Proteína de la leche de vaca | D87: =IFERROR(VLOOKUP($A87,Filtro_12!$A$5:$P$51,2,FALSE),0) -> 986 | E87: =IFERROR(VLOOKUP($A87,Filtro_12!$A$5:$P$51,3,FALSE),0) -> 578 | F87: =IFERROR(VLOOKUP($A87,Filtro_12!$A$5:$P$51,4,FALSE),0) -> 390 | G87: =IFERROR(VLOOKUP($A87,Filtro_12!$A$5:$P$51,5,FALSE),0) -> 61 | H87: =IFERROR(VLOOKUP($A87,Filtro_12!$A$5:$P$51,6,FALSE),0) -> 150 | I87: =IFERROR(VLOOKUP($A87,Filtro_12!$A$5:$P$51,7,FALSE),0) -> 395 | J87: =IFERROR(VLOOKUP($A87,Filtro_12!$A$5:$P$51,8,FALSE),0) -> 247 | K87: =IFERROR(VLOOKUP($A87,Filtro_12!$A$5:$P$51,9,FALSE),0) -> 121 | L87: =IFERROR(VLOOKUP($A87,Filtro_12!$A$5:$P$51,10,FALSE),0) -> 12 | M87: =IFERROR(VLOOKUP($A87,Filtro_12!$A$5:$P$51,11,FALSE),0) -> 0 | N87: =IFERROR(VLOOKUP($A87,Filtro_12!$A$5:$P$51,12,FALSE),0) -> 0 | O87: =IFERROR(VLOOKUP($A87,Filtro_12!$A$5:$P$51,13,FALSE),0) -> 0 | P87: =IFERROR(VLOOKUP($A87,Filtro_12!$A$5:$P$51,14,FALSE),0) -> 0 | Q87: =IFERROR(VLOOKUP($A87,Filtro_12!$A$5:$P$51,15,FALSE),0) -> 0 | R87: =IFERROR(VLOOKUP($A87,Filtro_12!$A$5:$P$51,16,FALSE),0) -> 0 | AF87: 0
B88: Total | D88: =SUM(E88:F88) -> 3,583 | E88: =SUM(E84:E87) -> 1,807 | F88: 1,776 | G88: =SUM(G84:G87) -> 86 | H88: 195 | I88: 613 | J88: 736 | K88: 588 | L88: 787 | M88: 522 | N88: =SUM(N84:N87) -> 43 | O88: =SUM(O84:O87) -> 1 | P88: =SUM(P84:P85) -> 19 | Q88: =SUM(Q84:Q85) -> 21 | R88: =SUM(R84:R85) -> 7
A89: 15900090 | B89: Programas Sociales (*) | D89: =IFERROR(VLOOKUP($A89,Filtro_12!A5:P51,2,FALSE),0) -> 0 | E89: =IFERROR(VLOOKUP($A89,Filtro_12!B5:Q51,2,FALSE),0) -> 0 | F89: =IFERROR(VLOOKUP($A89,Filtro_12!C5:R51,2,FALSE),0) -> 0 | G89: =IFERROR(VLOOKUP($A89,Filtro_12!D5:S51,2,FALSE),0) -> 0 | H89: =IFERROR(VLOOKUP($A89,Filtro_12!E5:T51,2,FALSE),0) -> 0 | I89: =IFERROR(VLOOKUP($A89,Filtro_12!F5:U51,2,FALSE),0) -> 0 | J89: =IFERROR(VLOOKUP($A89,Filtro_12!G5:V51,2,FALSE),0) -> 0 | K89: =IFERROR(VLOOKUP($A89,Filtro_12!H5:W51,2,FALSE),0) -> 0 | L89: =IFERROR(VLOOKUP($A89,Filtro_12!I5:X51,2,FALSE),0) -> 0 | M89: =IFERROR(VLOOKUP($A89,Filtro_12!J5:Y51,2,FALSE),0) -> 0 | N89: =IFERROR(VLOOKUP($A89,#REF!,12,FALSE),0) -> 0 | O89: =IFERROR(VLOOKUP($A89,#REF!,13,FALSE),0) -> 0 | P89: =IFERROR(VLOOKUP($A89,#REF!,14,FALSE),0) -> 0 | Q89: =IFERROR(VLOOKUP($A89,#REF!,15,FALSE),0) -> 0 | R89: =IFERROR(VLOOKUP($A89,#REF!,16,FALSE),0) -> 0 | S89: =AA89&AC89&AB89 ->  | AA89: =IF(AF89=1,"* La suma del Total según grupo etario, gestantes y Personas que amamantan no pueden superar al Total por Sexo. ","") ->  | AB89: =IF(AG89=1,"* Compruebe que lo ingresado en Programas Sociales no supere al Total registrado en los subprogramas. ","") ->  | AC89: =IF(AH89=1,"* El Total registrado en Programas Sociales no puede ser mayor al Total registrado en los subprogramas. ","") ->  | AF89: =IF(SUM(E89:F89)<SUM(G89:R89),1,0) -> 0 | AG89: =IF(OR(E89>E88,F89>F88,G89>G88,H89>H88,I89>I88,J89>J88,K89>K88,L89>L88,M89>M88,N89>N88,O89>O88,P89>P88,Q89>Q88,R89>R88),1,0) -> 0 | AH89: =IF(D89>D88,1,0) -> 0
B90: Nota: (*) Información referencial, ya incluida en los subprogramas.
B92: Sección E: Existencia y movimiento total de productos (Intrasistema y Extrasistema)
B93: Productos | D93: Saldo Mes Anterior | E93: Ingresos | G93: Total Disponible | H93: Egresos | O93: Saldo mes siguiente
E94: Proveedor/Operador Logístico | F94: Por traspaso | H94: Distribuido a Población Beneficiaria | K94: Mermas (Incluye faltantes) | L94: Otros (demostraciones, donaciones, etc.) | M94: Traspaso | N94: Total Egresos
H95: Intrasistema | I95: Extrasistema | J95: Total
B96: Leche Purita Fortificada (LPF) | G96: =SUM(D96:F96) -> 0 | H96: =D13+D20 -> 0 | I96: =+D55+D62 -> 0 | J96: =+H96+I96 -> 0 | N96: =SUM(J96:M96) -> 0 | O96: =G96-N96 -> 0
B97: Purita +Pro 1 | G97: =SUM(D97:F97) -> 0 | H97: =D14+D21 -> 106,142 | I97: =+D56+D63 -> 2,347 | J97: 108,489 | N97: =SUM(J97:M97) -> 108,489 | O97: =G97-N97 -> (108,489)
B98: Purita Cereal (PC) | G98: 0 | H98: =D15+D22 -> 0 | I98: =+D57+D64 -> 0 | J98: 0 | N98: =SUM(J98:M98) -> 0 | O98: 0
B99: Purita +Pro 2 | G99: 0 | H99: =D16+D23 -> 164,158 | I99: =+D58+D65 -> 2,537 | J99: 166,695 | N99: 166,695 | O99: (166,695)
B100: Mi Sopita (MS) | G100: 0 | H100: =D24+D30 -> 7,288 | I100: =+D66+D72 -> 51 | J100: 7,339 | N100: 7,339 | O100: (7,339)
B101: Purita Mamá (PM) | G101: 0 | H101: =+D17+D25 -> 44,502 | I101: =+D59+D67 -> 92 | J101: 44,594 | N101: 44,594 | O101: (44,594)
B102: Fórmula de Inicio (FI) | G102: =SUM(D102:F102) -> 0 | H102: =D18+D26+D29 -> 69,161 | I102: =+D60+D68+D71 -> 49 | J102: 69,210 | N102: 69,210 | O102: (69,210)
B103: Fórmula Prematuros | G103: =SUM(D103:F103) -> 0 | H103: =D28 -> 1,987 | I103: =D70 -> 73 | J103: =+H103+I103 -> 2,060 | N103: 2,060 | O103: (2,060)
B104: Fórmula Extensamente Hidrolizada (FEH) | G104: 0 | H104: =D32 -> 6,161 | I104: =D74 -> 2,789 | J104: =+H104+I104 -> 8,950 | N104: 8,950 | O104: (8,950)
B105: Fórmula aminoacídica (FAA) | G105: 0 | H105: =D33 -> 3,221 | I105: =D75 -> 1,110 | J105: 4,332 | N105: 4,332 | O105: (4,332)
B106: Total (Kg) | D106: =SUM(D96:D105) -> 0 | E106: =SUM(E96:E105) -> 0 | F106: 0 | G106: 0 | H106: 402,620 | I106: 9,048 | J106: 411,668 | K106: 0 | L106: 0 | M106: 0 | N106: 411,668 | O106: =SUM(O96:O105) -> (411,668)
A111: CODIGOS ELIMINADOS
A112: 15080017.00
A113: 15080021.00
B159: =SUM(C8:R106) -> 5292324.4 | AG159: =SUM(AF1:AJ158) -> 2

Sheet D16
B1: SERVICIO DE SALUD
B2: =CONCATENATE("COMUNA: ",[1]NOMBRE!$B$2," ","( ",[1]NOMBRE!$C$2,[1]NOMBRE!$D$2,[1]NOMBRE!$E$2,[1]NOMBRE!$F$2,[1]NOMBRE!$G$2," )") -> COMUNA: 0 ( 00000 )
B3: =CONCATENATE("ESTABLECIMIENTO/ESTRATEGIA: ",[1]NOMBRE!$B$3," ","( ",[1]NOMBRE!$C$3,[1]NOMBRE!$D$3,[1]NOMBRE!$E$3,[1]NOMBRE!$F$3,[1]NOMBRE!$G$3,[1]NOMBRE!$H$3," )") -> ESTABLECIMIENTO/ESTRATEGIA: 0 ( 000000 )
B4: =CONCATENATE("MES: ",[1]NOMBRE!$B$6," ","( ",[1]NOMBRE!$C$6,[1]NOMBRE!$D$6," )") -> MES: 0 ( 00 )
B5: =CONCATENATE("AÑO: ",[1]NOMBRE!$B$7) -> AÑO: 2024
B7: REM-D.16. Programa de Alimentación Complementaria del Adulto Mayor (PACAM)
B9: Sección A: PACAM - Cantidad distribuida (kg)
B10: Grupo Programático | C10: Sopa/Crema | D10: Bebida Láctea
A11: 16090300 | B11: 70 años y más (independiente del motivo de ingreso) | C11: =IFERROR(VLOOKUP($A11,Filtro_12!$A$5:$P$51,2,FALSE),0) -> 305,509 | D11: =IFERROR(VLOOKUP($A11,Filtro_12!$A$5:$P$51,3,FALSE),0) -> 305,509 | E11: =$AB11&" "&$AC11 ->  | AB11: =IF(C11<>D11,"La cantidad distribuída de Sopa/Crema es distinta a la cantidad distribuída de Bebida Láctea.- ","") -> 
A12: 16200210 | B12: 65 - 69 años con alteración de la funcionalidad | C12: =IFERROR(VLOOKUP($A12,Filtro_12!$A$5:$P$51,2,FALSE),0) -> 24,832 | D12: =IFERROR(VLOOKUP($A12,Filtro_12!$A$5:$P$51,3,FALSE),0) -> 24,832 | E12: =$AB12&" "&$AC12 ->  | AB12: =IF(C12<>D12,"La cantidad distribuída de Sopa/Crema es distinta a la cantidad distribuída de Bebida Láctea.- ","") -> 
A13: 16090500 | B13: 65 - 69 años en programa social (Vínculos, Familia, Calle u otro) | C13: =IFERROR(VLOOKUP($A13,Filtro_12!$A$5:$P$51,2,FALSE),0) -> 463 | D13: =IFERROR(VLOOKUP($A13,Filtro_12!$A$5:$P$51,3,FALSE),0) -> 463 | E13: =$AB13&" "&$AC13 -> 
A14: 16090600 | B14: 60 - 69 años con tuberculosis | C14: =IFERROR(VLOOKUP($A14,Filtro_12!$A$5:$P$51,2,FALSE),0) -> 102 | D14: =IFERROR(VLOOKUP($A14,Filtro_12!$A$5:$P$51,3,FALSE),0) -> 102 | E14: =$AB14&" "&$AC14 -> 
A15: 16090100 | B15: 60 - 69 años en ELEAM autorizado o similar | C15: =IFERROR(VLOOKUP($A15,Filtro_12!$A$5:$P$51,2,FALSE),0) -> 2,879 | D15: =IFERROR(VLOOKUP($A15,Filtro_12!$A$5:$P$51,3,FALSE),0) -> 2,879 | E15: =$AB15&" "&$AC15 -> 
B16: TOTAL | C16: =SUM(C11:C15) -> 333,785 | D16: =SUM(D11:D15) -> 333,785
B18: Sección B: PACAM - Número de personas que retiran
B19: Grupo Programático | C19: Sopa/Crema - Bebida Láctea
C20: Total | D20: Total Hombres | E20: Total Mujeres
A21: 16100300 | B21: 70 años y más (independiente del motivo de ingreso | C21: =SUM(D21:E21) -> 304182 | D21: =IFERROR(VLOOKUP($A21,Filtro_12!$A$5:$P$51,3,FALSE),0) -> 128,039 | E21: =IFERROR(VLOOKUP($A21,Filtro_12!$A$5:$P$51,4,FALSE),0) -> 176,143 | F21: =$AA21 -> No olvide que el Nº de personas que retiran debe ser igual al promedio de Kilos que retiran en Seccion A.- | AA21: =IF(((C11+D11)/2)<>(D21+E21)," No olvide que el Nº de personas que retiran debe ser igual al promedio de Kilos que retiran en Seccion A.-","") -> No olvide que el Nº de personas que retiran debe ser igual al promedio de Kilos que retiran en Seccion A.- | AC21: =IF($D21+$E21=0,"",IF($C11+$D11="",IF($D21+$E21="",0,1),"")) ->  | AD21: =IF(D21+E21=0,"",IF(C11+D11=0,"",IF(((C11+D11)/2)<>D21+E21,1,0))) -> 1
A22: 16200220 | B22: 65 - 69 años con alteración de la funcionalidad | C22: =SUM(D22:E22) -> 24680 | D22: =IFERROR(VLOOKUP($A22,Filtro_12!$A$5:$P$51,3,FALSE),0) -> 9,429 | E22: =IFERROR(VLOOKUP($A22,Filtro_12!$A$5:$P$51,4,FALSE),0) -> 15,251 | F22: =$AA22 -> No olvide que el Nº de personas que retiran debe ser igual al promedio de Kilos que retiran en Seccion A.- | AA22: =IF(((C12+D12)/2)<>(D22+E22)," No olvide que el Nº de personas que retiran debe ser igual al promedio de Kilos que retiran en Seccion A.-","") -> No olvide que el Nº de personas que retiran debe ser igual al promedio de Kilos que retiran en Seccion A.- | AC22: =IF($D22+$E22=0,"",IF($C12+$D12="",IF($D22+$E22="",0,1),"")) ->  | AD22: =IF(D22+E22=0,"",IF(C12+D12=0,"",IF(((C12+D12)/2)<>D22+E22,1,0))) -> 1
A23: 16100600 | B23: 65 - 69 años en programa social (Vínculos, Familia, Calle u otro) | C23: =SUM(D23:E23) -> 463 | D23: =IFERROR(VLOOKUP($A23,Filtro_12!$A$5:$P$51,3,FALSE),0) -> 138 | E23: =IFERROR(VLOOKUP($A23,Filtro_12!$A$5:$P$51,4,FALSE),0) -> 325 | F23: =$AA23 ->  | AA23: =IF(((C13+D13)/2)<>(D23+E23)," No olvide que el Nº de personas que retiran debe ser igual al promedio de Kilos que retiran en Seccion A.-","") ->  | AC23: =IF($D23+$E23=0,"",IF($C13+$D13="",IF($D23+$E23="",0,1),"")) ->  | AD23: =IF(D23+E23=0,"",IF(C13+D13=0,"",IF(((C13+D13)/2)<>D23+E23,1,0))) -> 0
A24: 16100700 | B24: 60 - 69 años con tuberculosis | C24: =SUM(D24:E24) -> 101 | D24: =IFERROR(VLOOKUP($A24,Filtro_12!$A$5:$P$51,3,FALSE),0) -> 75 | E24: =IFERROR(VLOOKUP($A24,Filtro_12!$A$5:$P$51,4,FALSE),0) -> 26 | F24: =$AA24 -> No olvide que el Nº de personas que retiran debe ser igual al promedio de Kilos que retiran en Seccion A.- | AA24: =IF(((C14+D14)/2)<>(D24+E24)," No olvide que el Nº de personas que retiran debe ser igual al promedio de Kilos que retiran en Seccion A.-","") -> No olvide que el Nº de personas que retiran debe ser igual al promedio de Kilos que retiran en Seccion A.- | AC24: =IF($D24+$E24=0,"",IF($C14+$D14="",IF($D24+$E24="",0,1),"")) ->  | AD24: =IF(D24+E24=0,"",IF(C14+D14=0,"",IF(((C14+D14)/2)<>D24+E24,1,0))) -> 1
A25: 16100100 | B25: 60 - 69 años en ELEAM autorizado o similar | C25: =SUM(D25:E25) -> 2742 | D25: =IFERROR(VLOOKUP($A25,Filtro_12!$A$5:$P$51,3,FALSE),0) -> 1,283 | E25: =IFERROR(VLOOKUP($A25,Filtro_12!$A$5:$P$51,4,FALSE),0) -> 1,459 | F25: =$AA25 -> No olvide que el Nº de personas que retiran debe ser igual al promedio de Kilos que retiran en Seccion A.- | AA25: =IF(((C15+D15)/2)<>(D25+E25)," No olvide que el Nº de personas que retiran debe ser igual al promedio de Kilos que retiran en Seccion A.-","") -> No olvide que el Nº de personas que retiran debe ser igual al promedio de Kilos que retiran en Seccion A.- | AC25: =IF($D25+$E25=0,"",IF($C15+$D15="",IF($D25+$E25="",0,1),"")) ->  | AD25: =IF(D25+E25=0,"",IF(C15+D15=0,"",IF(((C15+D15)/2)<>D25+E25,1,0))) -> 1
B26: TOTAL | C26: =SUM(C21:C25) -> 332,168 | D26: =SUM(D21:D25) -> 138,964 | E26: =SUM(E21:E25) -> 193,204
B28: Sección C: Existencia y movimiento de productos
B29: Productos | C29: Saldo mes anterior | D29: Ingresos | F29: Total disponible | G29: Egresos | L29: Saldo mes siguiente
D30: Proveedor/Operador Logístico | E30: Por traspaso | G30: Distribuido a población beneficiaria | H30: Mermas (Incluye faltantes) | I30: Otros: (demostraciones, donaciones, etc.) | J30: Traspaso | K30: Total egresos
B32: Sopa/Crema | C32: =IFERROR(VLOOKUP($A32,Filtro_12!A5:P51,2,FALSE),0) -> 0.0 | D32: =IFERROR(VLOOKUP($A32,Filtro_12!B5:Q51,2,FALSE),0) -> 0.0 | E32: =IFERROR(VLOOKUP($A32,Filtro_12!C5:R51,2,FALSE),0) -> 0.0 | F32: =SUM(C32:E32) -> 0.0 | G32: =C16 -> 333,785.0 | H32: =IFERROR(VLOOKUP($A32,Filtro_12!F5:U51,2,FALSE),0) -> 8.0 | I32: =IFERROR(VLOOKUP($A32,Filtro_12!A5:P51,2,FALSE),0) -> 0.0 | J32: =IFERROR(VLOOKUP($A32,Filtro_12!A5:P51,2,FALSE),0) -> 0.0 | K32: =SUM(G32:J32) -> 333793.0 | L32: =F32-K32 -> -333793.0
B33: Bebida Láctea | C33: =IFERROR(VLOOKUP($A33,Filtro_12!A6:P52,2,FALSE),0) -> 0 | D33: =IFERROR(VLOOKUP($A33,Filtro_12!B6:Q52,2,FALSE),0) -> 0 | E33: =IFERROR(VLOOKUP($A33,Filtro_12!C6:R52,2,FALSE),0) -> 0 | F33: =SUM(C33:E33) -> 0 | G33: =D16 -> 333785 | H33: =IFERROR(VLOOKUP($A33,Filtro_12!F6:U52,2,FALSE),0) -> 8 | I33: =IFERROR(VLOOKUP($A33,Filtro_12!A6:P52,2,FALSE),0) -> 0 | J33: =IFERROR(VLOOKUP($A33,Filtro_12!A6:P52,2,FALSE),0) -> 0 | K33: =SUM(G33:J33) -> 333793 | L33: =F33-K33 -> -333793
B35: Sección D: PACAM - Número de personas que retiran, pertenecientes al PRAIS (incluidos en Sección B)
B36: Grupo Programático | C36: Sopa/Crema - Bebida Láctea
C37: Total | D37: Total Hombres | E37: Total Mujeres
A38: 16200100 | B38: 70 años y más (independiente del motivo de ingreso | C38: =SUM(D38:E38) -> 6874 | D38: =IFERROR(VLOOKUP($A38,Filtro_12!A5:P51,3,FALSE),0) -> 3457 | E38: =IFERROR(VLOOKUP($A38,Filtro_12!A5:P51,4,FALSE),0) -> 3417
A39: 16200230 | B39: 65 - 69 años con alteración de la funcionalidad | C39: =SUM(D39:E39) -> 375 | D39: =IFERROR(VLOOKUP($A39,Filtro_12!A6:P52,3,FALSE),0) -> 148 | E39: =IFERROR(VLOOKUP($A39,Filtro_12!A6:P52,4,FALSE),0) -> 227
A40: 16200240 | B40: 65 - 69 años en programa social (Vínculos, Familia, Calle u otro) | C40: 5 | D40: =IFERROR(VLOOKUP($A40,Filtro_12!A7:P53,3,FALSE),0) -> 5 | E40: =IFERROR(VLOOKUP($A40,Filtro_12!B7:Q53,3,FALSE),0) -> 0
A41: 16200200 | B41: 60 - 69 años con tuberculosis | C41: =SUM(D41:E41) -> 0 | D41: =IFERROR(VLOOKUP($A41,Filtro_12!A8:P54,3,FALSE),0) -> 0 | E41: =IFERROR(VLOOKUP($A41,Filtro_12!B8:Q54,3,FALSE),0) -> 0
A42: 16200250 | B42: 60 - 69 años en ELEAM autorizado o similar | C42: 0 | D42: =IFERROR(VLOOKUP($A42,Filtro_12!A9:P55,3,FALSE),0) -> 0 | E42: =IFERROR(VLOOKUP($A42,Filtro_12!B9:Q55,3,FALSE),0) -> 0
B43: TOTAL | C43: =SUM(C38:C42) -> 7,254 | D43: =SUM(D38:D42) -> 3,610 | E43: =SUM(E38:E42) -> 3,644
B209: =SUM(B9:O43) -> 3360414 | AE209: =SUM(AE1:AF208) -> 0

Sheet Filtro_12
A1: Comuna | B1: (Todas)
A2: Establecimiento | B2: (Todas)
A3: Mes | B3: (Todas)
A5: Etiquetas de fila | B5: Suma de Col01 | C5: Suma de Col02 | D5: Suma de Col03 | E5: Suma de Col04 | F5: Suma de Col05 | G5: Suma de Col06 | H5: Suma de Col07 | I5: Suma de Col08 | J5: Suma de Col09 | K5: Suma de Col10 | L5: Suma de Col11 | M5: Suma de Col12 | N5: Suma de Col13 | O5: Suma de Col14 | P5: Suma de Col15
A6: 15010500 | B6: 7266 | D6: 26 | E6: 888 | F6: 894 | G6: 804 | H6: 2850 | I6: 1804
A7: 15020500 | B7: 51 | D7: 0 | E7: 10 | F7: 12 | G7: 10 | H7: 6 | I7: 13
A8: 15030100 | B8: 1986.8 | C8: 588 | D8: 666.4 | E8: 732.4
A9: 15040100 | B9: 73.2 | C9: 4.8 | D9: 14.4 | E9: 54
A10: 15050100 | B10: 191470 | C10: 79227 | D10: 111569 | E10: 2366 | F10: 5029 | G10: 14174 | H10: 24724 | I10: 25137 | J10: 45130 | K10: 36884 | L10: 21598 | N10: 6388 | O10: 3380 | P10: 6659
A11: 15050200 | B11: 4138 | C11: 2227 | D11: 1815 | E11: 92 | F11: 140 | G11: 449 | H11: 450 | I11: 398 | J11: 1439 | K11: 888 | M11: 231 | N11: 26 | O11: 15 | P11: 10
A12: 15050500 | B12: 589 | C12: 289 | D12: 293 | E12: 162 | F12: 177 | G12: 250
A13: 15060100 | B13: 2584 | C13: 1194 | D13: 1372 | E13: 24 | F13: 42 | G13: 200 | H13: 482 | I13: 462 | J13: 772 | K13: 512 | L13: 43 | N13: 19 | O13: 21 | P13: 7
A14: 15060200 | B14: 34 | C14: 25 | D14: 10 | E14: 0 | F14: 0 | G14: 8 | H14: 7 | I14: 5 | J14: 3 | K14: 10 | M14: 1 | N14: 0 | O14: 0 | P14: 0
A15: 15060600 | B15: 14 | C15: 10 | D15: 4 | E15: 1 | F15: 3 | G15: 10
A16: 15080008 | B16: 43720.5 | J16: 21207.5 | L16: 12431 | M16: 3407 | N16: 6675
A17: 15080009 | B17: 781.5 | K17: 674.5 | L17: 73 | M17: 20 | N17: 14
A18: 15080010 | B18: 91 | J18: 35 | L18: 27 | M18: 23 | N18: 6
A19: 15080011 | B19: 1 | N19: 1
A20: 15080012 | B20: 22 | D20: 0 | E20: 22
A21: 15080014 | B21: 99764 | F21: 49544 | G21: 50220
A22: 15080015 | B22: 164158 | H22: 90506 | I22: 73031 | J22: 673 | L22: 250 | M22: 25 | N22: 33
A23: 15080016 | B23: 6378 | F23: 898 | G23: 800 | H23: 2876 | I23: 1804
A24: 15080017 | B24: 15 | K24: 15 | L24: 0 | M24: 0 | N24: 0
A25: 15080018 | B25: 2281 | C25: 34 | D25: 62 | E25: 363 | F25: 930 | G25: 892
A26: 15080019 | B26: 2537 | H26: 1534 | I26: 999 | J26: 3 | L26: 1 | M26: 0 | N26: 0
A27: 15080020 | B27: 66 | C27: 0 | D27: 0 | E27: 12 | F27: 18 | G27: 14 | H27: 6 | I27: 16
A28: 15900010 | B28: 66461.5 | C28: 5777.4 | D28: 15050.7 | E28: 45633.4
A29: 15900020 | B29: 2103.3 | C29: 226.8 | D29: 469.9 | E29: 1406.6
A30: 15900030 | B30: 6161.2 | C30: 356.4 | D30: 812.4 | E30: 1994 | F30: 1756 | G30: 999.6 | H30: 190.8 | I30: 52
A31: 15900040 | B31: 3221.2 | C31: 177.2 | D31: 496.8 | E31: 1235.2 | F31: 749.6 | G31: 442.4 | H31: 108 | I31: 12
A32: 15900050 | B32: 2535 | C32: 1259 | D32: 1179 | E32: 163 | F32: 350 | G32: 868 | H32: 659 | I32: 388 | J32: 91 | K32: 16
A33: 15900070 | B33: 48.6 | C33: 17.1 | D33: 12.6 | E33: 18.9
A34: 15901200 | B34: 2788.8 | C34: 119.6 | D34: 350 | E34: 1083.6 | F34: 811.6 | G34: 392.8 | H34: 31.2 | I34: 0
A35: 15901300 | B35: 1110.4 | C35: 92.4 | D35: 238 | E35: 493.6 | F35: 178.8 | G35: 96.4 | H35: 11.2 | I35: 0
A36: 15901400 | B36: 986 | C36: 578 | D36: 390 | E36: 61 | F36: 150 | G36: 395 | H36: 247 | I36: 121 | J36: 12 | K36: 0
A37: 15901500 | B37: 596.3 | C37: 35 | D37: 133.7 | E37: 427.6
A38: 16090100 | B38: 2879 | C38: 2879
A39: 16090300 | B39: 305509 | C39: 305509
A40: 16090500 | B40: 463 | C40: 463
A41: 16090600 | B41: 102 | C41: 102
A42: 16100100 | B42: 2742 | C42: 1283 | D42: 1459
A43: 16100300 | B43: 304180 | C43: 128039 | D43: 176143
A44: 16100600 | B44: 463 | C44: 138 | D44: 325
A45: 16100700 | B45: 101 | C45: 75 | D45: 26
A46: 16200100 | B46: 6874 | C46: 3457 | D46: 3417
A47: 16200210 | B47: 24832 | C47: 24832
A48: 16200220 | B48: 24680 | C48: 9429 | D48: 15251
A49: 16200230 | B49: 375 | C49: 148 | D49: 227
A50: 16200240 | B50: 5 | C50: 5 | D50: 0
A51: Total general | B51: 1287238.3 | C51: 568596.7 | D51: 331812.9 | E51: 57243.3 | F51: 61683 | G51: 71025.2 | H51: 124688.2 | I51: 104242 | J51: 69365.5 | K51: 38999.5 | L51: 34423 | M51: 3707 | N51: 13162 | O51: 3416 | P51: 6676

Sheet Hoja1 (hidden)
A1: Comuna | B1: (Todas)
A2: Establecimiento | B2: (Todas)
A3: Mes | B3: (Todas)
A5: Etiquetas de fila | B5: Suma de Col01 | C5: Suma de Col02 | D5: Suma de Col03 | E5: Suma de Col04 | F5: Suma de Col05 | G5: Suma de Col06 | H5: Suma de Col07 | I5: Suma de Col08 | J5: Suma de Col09 | K5: Suma de Col10 | L5: Suma de Col11 | M5: Suma de Col12 | N5: Suma de Col13 | O5: Suma de Col14 | P5: Suma de Col15
A6: 15010500 | B6: 7266 | D6: 26 | E6: 888 | F6: 894 | G6: 804 | H6: 2850 | I6: 1804
A7: 15020500 | B7: 51 | D7: 0 | E7: 10 | F7: 12 | G7: 10 | H7: 6 | I7: 13
A8: 15030100 | B8: 1986.8 | C8: 588 | D8: 666.4 | E8: 732.4
A9: 15040100 | B9: 73.2 | C9: 4.8 | D9: 14.4 | E9: 54
A10: 15050100 | B10: 191470 | C10: 79227 | D10: 111569 | E10: 2366 | F10: 5029 | G10: 14174 | H10: 24724 | I10: 25137 | J10: 45130 | K10: 36884 | L10: 21598 | N10: 6388 | O10: 3380 | P10: 6659
A11: 15050200 | B11: 4138 | C11: 2227 | D11: 1815 | E11: 92 | F11: 140 | G11: 449 | H11: 450 | I11: 398 | J11: 1439 | K11: 888 | M11: 231 | N11: 26 | O11: 15 | P11: 10
A12: 15050500 | B12: 589 | C12: 289 | D12: 293 | E12: 162 | F12: 177 | G12: 250
A13: 15060100 | B13: 2584 | C13: 1194 | D13: 1372 | E13: 24 | F13: 42 | G13: 200 | H13: 482 | I13: 462 | J13: 772 | K13: 512 | L13: 43 | N13: 19 | O13: 21 | P13: 7
A14: 15060200 | B14: 34 | C14: 25 | D14: 10 | E14: 0 | F14: 0 | G14: 8 | H14: 7 | I14: 5 | J14: 3 | K14: 10 | M14: 1 | N14: 0 | O14: 0 | P14: 0
A15: 15060600 | B15: 14 | C15: 10 | D15: 4 | E15: 1 | F15: 3 | G15: 10
A16: 15080008 | B16: 43720.5 | J16: 21207.5 | L16: 12431 | M16: 3407 | N16: 6675
A17: 15080009 | B17: 781.5 | K17: 674.5 | L17: 73 | M17: 20 | N17: 14
A18: 15080010 | B18: 91 | J18: 35 | L18: 27 | M18: 23 | N18: 6
A19: 15080011 | B19: 1 | N19: 1
A20: 15080012 | B20: 22 | D20: 0 | E20: 22
A21: 15080014 | B21: 99764 | F21: 49544 | G21: 50220
A22: 15080015 | B22: 164158 | H22: 90506 | I22: 73031 | J22: 673 | L22: 250 | M22: 25 | N22: 33
A23: 15080016 | B23: 6378 | F23: 898 | G23: 800 | H23: 2876 | I23: 1804
A24: 15080017 | B24: 15 | K24: 15 | L24: 0 | M24: 0 | N24: 0
A25: 15080018 | B25: 2281 | C25: 34 | D25: 62 | E25: 363 | F25: 930 | G25: 892
A26: 15080019 | B26: 2537 | H26: 1534 | I26: 999 | J26: 3 | L26: 1 | M26: 0 | N26: 0
A27: 15080020 | B27: 66 | C27: 0 | D27: 0 | E27: 12 | F27: 18 | G27: 14 | H27: 6 | I27: 16
A28: 15900010 | B28: 66461.5 | C28: 5777.4 | D28: 15050.7 | E28: 45633.4
A29: 15900020 | B29: 2103.3 | C29: 226.8 | D29: 469.9 | E29: 1406.6
A30: 15900030 | B30: 6161.2 | C30: 356.4 | D30: 812.4 | E30: 1994 | F30: 1756 | G30: 999.6 | H30: 190.8 | I30: 52
A31: 15900040 | B31: 3221.2 | C31: 177.2 | D31: 496.8 | E31: 1235.2 | F31: 749.6 | G31: 442.4 | H31: 108 | I31: 12
A32: 15900050 | B32: 2535 | C32: 1259 | D32: 1179 | E32: 163 | F32: 350 | G32: 868 | H32: 659 | I32: 388 | J32: 91 | K32: 16
A33: 15900070 | B33: 48.6 | C33: 17.1 | D33: 12.6 | E33: 18.9
A34: 15901200 | B34: 2788.8 | C34: 119.6 | D34: 350 | E34: 1083.6 | F34: 811.6 | G34: 392.8 | H34: 31.2 | I34: 0
A35: 15901300 | B35: 1110.4 | C35: 92.4 | D35: 238 | E35: 493.6 | F35: 178.8 | G35: 96.4 | H35: 11.2 | I35: 0
A36: 15901400 | B36: 986 | C36: 578 | D36: 390 | E36: 61 | F36: 150 | G36: 395 | H36: 247 | I36: 121 | J36: 12 | K36: 0
A37: 15901500 | B37: 596.3 | C37: 35 | D37: 133.7 | E37: 427.6
A38: 16090100 | B38: 2879 | C38: 2879
A39: 16090300 | B39: 305509 | C39: 305509
A40: 16090500 | B40: 463 | C40: 463
A41: 16090600 | B41: 102 | C41: 102
A42: 16100100 | B42: 2742 | C42: 1283 | D42: 1459
A43: 16100300 | B43: 304180 | C43: 128039 | D43: 176143
A44: 16100600 | B44: 463 | C44: 138 | D44: 325
A45: 16100700 | B45: 101 | C45: 75 | D45: 26
A46: 16200100 | B46: 6874 | C46: 3457 | D46: 3417
A47: 16200210 | B47: 24832 | C47: 24832
A48: 16200220 | B48: 24680 | C48: 9429 | D48: 15251
A49: 16200230 | B49: 375 | C49: 148 | D49: 227
A50: 16200240 | B50: 5 | C50: 5 | D50: 0
A51: Total general | B51: 1287238.3 | C51: 568596.7 | D51: 331812.9 | E51: 57243.3 | F51: 61683 | G51: 71025.2 | H51: 124688.2 | I51: 104242 | J51: 69365.5 | K51: 38999.5 | L51: 34423 | M51: 3707 | N51: 13162 | O51: 3416 | P51: 6676

Sheet BBDD (hidden)
A1: Mes | B1: IdServicio | C1: Ano | D1: IdEstablecimiento | E1: CodigoPrestacion | F1: Comuna | G1: Establecimiento | H1: fechaIngreso | I1: Col01 | J1: Col02 | K1: Col03 | L1: Col04 | M1: Col05 | N1: Col06 | O1: Col07 | P1: Col08 | Q1: Col09 | R1: Col10 | S1: Col11 | T1: Col12 | U1: Col13 | V1: Col14 | W1: Col15 | X1: Col16 | Y1: Col17 | Z1: Col18 | AA1: Col19 | AB1: Col20 | AC1: Col21 | AD1: Col22 | AE1: Col23 | AF1: Col24 | AG1: Col25 | AH1: Col26 | AI1: Col27 | AJ1: Col28 | AK1: Col29 | AL1: Col30 | AM1: Col31 | AN1: Col32 | AO1: Col33 | AP1: Col34 | AQ1: Col35 | AR1: Col36 | AS1: Col37 | AT1: Col38 | AU1: Col39 | AV1: Col40 | AW1: Col41 | AX1: col42 | AY1: col43 | AZ1: col44 | BA1: col45 | BB1: col46 | BC1: col47 | BD1: col48 | BE1: col49 | BF1: col50
A2: 10 | B2: 5 | C2: 2024 | D2: 105405 | E2: 16100300 | F2: =IFERROR(VLOOKUP(Tabla_SERIED_01_8[[#This Row],[IdEstablecimiento]],'[2]Establecimiento 2024'!$A$1:$E$183,5,FALSE),0) -> 04102-Coquimbo | G2: =IFERROR(VLOOKUP(Tabla_SERIED_01_8[[#This Row],[IdEstablecimiento]],'[2]Establecimiento 2024'!$A$1:$E$183,3,FALSE),0) -> 105405-Posta de Salud Rural Guanaqueros | H2: 2024-11-15T14:36:39 | I2: 108 | J2: 52 | K2: 56
A3: 10 | B3: 5 | C3: 2024 | D3: 105405 | E3: 16200220 | F3: =IFERROR(VLOOKUP(Tabla_SERIED_01_8[[#This Row],[IdEstablecimiento]],'[2]Establecimiento 2024'!$A$1:$E$183,5,FALSE),0) -> 04102-Coquimbo | G3: =IFERROR(VLOOKUP(Tabla_SERIED_01_8[[#This Row],[IdEstablecimiento]],'[2]Establecimiento 2024'!$A$1:$E$183,3,FALSE),0) -> 105405-Posta de Salud Rural Guanaqueros | H3: 2024-11-15T14:36:39 | I3: 2 | J3: 0 | K3: 2
A4: 10 | B4: 5 | C4: 2024 | D4: 105407 | E4: 15080014 | F4: =IFERROR(VLOOKUP(Tabla_SERIED_01_8[[#This Row],[IdEstablecimiento]],'[2]Establecimiento 2024'!$A$1:$E$183,5,FALSE),0) -> 04102-Coquimbo | G4: =IFERROR(VLOOKUP(Tabla_SERIED_01_8[[#This Row],[IdEstablecimiento]],'[2]Establecimiento 2024'!$A$1:$E$183,3,FALSE),0) -> 105407-Posta de Salud Rural Tambillo | H4: 2024-11-15T14:36:41 | I4: 6 | M4: 6 | N4: 0
A5: 10 | B5: 5 | C5: 2024 | D5: 105407 | E5: 15080015 | F5: =IFERROR(VLOOKUP(Tabla_SERIED_01_8[[#This Row],[IdEstablecimiento]],'[2]Establecimiento 2024'!$A$1:$E$183,5,FALSE),0) -> 04102-Coquimbo | G5: =IFERROR(VLOOKUP(Tabla_SERIED_01_8[[#This Row],[IdEstablecimiento]],'[2]Establecimiento 2024'!$A$1:$E$183,3,FALSE),0) -> 105407-Posta de Salud Rural Tambillo | H5: 2024-11-15T14:36:41 | I5: 34 | O5: 24 | P5: 10
A6: 10 | B6: 5 | C6: 2024 | D6: 105407 | E6: 15080008 | F6: =IFERROR(VLOOKUP(Tabla_SERIED_01_8[[#This Row],[IdEstablecimiento]],'[2]Establecimiento 2024'!$A$1:$E$183,5,FALSE),0) -> 04102-Coquimbo | G6: =IFERROR(VLOOKUP(Tabla_SERIED_01_8[[#This Row],[IdEstablecimiento]],'[2]Establecimiento 2024'!$A$1:$E$183,3,FALSE),0) -> 105407-Posta de Salud Rural Tambillo | H6: 2024-11-15T14:36:41 | I6: 1 | Q6: 1 | S6: 0 | T6: 0 | U6: 0
A7: 10 | B7: 5 | C7: 2024 | D7: 105407 | E7: 15900010 | F7: =IFERROR(VLOOKUP(Tabla_SERIED_01_8[[#This Row],[IdEstablecimiento]],'[2]Establecimiento 2024'!$A$1:$E$183,5,FALSE),0) -> 04102-Coquimbo | G7: =IFERROR(VLOOKUP(Tabla_SERIED_01_8[[#This Row],[IdEstablecimiento]],'[2]Establecimiento 2024'!$A$1:$E$183,3,FALSE),0) -> 105407-Posta de Salud Rural Tambillo | H7: 2024-11-15T14:36:41 | I7: 13.5 | K7: 6.3 | L7: 7.2
A8: 11 | B8: 5 | C8: 2024 | D8: 105445 | E8: 16200220 | F8: =IFERROR(VLOOKUP(Tabla_SERIED_01_8[[#This Row],[IdEstablecimiento]],'[2]Establecimiento 2024'!$A$1:$E$183,5,FALSE),0) -> 04201-Illapel | G8: =IFERROR(VLOOKUP(Tabla_SERIED_01_8[[#This Row],[IdEstablecimiento]],'[2]Establecimiento 2024'!$A$1:$E$183,3,FALSE),0) -> 105445-Posta de Salud Rural Limáhuida | H8: 2024-12-18T15:37:27 | I8: 6 | J8: 4 | K8: 2
A9: 11 | B9: 5 | C9: 2024 | D9: 105445 | E9: 16200100 | F9: =IFERROR(VLOOKUP(Tabla_SERIED_01_8[[#This Row],[IdEstablecimiento]],'[2]Establecimiento 2024'!$A$1:$E$183,5,FALSE),0) -> 04201-Illapel | G9: =IFERROR(VLOOKUP(Tabla_SERIED_01_8[[#This Row],[IdEstablecimiento]],'[2]Establecimiento 2024'!$A$1:$E$183,3,FALSE),0) -> 105445-Posta de Salud Rural Limáhuida | H9: 2024-12-18T15:37:27 | I9: 4 | J9: 4 | K9: 0
A10: 11 | B10: 5 | C10: 2024 | D10: 105445 | E10: 16200230 | F10: =IFERROR(VLOOKUP(Tabla_SERIED_01_8[[#This Row],[IdEstablecimiento]],'[2]Establecimiento 2024'!$A$1:$E$183,5,FALSE),0) -> 04201-Illapel | G10: =IFERROR(VLOOKUP(Tabla_SERIED_01_8[[#This Row],[IdEstablecimiento]],'[2]Establecimiento 2024'!$A$1:$E$183,3,FALSE),0) -> 105445-Posta de Salud Rural Limáhuida | H10: 2024-12-18T15:37:27 | I10: 5 | J10: 5 | K10: 0
A11: 11 | B11: 5 | C11: 2024 | D11: 105446 | E11: 15080015 | F11: =IFERROR(VLOOKUP(Tabla_SERIED_01_8[[#This Row],[IdEstablecimiento]],'[2]Establecimiento 2024'!$A$1:$E$183,5,FALSE),0) -> 04201-Illapel | G11: =IFERROR(VLOOKUP(Tabla_SERIED_01_8[[#This Row],[IdEstablecimiento]],'[2]Establecimiento 2024'!$A$1:$E$183,3,FALSE),0) -> 105446-Posta de Salud Rural Matancilla | H11: 2024-12-18T15:37:29 | I11: 2 | P11: 2
A12: 11 | B12: 5 | C12: 2024 | D12: 105446 | E12: 15050100 | F12: =IFERROR(VLOOKUP(Tabla_SERIED_01_8[[#This Row],[IdEstablecimiento]],'[2]Establecimiento 2024'!$A$1:$E$183,5,FALSE),0) -> 04201-Illapel | G12: =IFERROR(VLOOKUP(Tabla_SERIED_01_8[[#This Row],[IdEstablecimiento]],'[2]Establecimiento 2024'!$A$1:$E$183,3,FALSE),0) -> 105446-Posta de Salud Rural Matancilla | H12: 2024-12-18T15:37:29 | I12: 1 | K12: 1 | R12: 1
A13: 11 | B13: 5 | C13: 2024 | D13: 105446 | E13: 16090300 | F13: =IFERROR(VLOOKUP(Tabla_SERIED_01_8[[#This Row],[IdEstablecimiento]],'[2]Establecimiento 2024'!$A$1:$E$183,5,FALSE),0) -> 04201-Illapel | G13: =IFERROR(VLOOKUP(Tabla_SERIED_01_8[[#This Row],[IdEstablecimiento]],'[2]Establecimiento 2024'!$A$1:$E$183,3,FALSE),0) -> 105446-Posta de Salud Rural Matancilla | H13: 2024-12-18T15:37:29 | I13: 8 | J13: 8
A14: 11 | B14: 5 | C14: 2024 | D14: 105446 | E14: 16200210 | F14: =IFERROR(VLOOKUP(Tabla_SERIED_01_8[[#This Row],[IdEstablecimiento]],'[2]Establecimiento 2024'!$A$1:$E$183,5,FALSE),0) -> 04201-Illapel | G14: =IFERROR(VLOOKUP(Tabla_SERIED_01_8[[#This Row],[IdEstablecimiento]],'[2]Establecimiento 2024'!$A$1:$E$183,3,FALSE),0) -> 105446-Posta de Salud Rural Matancilla | H14: 2024-12-18T15:37:29 | I14: 3 | J14: 3
A15: 11 | B15: 5 | C15: 2024 | D15: 105446 | E15: 16100300 | F15: =IFERROR(VLOOKUP(Tabla_SERIED_01_8[[#This Row],[IdEstablecimiento]],'[2]Establecimiento 2024'!$A$1:$E$183,5,FALSE),0) -> 04201-Illapel | G15: =IFERROR(VLOOKUP(Tabla_SERIED_01_8[[#This Row],[IdEstablecimiento]],'[2]Establecimiento 2024'!$A$1:$E$183,3,FALSE),0) -> 105446-Posta de Salud Rural Matancilla | H15: 2024-12-18T15:37:29 | I15: 8 | J15: 4 | K15: 4
A16: 11 | B16: 5 | C16: 2024 | D16: 105446 | E16: 16200220 | F16: =IFERROR(VLOOKUP(Tabla_SERIED_01_8[[#This Row],[IdEstablecimiento]],'[2]Establecimiento 2024'!$A$1:$E$183,5,FALSE),0) -> 04201-Illapel | G16: =IFERROR(VLOOKUP(Tabla_SERIED_01_8[[#This Row],[IdEstablecimiento]],'[2]Establecimiento 2024'!$A$1:$E$183,3,FALSE),0) -> 105446-Posta de Salud Rural Matancilla | H16: 2024-12-18T15:37:29 | I16: 3 | J16: 2 | K16: 1
A17: 11 | B17: 5 | C17: 2024 | D17: 105447 | E17: 15080014 | F17: =IFERROR(VLOOKUP(Tabla_SERIED_01_8[[#This Row],[IdEstablecimiento]],'[2]Establecimiento 2024'!$A$1:$E$183,5,FALSE),0) -> 04201-Illapel | G17: =IFERROR(VLOOKUP(Tabla_SERIED_01_8[[#This Row],[IdEstablecimiento]],'[2]Establecimiento 2024'!$A$1:$E$183,3,FALSE),0) -> 105447-Posta de Salud Rural Peralillo Illapel | H17: 2024-12-18T15:37:32 | I17: 8 | M17: 4 | N17: 4
A18: 11 | B18: 5 | C18: 2024 | D18: 105447 | E18: 15080015 | F18: =IFERROR(VLOOKUP(Tabla_SERIED_01_8[[#This Row],[IdEstablecimiento]],'[2]Establecimiento 2024'!$A$1:$E$183,5,FALSE),0) -> 04201-Illapel | G18: =IFERROR(VLOOKUP(Tabla_SERIED_01_8[[#This Row],[IdEstablecimiento]],'[2]Establecimiento 2024'!$A$1:$E$183,3,FALSE),0) -> 105447-Posta de Salud Rural Peralillo Illapel | H18: 2024-12-18T15:37:32 | I18: 12 | O18: 6 | P18: 6
A19: 11 | B19: 5 | C19: 2024 | D19: 105447 | E19: 15080008 | F19: =IFERROR(VLOOKUP(Tabla_SERIED_01_8[[#This Row],[IdEstablecimiento]],'[2]Establecimiento 2024'!$A$1:$E$183,5,FALSE),0) -> 04201-Illapel | G19: =IFERROR(VLOOKUP(Tabla_SERIED_01_8[[#This Row],[IdEstablecimiento]],'[2]Establecimiento 2024'!$A$1:$E$183,3,FALSE),0) -> 105447-Posta de Salud Rural Peralillo Illapel | H19: 2024-12-18T15:37:32 | I19: 1 | Q19: 1
A20: 11 | B20: 5 | C20: 2024 | D20: 105447 | E20: 15900010 | F20: =IFERROR(VLOOKUP(Tabla_SERIED_01_8[[#This Row],[IdEstablecimiento]],'[2]Establecimiento 2024'!$A$1:$E$183,5,FALSE),0) -> 04201-Illapel | G20: =IFERROR(VLOOKUP(Tabla_SERIED_01_8[[#This Row],[IdEstablecimiento]],'[2]Establecimiento 2024'!$A$1:$E$183,3,FALSE),0) -> 105447-Posta de Salud Rural Peralillo Illapel | H20: 2024-12-18T15:37:32 | I20: 3.6 | K20: 3.6
A21: 11 | B21: 5 | C21: 2024 | D21: 105447 | E21: 15050100 | F21: =IFERROR(VLOOKUP(Tabla_SERIED_01_8[[#This Row],[IdEstablecimiento]],'[2]Establecimiento 2024'!$A$1:$E$183,5,FALSE),0) -> 04201-Illapel | G21: =IFERROR(VLOOKUP(Tabla_SERIED_01_8[[#This Row],[IdEstablecimiento]],'[2]Establecimiento 2024'!$A$1:$E$183,3,FALSE),0) -> 105447-Posta de Salud Rural Peralillo Illapel | H21: 2024-12-18T15:37:32 | I21: 12 | J21: 5 | K21: 7 | M21: 1 | O21: 2 | P21: 2 | Q21: 3 | R21: 3 | S21: 1
A22: 11 | B22: 5 | C22: 2024 | D22: 105447 | E22: 16090300 | F22: =IFERROR(VLOOKUP(Tabla_SERIED_01_8[[#This Row],[IdEstablecimiento]],'[2]Establecimiento 2024'!$A$1:$E$183,5,FALSE),0) -> 04201-Illapel | G22: =IFERROR(VLOOKUP(Tabla_SERIED_01_8[[#This Row],[IdEstablecimiento]],'[2]Establecimiento 2024'!$A$1:$E$183,3,FALSE),0) -> 105447-Posta de Salud Rural Peralillo Illapel | H22: 2024-12-18T15:37:32 | I22: 41 | J22: 41
A23: 11 | B23: 5 | C23: 2024 | D23: 105447 | E23: 16200210 | F23: =IFERROR(VLOOKUP(Tabla_SERIED_01_8[[#This Row],[IdEstablecimiento]],'[2]Establecimiento 2024'!$A$1:$E$183,5,FALSE),0) -> 04201-Illapel | G23: =IFERROR(VLOOKUP(Tabla_SERIED_01_8[[#This Row],[IdEstablecimiento]],'[2]Establecimiento 2024'!$A$1:$E$183,3,FALSE),0) -> 105447-Posta de Salud Rural Peralillo Illapel | H23: 2024-12-18T15:37:32 | I23: 1 | J23: 1
A24: 11 | B24: 5 | C24: 2024 | D24: 105447 | E24: 16100300 | F24: =IFERROR(VLOOKUP(Tabla_SERIED_01_8[[#This Row],[IdEstablecimiento]],'[2]Establecimiento 2024'!$A$1:$E$183,5,FALSE),0) -> 04201-Illapel | G24: =IFERROR(VLOOKUP(Tabla_SERIED_01_8[[#This Row],[IdEstablecimiento]],'[2]Establecimiento 2024'!$A$1:$E$183,3,FALSE),0) -> 105447-Posta de Salud Rural Peralillo Illapel | H24: 2024-12-18T15:37:32 | I24: 41 | J24: 17 | K24: 24
A25: 9 | B25: 5 | C25: 2024 | D25: 105106 | E25: 15900030 | F25: =IFERROR(VLOOKUP(Tabla_SERIED_01_8[[#This Row],[IdEstablecimiento]],'[2]Establecimiento 2024'!$A$1:$E$183,5,FALSE),0) -> 105106-Hospital Andacollo | G25: =IFERROR(VLOOKUP(Tabla_SERIED_01_8[[#This Row],[IdEstablecimiento]],'[2]Establecimiento 2024'!$A$1:$E$183,3,FALSE),0) -> 105106-Hospital Dr. José Arraño (Andacollo) | H25: 2024-10-14T11:54:31 | I25: 3.2 | L25: 3.2
A26: 9 | B26: 5 | C26: 2024 | D26: 105106 | E26: 15900040 | F26: =IFERROR(VLOOKUP(Tabla_SERIED_01_8[[#This Row],[IdEstablecimiento]],'[2]Establecimiento 2024'!$A$1:$E$183,5,FALSE),0) -> 105106-Hospital Andacollo | G26: =IFERROR(VLOOKUP(Tabla_SERIED_01_8[[#This Row],[IdEstablecimiento]],'[2]Establecimiento 2024'!$A$1:$E$183,3,FALSE),0) -> 105106-Hospital Dr. José Arraño (Andacollo) | H26: 2024-10-14T11:54:31 | I26: 4 | K26: 4
A27: 9 | B27: 5 | C27: 2024 | D27: 105106 | E27: 15050100 | F27: =IFERROR(VLOOKUP(Tabla_SERIED_01_8[[#This Row],[IdEstablecimiento]],'[2]Establecimiento 2024'!$A$1:$E$183,5,FALSE),0) -> 105106-Hospital Andacollo | G27: =IFERROR(VLOOKUP(Tabla_SERIED_01_8[[#This Row],[IdEstablecimiento]],'[2]Establecimiento 2024'!$A$1:$E$183,3,FALSE),0) -> 105106-Hospital Dr. José Arraño (Andacollo) | H27: 2024-10-14T11:54:31 | I27: 213 | J27: 95 | K27: 118 | L27: 5 | M27: 8 | N27: 14 | O27: 36 | P27: 24 | Q27: 49 | R27: 41 | S27: 21 | U27: 7 | V27: 4 | W27: 4
A28: 9 | B28: 5 | C28: 2024 | D28: 105106 | E28: 15050200 | F28: =IFERROR(VLOOKUP(Tabla_SERIED_01_8[[#This Row],[IdEstablecimiento]],'[2]Establecimiento 2024'!$A$1:$E$183,5,FALSE),0) -> 105106-Hospital Andacollo | G28: =IFERROR(VLOOKUP(Tabla_SERIED_01_8[[#This Row],[IdEstablecimiento]],'[2]Establecimiento 2024'!$A$1:$E$183,3,FALSE),0) -> 105106-Hospital Dr. José Arraño (Andacollo) | H28: 2024-10-14T11:54:31 | I28: 2 | J28: 1 | K28: 1 | P28: 1 | R28: 1
A29: 9 | B29: 5 | C29: 2024 | D29: 105106 | E29: 15050500 | F29: =IFERROR(VLOOKUP(Tabla_SERIED_01_8[[#This Row],[IdEstablecimiento]],'[2]Establecimiento 2024'!$A$1:$E$183,5,FALSE),0) -> 105106-Hospital Andacollo | G29: =IFERROR(VLOOKUP(Tabla_SERIED_01_8[[#This Row],[IdEstablecimiento]],'[2]Establecimiento 2024'!$A$1:$E$183,3,FALSE),0) -> 105106-Hospital Dr. José Arraño (Andacollo) | H29: 2024-10-14T11:54:31 | I29: 1 | J29: 1 | N29: 1
A30: 9 | B30: 5 | C30: 2024 | D30: 105106 | E30: 15900050 | F30: =IFERROR(VLOOKUP(Tabla_SERIED_01_8[[#This Row],[IdEstablecimiento]],'[2]Establecimiento 2024'!$A$1:$E$183,5,FALSE),0) -> 105106-Hospital Andacollo | G30: =IFERROR(VLOOKUP(Tabla_SERIED_01_8[[#This Row],[IdEstablecimiento]],'[2]Establecimiento 2024'!$A$1:$E$183,3,FALSE),0) -> 105106-Hospital Dr. José Arraño (Andacollo) | H30: 2024-10-14T11:54:31 | I30: 2 | J30: 2 | M30: 1 | N30: 1
A31: 9 | B31: 5 | C31: 2024 | D31: 105106 | E31: 15080018 | F31: =IFERROR(VLOOKUP(Tabla_SERIED_01_8[[#This Row],[IdEstablecimiento]],'[2]Establecimiento 2024'!$A$1:$E$183,5,FALSE),0) -> 105106-Hospital Andacollo | G31: =IFERROR(VLOOKUP(Tabla_SERIED_01_8[[#This Row],[IdEstablecimiento]],'[2]Establecimiento 2024'!$A$1:$E$183,3,FALSE),0) -> 105106-Hospital Dr. José Arraño (Andacollo) | H31: 2024-10-14T11:54:31 | I31: 6 | M31: 4 | N31: 2
A32: 9 | B32: 5 | C32: 2024 | D32: 105106 | E32: 15080019 | F32: =IFERROR(VLOOKUP(Tabla_SERIED_01_8[[#This Row],[IdEstablecimiento]],'[2]Establecimiento 2024'!$A$1:$E$183,5,FALSE),0) -> 105106-Hospital Andacollo | G32: =IFERROR(VLOOKUP(Tabla_SERIED_01_8[[#This Row],[IdEstablecimiento]],'[2]Establecimiento 2024'!$A$1:$E$183,3,FALSE),0) -> 105106-Hospital Dr. José Arraño (Andacollo) | H32: 2024-10-14T11:54:31 | I32: 6 | O32: 2 | P32: 4
A33: 9 | B33: 5 | C33: 2024 | D33: 105106 | E33: 16090300 | F33: =IFERROR(VLOOKUP(Tabla_SERIED_01_8[[#This Row],[IdEstablecimiento]],'[2]Establecimiento 2024'!$A$1:$E$183,5,FALSE),0) -> 105106-Hospital Andacollo | G33: =IFERROR(VLOOKUP(Tabla_SERIED_01_8[[#This Row],[IdEstablecimiento]],'[2]Establecimiento 2024'!$A$1:$E$183,3,FALSE),0) -> 105106-Hospital Dr. José Arraño (Andacollo) | H33: 2024-10-14T11:54:31 | I33: 346 | J33: 346
A34: 9 | B34: 5 | C34: 2024 | D34: 105106 | E34: 16200210 | F34: =IFERROR(VLOOKUP(Tabla_SERIED_01_8[[#This Row],[IdEstablecimiento]],'[2]Establecimiento 2024'!$A$1:$E$183,5,FALSE),0) -> 105106-Hospital Andacollo | G34: =IFERROR(VLOOKUP(Tabla_SERIED_01_8[[#This Row],[IdEstablecimiento]],'[2]Establecimiento 2024'!$A$1:$E$183,3,FALSE),0) -> 105106-Hospital Dr. José Arraño (Andacollo) | H34: 2024-10-14T11:54:31 | I34: 35 | J34: 35
A35: 9 | B35: 5 | C35: 2024 | D35: 105106 | E35: 16100300 | F35: =IFERROR(VLOOKUP(Tabla_SERIED_01_8[[#This Row],[IdEstablecimiento]],'[2]Establecimiento 2024'!$A$1:$E$183,5,FALSE),0) -> 105106-Hospital Andacollo | G35: =IFERROR(VLOOKUP(Tabla_SERIED_01_8[[#This Row],[IdEstablecimiento]],'[2]Establecimiento 2024'!$A$1:$E$183,3,FALSE),0) -> 105106-Hospital Dr. José Arraño (Andacollo) | H35: 2024-10-14T11:54:31 | I35: 346 | J35: 147 | K35: 199
A36: 9 | B36: 5 | C36: 2024 | D36: 105106 | E36: 16200220 | F36: =IFERROR(VLOOKUP(Tabla_SERIED_01_8[[#This Row],[IdEstablecimiento]],'[2]Establecimiento 2024'!$A$1:$E$183,5,FALSE),0) -> 105106-Hospital Andacollo | G36: =IFERROR(VLOOKUP(Tabla_SERIED_01_8[[#This Row],[IdEstablecimiento]],'[2]Establecimiento 2024'!$A$1:$E$183,3,FALSE),0) -> 105106-Hospital Dr. José Arraño (Andacollo) | H36: 2024-10-14T11:54:31 | I36: 35 | J36: 15 | K36: 20
A37: 9 | B37: 5 | C37: 2024 | D37: 105107 | E37: 15901200 | F37: =IFERROR(VLOOKUP(Tabla_SERIED_01_8[[#This Row],[IdEstablecimiento]],'[2]Establecimiento 2024'!$A$1:$E$183,5,FALSE),0) -> 105107-Hospital Vicuña | G37: =IFERROR(VLOOKUP(Tabla_SERIED_01_8[[#This Row],[IdEstablecimiento]],'[2]Establecimiento 2024'!$A$1:$E$183,3,FALSE),0) -> 105107-Hospital San Juan de Dios (Vicuña) | H37: 2024-10-14T11:55:09 | I37: 14 | L37: 4.8 | M37: 9.2
A38: 9 | B38: 5 | C38: 2024 | D38: 105107 | E38: 15901300 | F38: =IFERROR(VLOOKUP(Tabla_SERIED_01_8[[#This Row],[IdEstablecimiento]],'[2]Establecimiento 2024'!$A$1:$E$183,5,FALSE),0) -> 105107-Hospital Vicuña | G38: =IFERROR(VLOOKUP(Tabla_SERIED_01_8[[#This Row],[IdEstablecimiento]],'[2]Establecimiento 2024'!$A$1:$E$183,3,FALSE),0) -> 105107-Hospital San Juan de Dios (Vicuña) | H38: 2024-10-14T11:55:09 | I38: 4.4 | M38: 4.4
A39: 9 | B39: 5 | C39: 2024 | D39: 105107 | E39: 15060100 | F39: =IFERROR(VLOOKUP(Tabla_SERIED_01_8[[#This Row],[IdEstablecimiento]],'[2]Establecimiento 2024'!$A$1:$E$183,5,FALSE),0) -> 105107-Hospital Vicuña | G39: =IFERROR(VLOOKUP(Tabla_SERIED_01_8[[#This Row],[IdEstablecimiento]],'[2]Establecimiento 2024'!$A$1:$E$183,3,FALSE),0) -> 105107-Hospital San Juan de Dios (Vicuña) | H39: 2024-10-14T11:55:09 | I39: 1 | J39: 1 | R39: 1
A40: 9 | B40: 5 | C40: 2024 | D40: 105107 | E40: 15901400 | F40: =IFERROR(VLOOKUP(Tabla_SERIED_01_8[[#This Row],[IdEstablecimiento]],'[2]Establecimiento 2024'!$A$1:$E$183,5,FALSE),0) -> 105107-Hospital Vicuña | G40: =IFERROR(VLOOKUP(Tabla_SERIED_01_8[[#This Row],[IdEstablecimiento]],'[2]Establecimiento 2024'!$A$1:$E$183,3,FALSE),0) -> 105107-Hospital San Juan de Dios (Vicuña) | H40: 2024-10-14T11:55:09 | I40: 4 | J40: 3 | K40: 1 | N40: 1 | O40: 3
A41: 9 | B41: 5 | C41: 2024 | D41: 105107 | E41: 15080014 | F41: =IFERROR(VLOOKUP(Tabla_SERIED_01_8[[#This Row],[IdEstablecimiento]],'[2]Establecimiento 2024'!$A$1:$E$183,5,FALSE),0) -> 105107-Hospital Vicuña | G41: =IFERROR(VLOOKUP(Tabla_SERIED_01_8[[#This Row],[IdEstablecimiento]],'[2]Establecimiento 2024'!$A$1:$E$183,3,FALSE),0) -> 105107-Hospital San Juan de Dios (Vicuña) | H41: 2024-10-14T11:55:09 | I41: 122 | M41: 72 | N41: 50
A42: 11 | B42: 5 | C42: 2024 | D42: 105506 | E42: 15080014 | F42: =IFERROR(VLOOKUP(Tabla_SERIED_01_8[[#This Row],[IdEstablecimiento]],'[2]Establecimiento 2024'!$A$1:$E$183,5,FALSE),0) -> 04104-La Higuera | G42: =IFERROR(VLOOKUP(Tabla_SERIED_01_8[[#This Row],[IdEstablecimiento]],'[2]Establecimiento 2024'!$A$1:$E$183,3,FALSE),0) -> 105506-Posta de Salud Rural El Trapiche | H42: 2024-12-18T15:39:39 | I42: 4 | M42: 2 | N42: 2
A43: 11 | B43: 5 | C43: 2024 | D43: 105506 | E43: 15080015 | F43: =IFERROR(VLOOKUP(Tabla_SERIED_01_8[[#This Row],[IdEstablecimiento]],'[2]Establecimiento 2024'!$A$1:$E$183,5,FALSE),0) -> 04104-La Higuera | G43: =IFERROR(VLOOKUP(Tabla_SERIED_01_8[[#This Row],[IdEstablecimiento]],'[2]Establecimiento 2024'!$A$1:$E$183,3,FALSE),0) -> 105506-Posta de Salud Rural El Trapiche | H43: 2024-12-18T15:39:39 | I43: 18 | O43: 8 | P43: 10
A44: 11 | B44: 5 | C44: 2024 | D44: 105506 | E44: 15080008 | F44: =IFERROR(VLOOKUP(Tabla_SERIED_01_8[[#This Row],[IdEstablecimiento]],'[2]Establecimiento 2024'!$A$1:$E$183,5,FALSE),0) -> 04104-La Higuera | G44: =IFERROR(VLOOKUP(Tabla_SERIED_01_8[[#This Row],[IdEstablecimiento]],'[2]Establecimiento 2024'!$A$1:$E$183,3,FALSE),0) -> 105506-Posta de Salud Rural El Trapiche | H44: 2024-12-18T15:39:39 | I44: 1 | Q44: 1
A45: 11 | B45: 5 | C45: 2024 | D45: 105506 | E45: 15900010 | F45: =IFERROR(VLOOKUP(Tabla_SERIED_01_8[[#This Row],[IdEstablecimiento]],'[2]Establecimiento 2024'!$A$1:$E$183,5,FALSE),0) -> 04104-La Higuera | G45: =IFERROR(VLOOKUP(Tabla_SERIED_01_8[[#This Row],[IdEstablecimiento]],'[2]Establecimiento 2024'!$A$1:$E$183,3,FALSE),0) -> 105506-Posta de Salud Rural El Trapiche | H45: 2024-12-18T15:39:39 | I45: 3.6 | L45: 3.6
A46: 11 | B46: 5 | C46: 2024 | D46: 105506 | E46: 15900030 | F46: =IFERROR(VLOOKUP(Tabla_SERIED_01_8[[#This Row],[IdEstablecimiento]],'[2]Establecimiento 2024'!$A$1:$E$183,5,FALSE),0) -> 04104-La Higuera | G46: =IFERROR(VLOOKUP(Tabla_SERIED_01_8[[#This Row],[IdEstablecimiento]],'[2]Establecimiento 2024'!$A$1:$E$183,3,FALSE),0) -> 105506-Posta de Salud Rural El Trapiche | H46: 2024-12-18T15:39:39 | I46: 4 | L46: 4
A47: 11 | B47: 5 | C47: 2024 | D47: 105506 | E47: 15050100 | F47: =IFERROR(VLOOKUP(Tabla_SERIED_01_8[[#This Row],[IdEstablecimiento]],'[2]Establecimiento 2024'!$A$1:$E$183,5,FALSE),0) -> 04104-La Higuera | G47: =IFERROR(VLOOKUP(Tabla_SERIED_01_8[[#This Row],[IdEstablecimiento]],'[2]Establecimiento 2024'!$A$1:$E$183,3,FALSE),0) -> 105506-Posta de Salud Rural El Trapiche | H47: 2024-12-18T15:39:39 | I47: 13 | J47: 8 | K47: 5 | N47: 1 | O47: 1 | P47: 1 | Q47: 4 | R47: 5 | S47: 1
A48: 11 | B48: 5 | C48: 2024 | D48: 105506 | E48: 15900050 | F48: =IFERROR(VLOOKUP(Tabla_SERIED_01_8[[#This Row],[IdEstablecimiento]],'[2]Establecimiento 2024'!$A$1:$E$183,5,FALSE),0) -> 04104-La Higuera | G48: =IFERROR(VLOOKUP(Tabla_SERIED_01_8[[#This Row],[IdEstablecimiento]],'[2]Establecimiento 2024'!$A$1:$E$183,3,FALSE),0) -> 105506-Posta de Salud Rural El Trapiche | H48: 2024-12-18T15:39:39 | I48: 1 | K48: 1 | N48: 1
A49: 11 | B49: 5 | C49: 2024 | D49: 105506 | E49: 16090300 | F49: =IFERROR(VLOOKUP(Tabla_SERIED_01_8[[#This Row],[IdEstablecimiento]],'[2]Establecimiento 2024'!$A$1:$E$183,5,FALSE),0) -> 04104-La Higuera | G49: =IFERROR(VLOOKUP(Tabla_SERIED_01_8[[#This Row],[IdEstablecimiento]],'[2]Establecimiento 2024'!$A$1:$E$183,3,FALSE),0) -> 105506-Posta de Salud Rural El Trapiche | H49: 2024-12-18T15:39:39 | I49: 26 | J49: 26
A50: 11 | B50: 5 | C50: 2024 | D50: 105506 | E50: 16200210 | F50: =IFERROR(VLOOKUP(Tabla_SERIED_01_8[[#This Row],[IdEstablecimiento]],'[2]Establecimiento 2024'!$A$1:$E$183,5,FALSE),0) -> 04104-La Higuera | G50: =IFERROR(VLOOKUP(Tabla_SERIED_01_8[[#This Row],[IdEstablecimiento]],'[2]Establecimiento 2024'!$A$1:$E$183,3,FALSE),0) -> 105506-Posta de Salud Rural El Trapiche | H50: 2024-12-18T15:39:39 | I50: 7 | J50: 7
A51: 11 | B51: 5 | C51: 2024 | D51: 105506 | E51: 16100300 | F51: =IFERROR(VLOOKUP(Tabla_SERIED_01_8[[#This Row],[IdEstablecimiento]],'[2]Establecimiento 2024'!$A$1:$E$183,5,FALSE),0) -> 04104-La Higuera | G51: =IFERROR(VLOOKUP(Tabla_SERIED_01_8[[#This Row],[IdEstablecimiento]],'[2]Establecimiento 2024'!$A$1:$E$183,3,FALSE),0) -> 105506-Posta de Salud Rural El Trapiche | H51: 2024-12-18T15:39:39 | I51: 26 | J51: 10 | K51: 16
A52: 11 | B52: 5 | C52: 2024 | D52: 105506 | E52: 16200220 | F52: =IFERROR(VLOOKUP(Tabla_SERIED_01_8[[#This Row],[IdEstablecimiento]],'[2]Establecimiento 2024'!$A$1:$E$183,5,FALSE),0) -> 04104-La Higuera | G52: =IFERROR(VLOOKUP(Tabla_SERIED_01_8[[#This Row],[IdEstablecimiento]],'[2]Establecimiento 2024'!$A$1:$E$183,3,FALSE),0) -> 105506-Posta de Salud Rural El Trapiche | H52: 2024-12-18T15:39:39 | I52: 7 | J52: 1 | K52: 6
A53: 11 | B53: 5 | C53: 2024 | D53: 105507 | E53: 15060100 | F53: =IFERROR(VLOOKUP(Tabla_SERIED_01_8[[#This Row],[IdEstablecimiento]],'[2]Establecimiento 2024'!$A$1:$E$183,5,FALSE),0) -> 04301-Ovalle | G53: =IFERROR(VLOOKUP(Tabla_SERIED_01_8[[#This Row],[IdEstablecimiento]],'[2]Establecimiento 2024'!$A$1:$E$183,3,FALSE),0) -> 105507-Posta de Salud Rural Huamalata | H53: 2024-12-18T15:39:41 | I53: 1 | K53: 1 | O53: 1
A54: 11 | B54: 5 | C54: 2024 | D54: 105507 | E54: 15080014 | F54: =IFERROR(VLOOKUP(Tabla_SERIED_01_8[[#This Row],[IdEstablecimiento]],'[2]Establecimiento 2024'!$A$1:$E$183,5,FALSE),0) -> 04301-Ovalle | G54: =IFERROR(VLOOKUP(Tabla_SERIED_01_8[[#This Row],[IdEstablecimiento]],'[2]Establecimiento 2024'!$A$1:$E$183,3,FALSE),0) -> 105507-Posta de Salud Rural Huamalata | H54: 2024-12-18T15:39:41 | I54: 18 | M54: 10 | N54: 8
A55: 11 | B55: 5 | C55: 2024 | D55: 105507 | E55: 15080015 | F55: =IFERROR(VLOOKUP(Tabla_SERIED_01_8[[#This Row],[IdEstablecimiento]],'[2]Establecimiento 2024'!$A$1:$E$183,5,FALSE),0) -> 04301-Ovalle | G55: =IFERROR(VLOOKUP(Tabla_SERIED_01_8[[#This Row],[IdEstablecimiento]],'[2]Establecimiento 2024'!$A$1:$E$183,3,FALSE),0) -> 105507-Posta de Salud Rural Huamalata | H55: 2024-12-18T15:39:41 | I55: 40 | O55: 24 | P55: 16
A56: 11 | B56: 5 | C56: 2024 | D56: 105507 | E56: 15080008 | F56: =IFERROR(VLOOKUP(Tabla_SERIED_01_8[[#This Row],[IdEstablecimiento]],'[2]Establecimiento 2024'!$A$1:$E$183,5,FALSE),0) -> 04301-Ovalle | G56: =IFERROR(VLOOKUP(Tabla_SERIED_01_8[[#This Row],[IdEstablecimiento]],'[2]Establecimiento 2024'!$A$1:$E$183,3,FALSE),0) -> 105507-Posta de Salud Rural Huamalata | H56: 2024-12-18T15:39:41 | I56: 9 | Q56: 3 | S56: 6
A57: 11 | B57: 5 | C57: 2024 | D57: 105507 | E57: 15080016 | F57: =IFERROR(VLOOKUP(Tabla_SERIED_01_8[[#This Row],[IdEstablecimiento]],'[2]Establecimiento 2024'!$A$1:$E$183,5,FALSE),0) -> 04301-Ovalle | G57: =IFERROR(VLOOKUP(Tabla_SERIED_01_8[[#This Row],[IdEstablecimiento]],'[2]Establecimiento 2024'!$A$1:$E$183,3,FALSE),0) -> 105507-Posta de Salud Rural Huamalata | H57: 2024-12-18T15:39:41 | I57: 2 | O57: 2
A58: 11 | B58: 5 | C58: 2024 | D58: 105507 | E58: 15010500 | F58: =IFERROR(VLOOKUP(Tabla_SERIED_01_8[[#This Row],[IdEstablecimiento]],'[2]Establecimiento 2024'!$A$1:$E$183,5,FALSE),0) -> 04301-Ovalle | G58: =IFERROR(VLOOKUP(Tabla_SERIED_01_8[[#This Row],[IdEstablecimiento]],'[2]Establecimiento 2024'!$A$1:$E$183,3,FALSE),0) -> 105507-Posta de Salud Rural Huamalata | H58: 2024-12-18T15:39:41 | I58: 2 | O58: 2
A59: 10 | B59: 5 | C59: 2024 | D59: 105467 | E59: 15050100 | F59: =IFERROR(VLOOKUP(Tabla_SERIED_01_8[[#This Row],[IdEstablecimiento]],'[2]Establecimiento 2024'!$A$1:$E$183,5,FALSE),0) -> 04106-Vicuña | G59: =IFERROR(VLOOKUP(Tabla_SERIED_01_8[[#This Row],[IdEstablecimiento]],'[2]Establecimiento 2024'!$A$1:$E$183,3,FALSE),0) -> 105467-Posta de Salud Rural Diaguitas | H59: 2024-11-15T14:38:37 | I59: 34 | J59: 14 | K59: 20 | L59: 1 | M59: 1 | N59: 3 | O59: 4 | P59: 7 | Q59: 6 | R59: 8 | S59: 3 | V59: 1
A60: 10 | B60: 5 | C60: 2024 | D60: 105467 | E60: 15050200 | F60: =IFERROR(VLOOKUP(Tabla_SERIED_01_8[[#This Row],[IdEstablecimiento]],'[2]Establecimiento 2024'!$A$1:$E$183,5,FALSE),0) -> 04106-Vicuña | G60: =IFERROR(VLOOKUP(Tabla_SERIED_01_8[[#This Row],[IdEstablecimiento]],'[2]Establecimiento 2024'!$A$1:$E$183,3,FALSE),0) -> 105467-Posta de Salud Rural Diaguitas | H60: 2024-11-15T14:38:37 | I60: 1 | K60: 1 | Q60: 1
A61: 10 | B61: 5 | C61: 2024 | D61: 105467 | E61: 16090300 | F61: =IFERROR(VLOOKUP(Tabla_SERIED_01_8[[#This Row],[IdEstablecimiento]],'[2]Establecimiento 2024'!$A$1:$E$183,5,FALSE),0) -> 04106-Vicuña | G61: =IFERROR(VLOOKUP(Tabla_SERIED_01_8[[#This Row],[IdEstablecimiento]],'[2]Establecimiento 2024'!$A$1:$E$183,3,FALSE),0) -> 105467-Posta de Salud Rural Diaguitas | H61: 2024-11-15T14:38:37 | I61: 36 | J61: 36
A62: 10 | B62: 5 | C62: 2024 | D62: 105467 | E62: 16200210 | F62: =IFERROR(VLOOKUP(Tabla_SERIED_01_8[[#This Row],[IdEstablecimiento]],'[2]Establecimiento 2024'!$A$1:$E$183,5,FALSE),0) -> 04106-Vicuña | G62: =IFERROR(VLOOKUP(Tabla_SERIED_01_8[[#This Row],[IdEstablecimiento]],'[2]Establecimiento 2024'!$A$1:$E$183,3,FALSE),0) -> 105467-Posta de Salud Rural Diaguitas | H62: 2024-11-15T14:38:37 | I62: 6 | J62: 6
A63: 10 | B63: 5 | C63: 2024 | D63: 105467 | E63: 16100300 | F63: =IFERROR(VLOOKUP(Tabla_SERIED_01_8[[#This Row],[IdEstablecimiento]],'[2]Establecimiento 2024'!$A$1:$E$183,5,FALSE),0) -> 04106-Vicuña | G63: =IFERROR(VLOOKUP(Tabla_SERIED_01_8[[#This Row],[IdEstablecimiento]],'[2]Establecimiento 2024'!$A$1:$E$183,3,FALSE),0) -> 105467-Posta de Salud Rural Diaguitas | H63: 2024-11-15T14:38:37 | I63: 36 | J63: 20 | K63: 16
A64: 10 | B64: 5 | C64: 2024 | D64: 105467 | E64: 16200220 | F64: =IFERROR(VLOOKUP(Tabla_SERIED_01_8[[#This Row],[IdEstablecimiento]],'[2]Establecimiento 2024'!$A$1:$E$183,5,FALSE),0) -> 04106-Vicuña | G64: =IFERROR(VLOOKUP(Tabla_SERIED_01_8[[#This Row],[IdEstablecimiento]],'[2]Establecimiento 2024'!$A$1:$E$183,3,FALSE),0) -> 105467-Posta de Salud Rural Diaguitas | H64: 2024-11-15T14:38:37 | I64: 6 | J64: 5 | K64: 1
A65: 10 | B65: 5 | C65: 2024 | D65: 105468 | E65: 15080014 | F65: =IFERROR(VLOOKUP(Tabla_SERIED_01_8[[#This Row],[IdEstablecimiento]],'[2]Establecimiento 2024'!$A$1:$E$183,5,FALSE),0) -> 04106-Vicuña | G65: =IFERROR(VLOOKUP(Tabla_SERIED_01_8[[#This Row],[IdEstablecimiento]],'[2]Establecimiento 2024'!$A$1:$E$183,3,FALSE),0) -> 105468-Posta de Salud Rural El Molle | H65: 2024-11-15T14:38:39 | I65: 12 | M65: 4 | N65: 8
A66: 10 | B66: 5 | C66: 2024 | D66: 105468 | E66: 15080015 | F66: =IFERROR(VLOOKUP(Tabla_SERIED_01_8[[#This Row],[IdEstablecimiento]],'[2]Establecimiento 2024'!$A$1:$E$183,5,FALSE),0) -> 04106-Vicuña | G66: =IFERROR(VLOOKUP(Tabla_SERIED_01_8[[#This Row],[IdEstablecimiento]],'[2]Establecimiento 2024'!$A$1:$E$183,3,FALSE),0) -> 105468-Posta de Salud Rural El Molle | H66: 2024-11-15T14:38:39 | I66: 30 | O66: 18 | P66: 12
A67: 10 | B67: 5 | C67: 2024 | D67: 105468 | E67: 15080008 | F67: =IFERROR(VLOOKUP(Tabla_SERIED_01_8[[#This Row],[IdEstablecimiento]],'[2]Establecimiento 2024'!$A$1:$E$183,5,FALSE),0) -> 04106-Vicuña | G67: =IFERROR(VLOOKUP(Tabla_SERIED_01_8[[#This Row],[IdEstablecimiento]],'[2]Establecimiento 2024'!$A$1:$E$183,3,FALSE),0) -> 105468-Posta de Salud Rural El Molle | H67: 2024-11-15T14:38:39 | I67: 1 | Q67: 1
A68: 10 | B68: 5 | C68: 2024 | D68: 105468 | E68: 15900010 | F68: =IFERROR(VLOOKUP(Tabla_SERIED_01_8[[#This Row],[IdEstablecimiento]],'[2]Establecimiento 2024'!$A$1:$E$183,5,FALSE),0) -> 04106-Vicuña | G68: =IFERROR(VLOOKUP(Tabla_SERIED_01_8[[#This Row],[IdEstablecimiento]],'[2]Establecimiento 2024'!$A$1:$E$183,3,FALSE),0) -> 105468-Posta de Salud Rural El Molle | H68: 2024-11-15T14:38:39 | I68: 10.8 | K68: 3.6 | L68: 7.2
A69: 10 | B69: 5 | C69: 2024 | D69: 105468 | E69: 15080016 | F69: =IFERROR(VLOOKUP(Tabla_SERIED_01_8[[#This Row],[IdEstablecimiento]],'[2]Establecimiento 2024'!$A$1:$E$183,5,FALSE),0) -> 04106-Vicuña | G69: =IFERROR(VLOOKUP(Tabla_SERIED_01_8[[#This Row],[IdEstablecimiento]],'[2]Establecimiento 2024'!$A$1:$E$183,3,FALSE),0) -> 105468-Posta de Salud Rural El Molle | H69: 2024-11-15T14:38:39 | I69: 2 | O69: 2
A70: 10 | B70: 5 | C70: 2024 | D70: 105468 | E70: 15010500 | F70: =IFERROR(VLOOKUP(Tabla_SERIED_01_8[[#This Row],[IdEstablecimiento]],'[2]Establecimiento 2024'!$A$1:$E$183,5,FALSE),0) -> 04106-Vicuña | G70: =IFERROR(VLOOKUP(Tabla_SERIED_01_8[[#This Row],[IdEstablecimiento]],'[2]Establecimiento 2024'!$A$1:$E$183,3,FALSE),0) -> 105468-Posta de Salud Rural El Molle | H70: 2024-11-15T14:38:39 | I70: 2 | O70: 2
A71: 9 | B71: 5 | C71: 2024 | D71: 105473 | E71: 15900010 | F71: =IFERROR(VLOOKUP(Tabla_SERIED_01_8[[#This Row],[IdEstablecimiento]],'[2]Establecimiento 2024'!$A$1:$E$183,5,FALSE),0) -> 04106-Vicuña | G71: =IFERROR(VLOOKUP(Tabla_SERIED_01_8[[#This Row],[IdEstablecimiento]],'[2]Establecimiento 2024'!$A$1:$E$183,3,FALSE),0) -> 105473-Posta de Salud Rural Talcuna | H71: 2024-10-14T16:40:51 | I71: 5.4 | L71: 5.4
A72: 9 | B72: 5 | C72: 2024 | D72: 105473 | E72: 15900030 | F72: =IFERROR(VLOOKUP(Tabla_SERIED_01_8[[#This Row],[IdEstablecimiento]],'[2]Establecimiento 2024'!$A$1:$E$183,5,FALSE),0) -> 04106-Vicuña | G72: =IFERROR(VLOOKUP(Tabla_SERIED_01_8[[#This Row],[IdEstablecimiento]],'[2]Establecimiento 2024'!$A$1:$E$183,3,FALSE),0) -> 105473-Posta de Salud Rural Talcuna | H72: 2024-10-14T16:40:51 | I72: 4.8 | J72: 4.8
A73: 9 | B73: 5 | C73: 2024 | D73: 105473 | E73: 15050100 | F73: =IFERROR(VLOOKUP(Tabla_SERIED_01_8[[#This Row],[IdEstablecimiento]],'[2]Establecimiento 2024'!$A$1:$E$183,5,FALSE),0) -> 04106-Vicuña | G73: =IFERROR(VLOOKUP(Tabla_SERIED_01_8[[#This Row],[IdEstablecimiento]],'[2]Establecimiento 2024'!$A$1:$E$183,3,FALSE),0) -> 105473-Posta de Salud Rural Talcuna | H73: 2024-10-14T16:40:51 | I73: 28 | J73: 13 | K73: 15 | N73: 2 | O73: 4 | P73: 5 | Q73: 9 | R73: 5 | S73: 2 | U73: 1 | W73: 0
A74: 9 | B74: 5 | C74: 2024 | D74: 105473 | E74: 15900050 | F74: =IFERROR(VLOOKUP(Tabla_SERIED_01_8[[#This Row],[IdEstablecimiento]],'[2]Establecimiento 2024'!$A$1:$E$183,5,FALSE),0) -> 04106-Vicuña | G74: =IFERROR(VLOOKUP(Tabla_SERIED_01_8[[#This Row],[IdEstablecimiento]],'[2]Establecimiento 2024'!$A$1:$E$183,3,FALSE),0) -> 105473-Posta de Salud Rural Talcuna | H74: 2024-10-14T16:40:51 | I74: 1 | J74: 1 | L74: 1
A75: 9 | B75: 5 | C75: 2024 | D75: 105473 | E75: 16090300 | F75: =IFERROR(VLOOKUP(Tabla_SERIED_01_8[[#This Row],[IdEstablecimiento]],'[2]Establecimiento 2024'!$A$1:$E$183,5,FALSE),0) -> 04106-Vicuña | G75: =IFERROR(VLOOKUP(Tabla_SERIED_01_8[[#This Row],[IdEstablecimiento]],'[2]Establecimiento 2024'!$A$1:$E$183,3,FALSE),0) -> 105473-Posta de Salud Rural Talcuna | H75: 2024-10-14T16:40:51 | I75: 64 | J75: 64
A76: 9 | B76: 5 | C76: 2024 | D76: 105474 | E76: 15080014 | F76: =IFERROR(VLOOKUP(Tabla_SERIED_01_8[[#This Row],[IdEstablecimiento]],'[2]Establecimiento 2024'!$A$1:$E$183,5,FALSE),0) -> 04106-Vicuña | G76: =IFERROR(VLOOKUP(Tabla_SERIED_01_8[[#This Row],[IdEstablecimiento]],'[2]Establecimiento 2024'!$A$1:$E$183,3,FALSE),0) -> 105474-Posta de Salud Rural Chapilca | H76: 2024-10-14T16:41:21 | I76: 4 | M76: 4
A77: 9 | B77: 5 | C77: 2024 | D77: 105474 | E77: 15080015 | F77: =IFERROR(VLOOKUP(Tabla_SERIED_01_8[[#This Row],[IdEstablecimiento]],'[2]Establecimiento 2024'!$A$1:$E$183,5,FALSE),0) -> 04106-Vicuña | G77: =IFERROR(VLOOKUP(Tabla_SERIED_01_8[[#This Row],[IdEstablecimiento]],'[2]Establecimiento 2024'!$A$1:$E$183,3,FALSE),0) -> 105474-Posta de Salud Rural Chapilca | H77: 2024-10-14T16:41:21 | I77: 4 | O77: 2 | P77: 2
A78: 9 | B78: 5 | C78: 2024 | D78: 105474 | E78: 15900010 | F78: =IFERROR(VLOOKUP(Tabla_SERIED_01_8[[#This Row],[IdEstablecimiento]],'[2]Establecimiento 2024'!$A$1:$E$183,5,FALSE),0) -> 04106-Vicuña | G78: =IFERROR(VLOOKUP(Tabla_SERIED_01_8[[#This Row],[IdEstablecimiento]],'[2]Establecimiento 2024'!$A$1:$E$183,3,FALSE),0) -> 105474-Posta de Salud Rural Chapilca | H78: 2024-10-14T16:41:21 | I78: 0.9 | L78: 0.9
A79: 9 | B79: 5 | C79: 2024 | D79: 105474 | E79: 15050100 | F79: =IFERROR(VLOOKUP(Tabla_SERIED_01_8[[#This Row],[IdEstablecimiento]],'[2]Establecimiento 2024'!$A$1:$E$183,5,FALSE),0) -> 04106-Vicuña | G79: =IFERROR(VLOOKUP(Tabla_SERIED_01_8[[#This Row],[IdEstablecimiento]],'[2]Establecimiento 2024'!$A$1:$E$183,3,FALSE),0) -> 105474-Posta de Salud Rural Chapilca | H79: 2024-10-14T16:41:21 | I79: 5 | J79: 3 | K79: 2 | N79: 1 | O79: 2 | Q79: 1 | R79: 1
A80: 9 | B80: 5 | C80: 2024 | D80: 105474 | E80: 16090300 | F80: =IFERROR(VLOOKUP(Tabla_SERIED_01_8[[#This Row],[IdEstablecimiento]],'[2]Establecimiento 2024'!$A$1:$E$183,5,FALSE),0) -> 04106-Vicuña | G80: =IFERROR(VLOOKUP(Tabla_SERIED_01_8[[#This Row],[IdEstablecimiento]],'[2]Establecimiento 2024'!$A$1:$E$183,3,FALSE),0) -> 105474-Posta de Salud Rural Chapilca | H80: 2024-10-14T16:41:21 | I80: 20 | J80: 20
A81: 9 | B81: 5 | C81: 2024 | D81: 105474 | E81: 16200210 | F81: =IFERROR(VLOOKUP(Tabla_SERIED_01_8[[#This Row],[IdEstablecimiento]],'[2]Establecimiento 2024'!$A$1:$E$183,5,FALSE),0) -> 04106-Vicuña | G81: =IFERROR(VLOOKUP(Tabla_SERIED_01_8[[#This Row],[IdEstablecimiento]],'[2]Establecimiento 2024'!$A$1:$E$183,3,FALSE),0) -> 105474-Posta de Salud Rural Chapilca | H81: 2024-10-14T16:41:21 | I81: 2 | J81: 2
A82: 9 | B82: 5 | C82: 2024 | D82: 105474 | E82: 16100300 | F82: =IFERROR(VLOOKUP(Tabla_SERIED_01_8[[#This Row],[IdEstablecimiento]],'[2]Establecimiento 2024'!$A$1:$E$183,5,FALSE),0) -> 04106-Vicuña | G82: =IFERROR(VLOOKUP(Tabla_SERIED_01_8[[#This Row],[IdEstablecimiento]],'[2]Establecimiento 2024'!$A$1:$E$183,3,FALSE),0) -> 105474-Posta de Salud Rural Chapilca | H82: 2024-10-14T16:41:21 | I82: 20 | J82: 9 | K82: 11
A83: 9 | B83: 5 | C83: 2024 | D83: 105702 | E83: 15900010 | F83: =IFERROR(VLOOKUP(Tabla_SERIED_01_8[[#This Row],[IdEstablecimiento]],'[2]Establecimiento 2024'!$A$1:$E$183,5,FALSE),0) -> 04101-La Serena | G83: =IFERROR(VLOOKUP(Tabla_SERIED_01_8[[#This Row],[IdEstablecimiento]],'[2]Establecimiento 2024'!$A$1:$E$183,3,FALSE),0) -> 105702-Centro Comunitario de Salud Familiar Lambert | H83: 2024-10-15T10:48:32 | I83: 27 | J83: 6.3 | K83: 10.8 | L83: 9.9
A84: 10 | B84: 5 | C84: 2024 | D84: 105468 | E84: 15050100 | F84: =IFERROR(VLOOKUP(Tabla_SERIED_01_8[[#This Row],[IdEstablecimiento]],'[2]Establecimiento 2024'!$A$1:$E$183,5,FALSE),0) -> 04106-Vicuña | G84: =IFERROR(VLOOKUP(Tabla_SERIED_01_8[[#This Row],[IdEstablecimiento]],'[2]Establecimiento 2024'!$A$1:$E$183,3,FALSE),0) -> 105468-Posta de Salud Rural El Molle | H84: 2024-11-15T14:38:39 | I84: 25 | J84: 15 | K84: 10 | L84: 0 | M84: 1 | N84: 2 | O84: 2 | P84: 4 | Q84: 9 | R84: 6 | S84: 1
A85: 10 | B85: 5 | C85: 2024 | D85: 105468 | E85: 15050200 | F85: =IFERROR(VLOOKUP(Tabla_SERIED_01_8[[#This Row],[IdEstablecimiento]],'[2]Establecimiento 2024'!$A$1:$E$183,5,FALSE),0) -> 04106-Vicuña | G85: =IFERROR(VLOOKUP(Tabla_SERIED_01_8[[#This Row],[IdEstablecimiento]],'[2]Establecimiento 2024'!$A$1:$E$183,3,FALSE),0) -> 105468-Posta de Salud Rural El Molle | H85: 2024-11-15T14:38:39 | I85: 1 | J85: 1 | Q85: 1
A86: 10 | B86: 5 | C86: 2024 | D86: 105468 | E86: 16090300 | F86: =IFERROR(VLOOKUP(Tabla_SERIED_01_8[[#This Row],[IdEstablecimiento]],'[2]Establecimiento 2024'!$A$1:$E$183,5,FALSE),0) -> 04106-Vicuña | G86: =IFERROR(VLOOKUP(Tabla_SERIED_01_8[[#This Row],[IdEstablecimiento]],'[2]Establecimiento 2024'!$A$1:$E$183,3,FALSE),0) -> 105468-Posta de Salud Rural El Molle | H86: 2024-11-15T14:38:39 | I86: 46 | J86: 46
A87: 10 | B87: 5 | C87: 2024 | D87: 105468 | E87: 16200210 | F87: =IFERROR(VLOOKUP(Tabla_SERIED_01_8[[#This Row],[IdEstablecimiento]],'[2]Establecimiento 2024'!$A$1:$E$183,5,FALSE),0) -> 04106-Vicuña | G87: =IFERROR(VLOOKUP(Tabla_SERIED_01_8[[#This Row],[IdEstablecimiento]],'[2]Establecimiento 2024'!$A$1:$E$183,3,FALSE),0) -> 105468-Posta de Salud Rural El Molle | H87: 2024-11-15T14:38:39 | I87: 4 | J87: 4
A88: 11 | B88: 5 | C88: 2024 | D88: 105108 | E88: 15900050 | F88: =IFERROR(VLOOKUP(Tabla_SERIED_01_8[[#This Row],[IdEstablecimiento]],'[2]Establecimiento 2024'!$A$1:$E$183,5,FALSE),0) -> 105108-Hospital Los Vilos | G88: =IFERROR(VLOOKUP(Tabla_SERIED_01_8[[#This Row],[IdEstablecimiento]],'[2]Establecimiento 2024'!$A$1:$E$183,3,FALSE),0) -> 105108-Hospital San Pedro (Los Vilos) | H88: 2024-12-18T15:35:16 | I88: 4 | J88: 4 | M88: 1 | N88: 1 | O88: 1 | P88: 1
A89: 11 | B89: 5 | C89: 2024 | D89: 105108 | E89: 16090300 | F89: =IFERROR(VLOOKUP(Tabla_SERIED_01_8[[#This Row],[IdEstablecimiento]],'[2]Establecimiento 2024'!$A$1:$E$183,5,FALSE),0) -> 105108-Hospital Los Vilos | G89: =IFERROR(VLOOKUP(Tabla_SERIED_01_8[[#This Row],[IdEstablecimiento]],'[2]Establecimiento 2024'!$A$1:$E$183,3,FALSE),0) -> 105108-Hospital San Pedro (Los Vilos) | H89: 2024-12-18T15:35:16 | I89: 481 | J89: 481
A90: 11 | B90: 5 | C90: 2024 | D90: 105108 | E90: 16200210 | F90: =IFERROR(VLOOKUP(Tabla_SERIED_01_8[[#This Row],[IdEstablecimiento]],'[2]Establecimiento 2024'!$A$1:$E$183,5,FALSE),0) -> 105108-Hospital Los Vilos | G90: =IFERROR(VLOOKUP(Tabla_SERIED_01_8[[#This Row],[IdEstablecimiento]],'[2]Establecimiento 2024'!$A$1:$E$183,3,FALSE),0) -> 105108-Hospital San Pedro (Los Vilos) | H90: 2024-12-18T15:35:16 | I90: 7 | J90: 7
A91: 11 | B91: 5 | C91: 2024 | D91: 105108 | E91: 16100300 | F91: =IFERROR(VLOOKUP(Tabla_SERIED_01_8[[#This Row],[IdEstablecimiento]],'[2]Establecimiento 2024'!$A$1:$E$183,5,FALSE),0) -> 105108-Hospital Los Vilos | G91: =IFERROR(VLOOKUP(Tabla_SERIED_01_8[[#This Row],[IdEstablecimiento]],'[2]Establecimiento 2024'!$A$1:$E$183,3,FALSE),0) -> 105108-Hospital San Pedro (Los Vilos) | H91: 2024-12-18T15:35:16 | I91: 481 | J91: 226 | K91: 255
A92: 11 | B92: 5 | C92: 2024 | D92: 105108 | E92: 16200220 | F92: =IFERROR(VLOOKUP(Tabla_SERIED_01_8[[#This Row],[IdEstablecimiento]],'[2]Establecimiento 2024'!$A$1:$E$183,5,FALSE),0) -> 105108-Hospital Los Vilos | G92: =IFERROR(VLOOKUP(Tabla_SERIED_01_8[[#This Row],[IdEstablecimiento]],'[2]Establecimiento 2024'!$A$1:$E$183,3,FALSE),0) -> 105108-Hospital San Pedro (Los Vilos) | H92: 2024-12-18T15:35:16 | I92: 7 | J92: 3 | K92: 4
A93: 11 | B93: 5 | C93: 2024 | D93: 105300 | E93: 15901200 | F93: =IFERROR(VLOOKUP(Tabla_SERIED_01_8[[#This Row],[IdEstablecimiento]],'[2]Establecimiento 2024'!$A$1:$E$183,5,FALSE),0) -> 04101-La Serena | G93: =IFERROR(VLOOKUP(Tabla_SERIED_01_8[[#This Row],[IdEstablecimiento]],'[2]Establecimiento 2024'!$A$1:$E$183,3,FALSE),0) -> 105300-Centro de Salud Familiar Cardenal Caro | H93: 2024-12-18T15:35:19 | I93: 96 | K93: 8.4 | L93: 28.4 | M93: 35.2 | N93: 24
A94: 11 | B94: 5 | C94: 2024 | D94: 105300 | E94: 15901300 | F94: =IFERROR(VLOOKUP(Tabla_SERIED_01_8[[#This Row],[IdEstablecimiento]],'[2]Establecimiento 2024'!$A$1:$E$183,5,FALSE),0) -> 04101-La Serena | G94: =IFERROR(VLOOKUP(Tabla_SERIED_01_8[[#This Row],[IdEstablecimiento]],'[2]Establecimiento 2024'!$A$1:$E$183,3,FALSE),0) -> 105300-Centro de Salud Familiar Cardenal Caro | H94: 2024-12-18T15:35:19 | I94: 46 | J94: 4.4 | K94: 8.8 | L94: 12.8 | M94: 16.8 | N94: 3.2
A95: 11 | B95: 5 | C95: 2024 | D95: 105300 | E95: 15060100 | F95: =IFERROR(VLOOKUP(Tabla_SERIED_01_8[[#This Row],[IdEstablecimiento]],'[2]Establecimiento 2024'!$A$1:$E$183,5,FALSE),0) -> 04101-La Serena | G95: =IFERROR(VLOOKUP(Tabla_SERIED_01_8[[#This Row],[IdEstablecimiento]],'[2]Establecimiento 2024'!$A$1:$E$183,3,FALSE),0) -> 105300-Centro de Salud Familiar Cardenal Caro | H95: 2024-12-18T15:35:19 | I95: 38 | J95: 17 | K95: 21 | N95: 2 | O95: 5 | P95: 3 | Q95: 17 | R95: 10 | S95: 1
A96: 11 | B96: 5 | C96: 2024 | D96: 105300 | E96: 15901400 | F96: =IFERROR(VLOOKUP(Tabla_SERIED_01_8[[#This Row],[IdEstablecimiento]],'[2]Establecimiento 2024'!$A$1:$E$183,5,FALSE),0) -> 04101-La Serena | G96: =IFERROR(VLOOKUP(Tabla_SERIED_01_8[[#This Row],[IdEstablecimiento]],'[2]Establecimiento 2024'!$A$1:$E$183,3,FALSE),0) -> 105300-Centro de Salud Familiar Cardenal Caro | H96: 2024-12-18T15:35:19 | I96: 38 | J96: 17 | K96: 21 | L96: 1 | M96: 5 | N96: 11 | O96: 14 | P96: 7
A97: 11 | B97: 5 | C97: 2024 | D97: 105300 | E97: 15080014 | F97: =IFERROR(VLOOKUP(Tabla_SERIED_01_8[[#This Row],[IdEstablecimiento]],'[2]Establecimiento 2024'!$A$1:$E$183,5,FALSE),0) -> 04101-La Serena | G97: =IFERROR(VLOOKUP(Tabla_SERIED_01_8[[#This Row],[IdEstablecimiento]],'[2]Establecimiento 2024'!$A$1:$E$183,3,FALSE),0) -> 105300-Centro de Salud Familiar Cardenal Caro | H97: 2024-12-18T15:35:19 | I97: 220 | M97: 102 | N97: 118
A98: 11 | B98: 5 | C98: 2024 | D98: 105300 | E98: 15080015 | F98: =IFERROR(VLOOKUP(Tabla_SERIED_01_8[[#This Row],[IdEstablecimiento]],'[2]Establecimiento 2024'!$A$1:$E$183,5,FALSE),0) -> 04101-La Serena | G98: =IFERROR(VLOOKUP(Tabla_SERIED_01_8[[#This Row],[IdEstablecimiento]],'[2]Establecimiento 2024'!$A$1:$E$183,3,FALSE),0) -> 105300-Centro de Salud Familiar Cardenal Caro | H98: 2024-12-18T15:35:19 | I98: 368 | O98: 244 | P98: 124
A99: 11 | B99: 5 | C99: 2024 | D99: 105300 | E99: 15080008 | F99: =IFERROR(VLOOKUP(Tabla_SERIED_01_8[[#This Row],[IdEstablecimiento]],'[2]Establecimiento 2024'!$A$1:$E$183,5,FALSE),0) -> 04101-La Serena | G99: =IFERROR(VLOOKUP(Tabla_SERIED_01_8[[#This Row],[IdEstablecimiento]],'[2]Establecimiento 2024'!$A$1:$E$183,3,FALSE),0) -> 105300-Centro de Salud Familiar Cardenal Caro | H99: 2024-12-18T15:35:19 | I99: 119 | Q99: 59 | S99: 24 | T99: 15 | U99: 21
A100: 11 | B100: 5 | C100: 2024 | D100: 105300 | E100: 15900010 | F100: =IFERROR(VLOOKUP(Tabla_SERIED_01_8[[#This Row],[IdEstablecimiento]],'[2]Establecimiento 2024'!$A$1:$E$183,5,FALSE),0) -> 04101-La Serena | G100: =IFERROR(VLOOKUP(Tabla_SERIED_01_8[[#This Row],[IdEstablecimiento]],'[2]Establecimiento 2024'!$A$1:$E$183,3,FALSE),0) -> 105300-Centro de Salud Familiar Cardenal Caro | H100: 2024-12-18T15:35:19 | I100: 181.8 | J100: 23.4 | K100: 27 | L100: 131.4
A101: 11 | B101: 5 | C101: 2024 | D101: 105300 | E101: 15030100 | F101: =IFERROR(VLOOKUP(Tabla_SERIED_01_8[[#This Row],[IdEstablecimiento]],'[2]Establecimiento 2024'!$A$1:$E$183,5,FALSE),0) -> 04101-La Serena | G101: =IFERROR(VLOOKUP(Tabla_SERIED_01_8[[#This Row],[IdEstablecimiento]],'[2]Establecimiento 2024'!$A$1:$E$183,3,FALSE),0) -> 105300-Centro de Salud Familiar Cardenal Caro | H101: 2024-12-18T15:35:19 | I101: 15.6 | J101: 6.8 | K101: 4.4 | L101: 4.4
A102: 11 | B102: 5 | C102: 2024 | D102: 105300 | E102: 15900040 | F102: =IFERROR(VLOOKUP(Tabla_SERIED_01_8[[#This Row],[IdEstablecimiento]],'[2]Establecimiento 2024'!$A$1:$E$183,5,FALSE),0) -> 04101-La Serena | G102: =IFERROR(VLOOKUP(Tabla_SERIED_01_8[[#This Row],[IdEstablecimiento]],'[2]Establecimiento 2024'!$A$1:$E$183,3,FALSE),0) -> 105300-Centro de Salud Familiar Cardenal Caro | H102: 2024-12-18T15:35:19 | I102: 34 | L102: 12.4 | M102: 8 | N102: 13.6
A103: 11 | B103: 5 | C103: 2024 | D103: 105300 | E103: 15050100 | F103: =IFERROR(VLOOKUP(Tabla_SERIED_01_8[[#This Row],[IdEstablecimiento]],'[2]Establecimiento 2024'!$A$1:$E$183,5,FALSE),0) -> 04101-La Serena | G103: =IFERROR(VLOOKUP(Tabla_SERIED_01_8[[#This Row],[IdEstablecimiento]],'[2]Establecimiento 2024'!$A$1:$E$183,3,FALSE),0) -> 105300-Centro de Salud Familiar Cardenal Caro | H103: 2024-12-18T15:35:19 | I103: 465 | J103: 192 | K103: 273 | L103: 10 | M103: 10 | N103: 44 | O103: 51 | P103: 59 | Q103: 122 | R103: 62 | S103: 59 | U103: 12 | V103: 15 | W103: 21
A104: 11 | B104: 5 | C104: 2024 | D104: 105300 | E104: 15050500 | F104: =IFERROR(VLOOKUP(Tabla_SERIED_01_8[[#This Row],[IdEstablecimiento]],'[2]Establecimiento 2024'!$A$1:$E$183,5,FALSE),0) -> 04101-La Serena | G104: =IFERROR(VLOOKUP(Tabla_SERIED_01_8[[#This Row],[IdEstablecimiento]],'[2]Establecimiento 2024'!$A$1:$E$183,3,FALSE),0) -> 105300-Centro de Salud Familiar Cardenal Caro | H104: 2024-12-18T15:35:19 | I104: 4 | J104: 1 | K104: 3 | L104: 2 | M104: 1 | N104: 1
A105: 11 | B105: 5 | C105: 2024 | D105: 105300 | E105: 15900050 | F105: =IFERROR(VLOOKUP(Tabla_SERIED_01_8[[#This Row],[IdEstablecimiento]],'[2]Establecimiento 2024'!$A$1:$E$183,5,FALSE),0) -> 04101-La Serena | G105: =IFERROR(VLOOKUP(Tabla_SERIED_01_8[[#This Row],[IdEstablecimiento]],'[2]Establecimiento 2024'!$A$1:$E$183,3,FALSE),0) -> 105300-Centro de Salud Familiar Cardenal Caro | H105: 2024-12-18T15:35:19 | I105: 10 | J105: 6 | K105: 4 | N105: 3 | O105: 3 | P105: 4
A106: 11 | B106: 5 | C106: 2024 | D106: 105300 | E106: 15080018 | F106: =IFERROR(VLOOKUP(Tabla_SERIED_01_8[[#This Row],[IdEstablecimiento]],'[2]Establecimiento 2024'!$A$1:$E$183,5,FALSE),0) -> 04101-La Serena | G106: =IFERROR(VLOOKUP(Tabla_SERIED_01_8[[#This Row],[IdEstablecimiento]],'[2]Establecimiento 2024'!$A$1:$E$183,3,FALSE),0) -> 105300-Centro de Salud Familiar Cardenal Caro | H106: 2024-12-18T15:35:19 | I106: 20 | L106: 4 | M106: 10 | N106: 6
A107: 11 | B107: 5 | C107: 2024 | D107: 105300 | E107: 15080019 | F107: =IFERROR(VLOOKUP(Tabla_SERIED_01_8[[#This Row],[IdEstablecimiento]],'[2]Establecimiento 2024'!$A$1:$E$183,5,FALSE),0) -> 04101-La Serena | G107: =IFERROR(VLOOKUP(Tabla_SERIED_01_8[[#This Row],[IdEstablecimiento]],'[2]Establecimiento 2024'!$A$1:$E$183,3,FALSE),0) -> 105300-Centro de Salud Familiar Cardenal Caro | H107: 2024-12-18T15:35:19 | I107: 53 | O107: 34 | P107: 19
A108: 11 | B108: 5 | C108: 2024 | D108: 105300 | E108: 15080010 | F108: =IFERROR(VLOOKUP(Tabla_SERIED_01_8[[#This Row],[IdEstablecimiento]],'[2]Establecimiento 2024'!$A$1:$E$183,5,FALSE),0) -> 04101-La Serena | G108: =IFERROR(VLOOKUP(Tabla_SERIED_01_8[[#This Row],[IdEstablecimiento]],'[2]Establecimiento 2024'!$A$1:$E$183,3,FALSE),0) -> 105300-Centro de Salud Familiar Cardenal Caro | H108: 2024-12-18T15:35:19 | I108: 1 | Q108: 1
A109: 11 | B109: 5 | C109: 2024 | D109: 105300 | E109: 16090300 | F109: =IFERROR(VLOOKUP(Tabla_SERIED_01_8[[#This Row],[IdEstablecimiento]],'[2]Establecimiento 2024'!$A$1:$E$183,5,FALSE),0) -> 04101-La Serena | G109: =IFERROR(VLOOKUP(Tabla_SERIED_01_8[[#This Row],[IdEstablecimiento]],'[2]Establecimiento 2024'!$A$1:$E$183,3,FALSE),0) -> 105300-Centro de Salud Familiar Cardenal Caro | H109: 2024-12-18T15:35:19 | I109: 1093 | J109: 1093
A110: 11 | B110: 5 | C110: 2024 | D110: 105300 | E110: 16200210 | F110: =IFERROR(VLOOKUP(Tabla_SERIED_01_8[[#This Row],[IdEstablecimiento]],'[2]Establecimiento 2024'!$A$1:$E$183,5,FALSE),0) -> 04101-La Serena | G110: =IFERROR(VLOOKUP(Tabla_SERIED_01_8[[#This Row],[IdEstablecimiento]],'[2]Establecimiento 2024'!$A$1:$E$183,3,FALSE),0) -> 105300-Centro de Salud Familiar Cardenal Caro | H110: 2024-12-18T15:35:19 | I110: 46 | J110: 46
A111: 11 | B111: 5 | C111: 2024 | D111: 105300 | E111: 16090100 | F111: =IFERROR(VLOOKUP(Tabla_SERIED_01_8[[#This Row],[IdEstablecimiento]],'[2]Establecimiento 2024'!$A$1:$E$183,5,FALSE),0) -> 04101-La Serena | G111: =IFERROR(VLOOKUP(Tabla_SERIED_01_8[[#This Row],[IdEstablecimiento]],'[2]Establecimiento 2024'!$A$1:$E$183,3,FALSE),0) -> 105300-Centro de Salud Familiar Cardenal Caro | H111: 2024-12-18T15:35:19 | I111: 11 | J111: 11
A112: 11 | B112: 5 | C112: 2024 | D112: 105300 | E112: 16100300 | F112: =IFERROR(VLOOKUP(Tabla_SERIED_01_8[[#This Row],[IdEstablecimiento]],'[2]Establecimiento 2024'!$A$1:$E$183,5,FALSE),0) -> 04101-La Serena | G112: =IFERROR(VLOOKUP(Tabla_SERIED_01_8[[#This Row],[IdEstablecimiento]],'[2]Establecimiento 2024'!$A$1:$E$183,3,FALSE),0) -> 105300-Centro de Salud Familiar Cardenal Caro | H112: 2024-12-18T15:35:19 | I112: 1093 | J112: 444 | K112: 649
A113: 11 | B113: 5 | C113: 2024 | D113: 105300 | E113: 16200220 | F113: =IFERROR(VLOOKUP(Tabla_SERIED_01_8[[#This Row],[IdEstablecimiento]],'[2]Establecimiento 2024'!$A$1:$E$183,5,FALSE),0) -> 04101-La Serena | G113: =IFERROR(VLOOKUP(Tabla_SERIED_01_8[[#This Row],[IdEstablecimiento]],'[2]Establecimiento 2024'!$A$1:$E$183,3,FALSE),0) -> 105300-Centro de Salud Familiar Cardenal Caro | H113: 2024-12-18T15:35:19 | I113: 46 | J113: 25 | K113: 21
A114: 11 | B114: 5 | C114: 2024 | D114: 105300 | E114: 16100100 | F114: =IFERROR(VLOOKUP(Tabla_SERIED_01_8[[#This Row],[IdEstablecimiento]],'[2]Establecimiento 2024'!$A$1:$E$183,5,FALSE),0) -> 04101-La Serena | G114: =IFERROR(VLOOKUP(Tabla_SERIED_01_8[[#This Row],[IdEstablecimiento]],'[2]Establecimiento 2024'!$A$1:$E$183,3,FALSE),0) -> 105300-Centro de Salud Familiar Cardenal Caro | H114: 2024-12-18T15:35:19 | I114: 11 | J114: 7 | K114: 4
A115: 11 | B115: 5 | C115: 2024 | D115: 105301 | E115: 15060100 | F115: =IFERROR(VLOOKUP(Tabla_SERIED_01_8[[#This Row],[IdEstablecimiento]],'[2]Establecimiento 2024'!$A$1:$E$183,5,FALSE),0) -> 04101-La Serena | G115: =IFERROR(VLOOKUP(Tabla_SERIED_01_8[[#This Row],[IdEstablecimiento]],'[2]Establecimiento 2024'!$A$1:$E$183,3,FALSE),0) -> 105301-Centro de Salud Familiar Las Compañías | H115: 2024-12-18T15:35:21 | I115: 3 | J115: 2 | K115: 1 | Q115: 1 | R115: 2
A116: 11 | B116: 5 | C116: 2024 | D116: 105301 | E116: 15080014 | F116: =IFERROR(VLOOKUP(Tabla_SERIED_01_8[[#This Row],[IdEstablecimiento]],'[2]Establecimiento 2024'!$A$1:$E$183,5,FALSE),0) -> 04101-La Serena | G116: =IFERROR(VLOOKUP(Tabla_SERIED_01_8[[#This Row],[IdEstablecimiento]],'[2]Establecimiento 2024'!$A$1:$E$183,3,FALSE),0) -> 105301-Centro de Salud Familiar Las Compañías | H116: 2024-12-18T15:35:21 | I116: 180 | M116: 90 | N116: 90
A117: 11 | B117: 5 | C117: 2024 | D117: 105301 | E117: 15080015 | F117: =IFERROR(VLOOKUP(Tabla_SERIED_01_8[[#This Row],[IdEstablecimiento]],'[2]Establecimiento 2024'!$A$1:$E$183,5,FALSE),0) -> 04101-La Serena | G117: =IFERROR(VLOOKUP(Tabla_SERIED_01_8[[#This Row],[IdEstablecimiento]],'[2]Establecimiento 2024'!$A$1:$E$183,3,FALSE),0) -> 105301-Centro de Salud Familiar Las Compañías | H117: 2024-12-18T15:35:21 | I117: 351 | O117: 219 | P117: 131 | Q117: 1
A118: 11 | B118: 5 | C118: 2024 | D118: 105301 | E118: 15080008 | F118: =IFERROR(VLOOKUP(Tabla_SERIED_01_8[[#This Row],[IdEstablecimiento]],'[2]Establecimiento 2024'!$A$1:$E$183,5,FALSE),0) -> 04101-La Serena | G118: =IFERROR(VLOOKUP(Tabla_SERIED_01_8[[#This Row],[IdEstablecimiento]],'[2]Establecimiento 2024'!$A$1:$E$183,3,FALSE),0) -> 105301-Centro de Salud Familiar Las Compañías | H118: 2024-12-18T15:35:21 | I118: 82 | Q118: 30 | S118: 24 | T118: 8 | U118: 20
A119: 11 | B119: 5 | C119: 2024 | D119: 105301 | E119: 15900010 | F119: =IFERROR(VLOOKUP(Tabla_SERIED_01_8[[#This Row],[IdEstablecimiento]],'[2]Establecimiento 2024'!$A$1:$E$183,5,FALSE),0) -> 04101-La Serena | G119: =IFERROR(VLOOKUP(Tabla_SERIED_01_8[[#This Row],[IdEstablecimiento]],'[2]Establecimiento 2024'!$A$1:$E$183,3,FALSE),0) -> 105301-Centro de Salud Familiar Las Compañías | H119: 2024-12-18T15:35:21 | I119: 189 | J119: 37.8 | K119: 56.7 | L119: 94.5
A120: 11 | B120: 5 | C120: 2024 | D120: 105301 | E120: 15080016 | F120: =IFERROR(VLOOKUP(Tabla_SERIED_01_8[[#This Row],[IdEstablecimiento]],'[2]Establecimiento 2024'!$A$1:$E$183,5,FALSE),0) -> 04101-La Serena | G120: =IFERROR(VLOOKUP(Tabla_SERIED_01_8[[#This Row],[IdEstablecimiento]],'[2]Establecimiento 2024'!$A$1:$E$183,3,FALSE),0) -> 105301-Centro de Salud Familiar Las Compañías | H120: 2024-12-18T15:35:21 | I120: 6 | N120: 2 | P120: 4
A121: 11 | B121: 5 | C121: 2024 | D121: 105301 | E121: 15010500 | F121: =IFERROR(VLOOKUP(Tabla_SERIED_01_8[[#This Row],[IdEstablecimiento]],'[2]Establecimiento 2024'!$A$1:$E$183,5,FALSE),0) -> 04101-La Serena | G121: =IFERROR(VLOOKUP(Tabla_SERIED_01_8[[#This Row],[IdEstablecimiento]],'[2]Establecimiento 2024'!$A$1:$E$183,3,FALSE),0) -> 105301-Centro de Salud Familiar Las Compañías | H121: 2024-12-18T15:35:21 | I121: 6 | N121: 2 | P121: 4
A122: 11 | B122: 5 | C122: 2024 | D122: 105301 | E122: 15900020 | F122: =IFERROR(VLOOKUP(Tabla_SERIED_01_8[[#This Row],[IdEstablecimiento]],'[2]Establecimiento 2024'!$A$1:$E$183,5,FALSE),0) -> 04101-La Serena | G122: =IFERROR(VLOOKUP(Tabla_SERIED_01_8[[#This Row],[IdEstablecimiento]],'[2]Establecimiento 2024'!$A$1:$E$183,3,FALSE),0) -> 105301-Centro de Salud Familiar Las Compañías | H122: 2024-12-18T15:35:21 | I122: 4.5 | L122: 4.5
A123: 4 | B123: 5 | C123: 2024 | D123: 105415 | E123: 15900010 | F123: =IFERROR(VLOOKUP(Tabla_SERIED_01_8[[#This Row],[IdEstablecimiento]],'[2]Establecimiento 2024'!$A$1:$E$183,5,FALSE),0) -> 04301-Ovalle | G123: =IFERROR(VLOOKUP(Tabla_SERIED_01_8[[#This Row],[IdEstablecimiento]],'[2]Establecimiento 2024'!$A$1:$E$183,3,FALSE),0) -> 105415-Posta de Salud Rural Barraza | H123: 2024-05-23T18:08:16 | I123: 5.4 | L123: 5.4
A124: 4 | B124: 5 | C124: 2024 | D124: 105415 | E124: 15050100 | F124: =IFERROR(VLOOKUP(Tabla_SERIED_01_8[[#This Row],[IdEstablecimiento]],'[2]Establecimiento 2024'!$A$1:$E$183,5,FALSE),0) -> 04301-Ovalle | G124: =IFERROR(VLOOKUP(Tabla_SERIED_01_8[[#This Row],[IdEstablecimiento]],'[2]Establecimiento 2024'!$A$1:$E$183,3,FALSE),0) -> 105415-Posta de Salud Rural Barraza | H124: 2024-05-23T18:08:16 | I124: 18 | J124: 9 | K124: 9 | N124: 2 | O124: 3 | P124: 5 | Q124: 2 | R124: 2 | S124: 2 | W124: 2
A125: 4 | B125: 5 | C125: 2024 | D125: 105415 | E125: 16090300 | F125: =IFERROR(VLOOKUP(Tabla_SERIED_01_8[[#This Row],[IdEstablecimiento]],'[2]Establecimiento 2024'!$A$1:$E$183,5,FALSE),0) -> 04301-Ovalle | G125: =IFERROR(VLOOKUP(Tabla_SERIED_01_8[[#This Row],[IdEstablecimiento]],'[2]Establecimiento 2024'!$A$1:$E$183,3,FALSE),0) -> 105415-Posta de Salud Rural Barraza | H125: 2024-05-23T18:08:16 | I125: 167 | J125: 167
A126: 4 | B126: 5 | C126: 2024 | D126: 105415 | E126: 16100300 | F126: =IFERROR(VLOOKUP(Tabla_SERIED_01_8[[#This Row],[IdEstablecimiento]],'[2]Establecimiento 2024'!$A$1:$E$183,5,FALSE),0) -> 04301-Ovalle | G126: =IFERROR(VLOOKUP(Tabla_SERIED_01_8[[#This Row],[IdEstablecimiento]],'[2]Establecimiento 2024'!$A$1:$E$183,3,FALSE),0) -> 105415-Posta de Salud Rural Barraza | H126: 2024-05-23T18:08:16 | I126: 167 | J126: 68 | K126: 99
A127: 4 | B127: 5 | C127: 2024 | D127: 105400 | E127: 16090300 | F127: =IFERROR(VLOOKUP(Tabla_SERIED_01_8[[#This Row],[IdEstablecimiento]],'[2]Establecimiento 2024'!$A$1:$E$183,5,FALSE),0) -> 04101-La Serena | G127: =IFERROR(VLOOKUP(Tabla_SERIED_01_8[[#This Row],[IdEstablecimiento]],'[2]Establecimiento 2024'!$A$1:$E$183,3,FALSE),0) -> 105400-Posta de Salud Rural Algarrobito | H127: 2024-05-23T18:08:06 | I127: 304 | J127: 304
A128: 4 | B128: 5 | C128: 2024 | D128: 105402 | E128: 15080014 | F128: =IFERROR(VLOOKUP(Tabla_SERIED_01_8[[#This Row],[IdEstablecimiento]],'[2]Establecimiento 2024'!$A$1:$E$183,5,FALSE),0) -> 04101-La Serena | G128: =IFERROR(VLOOKUP(Tabla_SERIED_01_8[[#This Row],[IdEstablecimiento]],'[2]Establecimiento 2024'!$A$1:$E$183,3,FALSE),0) -> 105402-Posta de Salud Rural El Romero | H128: 2024-05-23T18:08:08 | I128: 16 | M128: 6 | N128: 10
A129: 4 | B129: 5 | C129: 2024 | D129: 105402 | E129: 15080015 | F129: =IFERROR(VLOOKUP(Tabla_SERIED_01_8[[#This Row],[IdEstablecimiento]],'[2]Establecimiento 2024'!$A$1:$E$183,5,FALSE),0) -> 04101-La Serena | G129: =IFERROR(VLOOKUP(Tabla_SERIED_01_8[[#This Row],[IdEstablecimiento]],'[2]Establecimiento 2024'!$A$1:$E$183,3,FALSE),0) -> 105402-Posta de Salud Rural El Romero | H129: 2024-05-23T18:08:08 | I129: 28 | O129: 20 | P129: 8
A130: 4 | B130: 5 | C130: 2024 | D130: 105402 | E130: 15080008 | F130: =IFERROR(VLOOKUP(Tabla_SERIED_01_8[[#This Row],[IdEstablecimiento]],'[2]Establecimiento 2024'!$A$1:$E$183,5,FALSE),0) -> 04101-La Serena | G130: =IFERROR(VLOOKUP(Tabla_SERIED_01_8[[#This Row],[IdEstablecimiento]],'[2]Establecimiento 2024'!$A$1:$E$183,3,FALSE),0) -> 105402-Posta de Salud Rural El Romero | H130: 2024-05-23T18:08:08 | I130: 1 | Q130: 1
A131: 4 | B131: 5 | C131: 2024 | D131: 105402 | E131: 15900010 | F131: =IFERROR(VLOOKUP(Tabla_SERIED_01_8[[#This Row],[IdEstablecimiento]],'[2]Establecimiento 2024'!$A$1:$E$183,5,FALSE),0) -> 04101-La Serena | G131: =IFERROR(VLOOKUP(Tabla_SERIED_01_8[[#This Row],[IdEstablecimiento]],'[2]Establecimiento 2024'!$A$1:$E$183,3,FALSE),0) -> 105402-Posta de Salud Rural El Romero | H131: 2024-05-23T18:08:08 | I131: 11.7 | K131: 3.6 | L131: 8.1
A132: 4 | B132: 5 | C132: 2024 | D132: 105402 | E132: 15050100 | F132: =IFERROR(VLOOKUP(Tabla_SERIED_01_8[[#This Row],[IdEstablecimiento]],'[2]Establecimiento 2024'!$A$1:$E$183,5,FALSE),0) -> 04101-La Serena | G132: =IFERROR(VLOOKUP(Tabla_SERIED_01_8[[#This Row],[IdEstablecimiento]],'[2]Establecimiento 2024'!$A$1:$E$183,3,FALSE),0) -> 105402-Posta de Salud Rural El Romero | H132: 2024-05-23T18:08:08 | I132: 28 | J132: 10 | K132: 18 | M132: 2 | N132: 3 | O132: 3 | P132: 5 | Q132: 10 | R132: 4 | S132: 1
A133: 4 | B133: 5 | C133: 2024 | D133: 105402 | E133: 16090300 | F133: =IFERROR(VLOOKUP(Tabla_SERIED_01_8[[#This Row],[IdEstablecimiento]],'[2]Establecimiento 2024'!$A$1:$E$183,5,FALSE),0) -> 04101-La Serena | G133: =IFERROR(VLOOKUP(Tabla_SERIED_01_8[[#This Row],[IdEstablecimiento]],'[2]Establecimiento 2024'!$A$1:$E$183,3,FALSE),0) -> 105402-Posta de Salud Rural El Romero | H133: 2024-05-23T18:08:08 | I133: 64 | J133: 64
A134: 4 | B134: 5 | C134: 2024 | D134: 105402 | E134: 16100300 | F134: =IFERROR(VLOOKUP(Tabla_SERIED_01_8[[#This Row],[IdEstablecimiento]],'[2]Establecimiento 2024'!$A$1:$E$183,5,FALSE),0) -> 04101-La Serena | G134: =IFERROR(VLOOKUP(Tabla_SERIED_01_8[[#This Row],[IdEstablecimiento]],'[2]Establecimiento 2024'!$A$1:$E$183,3,FALSE),0) -> 105402-Posta de Salud Rural El Romero | H134: 2024-05-23T18:08:08 | I134: 64 | J134: 31 | K134: 33
A135: 4 | B135: 5 | C135: 2024 | D135: 105416 | E135: 16200100 | F135: =IFERROR(VLOOKUP(Tabla_SERIED_01_8[[#This Row],[IdEstablecimiento]],'[2]Establecimiento 2024'!$A$1:$E$183,5,FALSE),0) -> 04301-Ovalle | G135: =IFERROR(VLOOKUP(Tabla_SERIED_01_8[[#This Row],[IdEstablecimiento]],'[2]Establecimiento 2024'!$A$1:$E$183,3,FALSE),0) -> 105416-Posta de Salud Rural Camarico (Ovalle) | H135: 2024-05-23T18:08:17 | I135: 2 | J135: 2
A136: 4 | B136: 5 | C136: 2024 | D136: 105417 | E136: 15080014 | F136: =IFERROR(VLOOKUP(Tabla_SERIED_01_8[[#This Row],[IdEstablecimiento]],'[2]Establecimiento 2024'!$A$1:$E$183,5,FALSE),0) -> 04301-Ovalle | G136: =IFERROR(VLOOKUP(Tabla_SERIED_01_8[[#This Row],[IdEstablecimiento]],'[2]Establecimiento 2024'!$A$1:$E$183,3,FALSE),0) -> 105417-Posta de Salud Rural Alcones Bajo | H136: 2024-05-23T18:08:18 | I136: 14 | M136: 6 | N136: 8
A137: 2 | B137: 5 | C137: 2024 | D137: 105493 | E137: 15080015 | F137: =IFERROR(VLOOKUP(Tabla_SERIED_01_8[[#This Row],[IdEstablecimiento]],'[2]Establecimiento 2024'!$A$1:$E$183,5,FALSE),0) -> 04202-Canela | G137: =IFERROR(VLOOKUP(Tabla_SERIED_01_8[[#This Row],[IdEstablecimiento]],'[2]Establecimiento 2024'!$A$1:$E$183,3,FALSE),0) -> 105493-Posta de Salud Rural Mincha Sur | H137: 2024-03-21T08:55:29 | I137: 4 | O137: 2 | P137: 2
A138: 2 | B138: 5 | C138: 2024 | D138: 105493 | E138: 15050100 | F138: =IFERROR(VLOOKUP(Tabla_SERIED_01_8[[#This Row],[IdEstablecimiento]],'[2]Establecimiento 2024'!$A$1:$E$183,5,FALSE),0) -> 04202-Canela | G138: =IFERROR(VLOOKUP(Tabla_SERIED_01_8[[#This Row],[IdEstablecimiento]],'[2]Establecimiento 2024'!$A$1:$E$183,3,FALSE),0) -> 105493-Posta de Salud Rural Mincha Sur | H138: 2024-03-21T08:55:29 | I138: 2 | J138: 0 | K138: 2 | Q138: 1 | R138: 1
A139: 2 | B139: 5 | C139: 2024 | D139: 105493 | E139: 16090300 | F139: =IFERROR(VLOOKUP(Tabla_SERIED_01_8[[#This Row],[IdEstablecimiento]],'[2]Establecimiento 2024'!$A$1:$E$183,5,FALSE),0) -> 04202-Canela | G139: =IFERROR(VLOOKUP(Tabla_SERIED_01_8[[#This Row],[IdEstablecimiento]],'[2]Establecimiento 2024'!$A$1:$E$183,3,FALSE),0) -> 105493-Posta de Salud Rural Mincha Sur | H139: 2024-03-21T08:55:29 | I139: 28 | J139: 28
A140: 10 | B140: 5 | C140: 2024 | D140: 105466 | E140: 16200210 | F140: =IFERROR(VLOOKUP(Tabla_SERIED_01_8[[#This Row],[IdEstablecimiento]],'[2]Establecimiento 2024'!$A$1:$E$183,5,FALSE),0) -> 04302-Combarbalá | G140: =IFERROR(VLOOKUP(Tabla_SERIED_01_8[[#This Row],[IdEstablecimiento]],'[2]Establecimiento 2024'!$A$1:$E$183,3,FALSE),0) -> 105466-Posta de Salud Rural Valle Hermoso | H140: 2024-11-15T14:38:35 | I140: 16 | J140: 16
A141: 10 | B141: 5 | C141: 2024 | D141: 105466 | E141: 16100300 | F141: =IFERROR(VLOOKUP(Tabla_SERIED_01_8[[#This Row],[IdEstablecimiento]],'[2]Establecimiento 2024'!$A$1:$E$183,5,FALSE),0) -> 04302-Combarbalá | G141: =IFERROR(VLOOKUP(Tabla_SERIED_01_8[[#This Row],[IdEstablecimiento]],'[2]Establecimiento 2024'!$A$1:$E$183,3,FALSE),0) -> 105466-Posta de Salud Rural Valle Hermoso | H141: 2024-11-15T14:38:35 | I141: 40 | J141: 19 | K141: 21
A142: 10 | B142: 5 | C142: 2024 | D142: 105466 | E142: 16200220 | F142: =IFERROR(VLOOKUP(Tabla_SERIED_01_8[[#This Row],[IdEstablecimiento]],'[2]Establecimiento 2024'!$A$1:$E$183,5,FALSE),0) -> 04302-Combarbalá | G142: =IFERROR(VLOOKUP(Tabla_SERIED_01_8[[#This Row],[IdEstablecimiento]],'[2]Establecimiento 2024'!$A$1:$E$183,3,FALSE),0) -> 105466-Posta de Salud Rural Valle Hermoso | H142: 2024-11-15T14:38:35 | I142: 16 | J142: 9 | K142: 7
A143: 10 | B143: 5 | C143: 2024 | D143: 105467 | E143: 15080014 | F143: =IFERROR(VLOOKUP(Tabla_SERIED_01_8[[#This Row],[IdEstablecimiento]],'[2]Establecimiento 2024'!$A$1:$E$183,5,FALSE),0) -> 04106-Vicuña | G143: =IFERROR(VLOOKUP(Tabla_SERIED_01_8[[#This Row],[IdEstablecimiento]],'[2]Establecimiento 2024'!$A$1:$E$183,3,FALSE),0) -> 105467-Posta de Salud Rural Diaguitas | H143: 2024-11-15T14:38:37 | I143: 22 | M143: 8 | N143: 14
A144: 10 | B144: 5 | C144: 2024 | D144: 105467 | E144: 15080015 | F144: =IFERROR(VLOOKUP(Tabla_SERIED_01_8[[#This Row],[IdEstablecimiento]],'[2]Establecimiento 2024'!$A$1:$E$183,5,FALSE),0) -> 04106-Vicuña | G144: =IFERROR(VLOOKUP(Tabla_SERIED_01_8[[#This Row],[IdEstablecimiento]],'[2]Establecimiento 2024'!$A$1:$E$183,3,FALSE),0) -> 105467-Posta de Salud Rural Diaguitas | H144: 2024-11-15T14:38:37 | I144: 28 | O144: 12 | P144: 16
A145: 10 | B145: 5 | C145: 2024 | D145: 105467 | E145: 15080008 | F145: =IFERROR(VLOOKUP(Tabla_SERIED_01_8[[#This Row],[IdEstablecimiento]],'[2]Establecimiento 2024'!$A$1:$E$183,5,FALSE),0) -> 04106-Vicuña | G145: =IFERROR(VLOOKUP(Tabla_SERIED_01_8[[#This Row],[IdEstablecimiento]],'[2]Establecimiento 2024'!$A$1:$E$183,3,FALSE),0) -> 105467-Posta de Salud Rural Diaguitas | H145: 2024-11-15T14:38:37 | I145: 4 | Q145: 3 | T145: 1
A146: 10 | B146: 5 | C146: 2024 | D146: 105467 | E146: 15900010 | F146: =IFERROR(VLOOKUP(Tabla_SERIED_01_8[[#This Row],[IdEstablecimiento]],'[2]Establecimiento 2024'!$A$1:$E$183,5,FALSE),0) -> 04106-Vicuña | G146: =IFERROR(VLOOKUP(Tabla_SERIED_01_8[[#This Row],[IdEstablecimiento]],'[2]Establecimiento 2024'!$A$1:$E$183,3,FALSE),0) -> 105467-Posta de Salud Rural Diaguitas | H146: 2024-11-15T14:38:37 | I146: 11.7 | J146: 2.7 | K146: 0.9 | L146: 8.1
A147: 10 | B147: 5 | C147: 2024 | D147: 105467 | E147: 15080016 | F147: =IFERROR(VLOOKUP(Tabla_SERIED_01_8[[#This Row],[IdEstablecimiento]],'[2]Establecimiento 2024'!$A$1:$E$183,5,FALSE),0) -> 04106-Vicuña | G147: =IFERROR(VLOOKUP(Tabla_SERIED_01_8[[#This Row],[IdEstablecimiento]],'[2]Establecimiento 2024'!$A$1:$E$183,3,FALSE),0) -> 105467-Posta de Salud Rural Diaguitas | H147: 2024-11-15T14:38:37 | I147: 2 | O147: 2
A148: 10 | B148: 5 | C148: 2024 | D148: 105467 | E148: 15010500 | F148: =IFERROR(VLOOKUP(Tabla_SERIED_01_8[[#This Row],[IdEstablecimiento]],'[2]Establecimiento 2024'!$A$1:$E$183,5,FALSE),0) -> 04106-Vicuña | G148: =IFERROR(VLOOKUP(Tabla_SERIED_01_8[[#This Row],[IdEstablecimiento]],'[2]Establecimiento 2024'!$A$1:$E$183,3,FALSE),0) -> 105467-Posta de Salud Rural Diaguitas | H148: 2024-11-15T14:38:37 | I148: 2 | O148: 2
A149: 10 | B149: 5 | C149: 2024 | D149: 105482 | E149: 15080014 | F149: =IFERROR(VLOOKUP(Tabla_SERIED_01_8[[#This Row],[IdEstablecimiento]],'[2]Establecimiento 2024'!$A$1:$E$183,5,FALSE),0) -> 04202-Canela | G149: =IFERROR(VLOOKUP(Tabla_SERIED_01_8[[#This Row],[IdEstablecimiento]],'[2]Establecimiento 2024'!$A$1:$E$183,3,FALSE),0) -> 105482-Posta de Salud Rural Canela Alta | H149: 2024-11-15T14:39:16 | I149: 2 | M149: 2
A150: 10 | B150: 5 | C150: 2024 | D150: 105482 | E150: 15080015 | F150: =IFERROR(VLOOKUP(Tabla_SERIED_01_8[[#This Row],[IdEstablecimiento]],'[2]Establecimiento 2024'!$A$1:$E$183,5,FALSE),0) -> 04202-Canela | G150: =IFERROR(VLOOKUP(Tabla_SERIED_01_8[[#This Row],[IdEstablecimiento]],'[2]Establecimiento 2024'!$A$1:$E$183,3,FALSE),0) -> 105482-Posta de Salud Rural Canela Alta | H150: 2024-11-15T14:39:16 | I150: 4 | O150: 4
A151: 10 | B151: 5 | C151: 2024 | D151: 105482 | E151: 15050100 | F151: =IFERROR(VLOOKUP(Tabla_SERIED_01_8[[#This Row],[IdEstablecimiento]],'[2]Establecimiento 2024'!$A$1:$E$183,5,FALSE),0) -> 04202-Canela | G151: =IFERROR(VLOOKUP(Tabla_SERIED_01_8[[#This Row],[IdEstablecimiento]],'[2]Establecimiento 2024'!$A$1:$E$183,3,FALSE),0) -> 105482-Posta de Salud Rural Canela Alta | H151: 2024-11-15T14:39:16 | I151: 3 | J151: 2 | K151: 1 | O151: 1 | Q151: 2
A152: 10 | B152: 5 | C152: 2024 | D152: 105482 | E152: 16090300 | F152: =IFERROR(VLOOKUP(Tabla_SERIED_01_8[[#This Row],[IdEstablecimiento]],'[2]Establecimiento 2024'!$A$1:$E$183,5,FALSE),0) -> 04202-Canela | G152: =IFERROR(VLOOKUP(Tabla_SERIED_01_8[[#This Row],[IdEstablecimiento]],'[2]Establecimiento 2024'!$A$1:$E$183,3,FALSE),0) -> 105482-Posta de Salud Rural Canela Alta | H152: 2024-11-15T14:39:16 | I152: 104 | J152: 104
A153: 10 | B153: 5 | C153: 2024 | D153: 105482 | E153: 16200210 | F153: =IFERROR(VLOOKUP(Tabla_SERIED_01_8[[#This Row],[IdEstablecimiento]],'[2]Establecimiento 2024'!$A$1:$E$183,5,FALSE),0) -> 04202-Canela | G153: =IFERROR(VLOOKUP(Tabla_SERIED_01_8[[#This Row],[IdEstablecimiento]],'[2]Establecimiento 2024'!$A$1:$E$183,3,FALSE),0) -> 105482-Posta de Salud Rural Canela Alta | H153: 2024-11-15T14:39:16 | I153: 3 | J153: 3
A154: 10 | B154: 5 | C154: 2024 | D154: 105482 | E154: 16100300 | F154: =IFERROR(VLOOKUP(Tabla_SERIED_01_8[[#This Row],[IdEstablecimiento]],'[2]Establecimiento 2024'!$A$1:$E$183,5,FALSE),0) -> 04202-Canela | G154: =IFERROR(VLOOKUP(Tabla_SERIED_01_8[[#This Row],[IdEstablecimiento]],'[2]Establecimiento 2024'!$A$1:$E$183,3,FALSE),0) -> 105482-Posta de Salud Rural Canela Alta | H154: 2024-11-15T14:39:16 | I154: 104 | J154: 54 | K154: 50
A155: 10 | B155: 5 | C155: 2024 | D155: 105482 | E155: 16200220 | F155: =IFERROR(VLOOKUP(Tabla_SERIED_01_8[[#This Row],[IdEstablecimiento]],'[2]Establecimiento 2024'!$A$1:$E$183,5,FALSE),0) -> 04202-Canela | G155: =IFERROR(VLOOKUP(Tabla_SERIED_01_8[[#This Row],[IdEstablecimiento]],'[2]Establecimiento 2024'!$A$1:$E$183,3,FALSE),0) -> 105482-Posta de Salud Rural Canela Alta | H155: 2024-11-15T14:39:16 | I155: 3 | J155: 0 | K155: 3
A156: 10 | B156: 5 | C156: 2024 | D156: 105483 | E156: 15080015 | F156: =IFERROR(VLOOKUP(Tabla_SERIED_01_8[[#This Row],[IdEstablecimiento]],'[2]Establecimiento 2024'!$A$1:$E$183,5,FALSE),0) -> 04202-Canela | G156: =IFERROR(VLOOKUP(Tabla_SERIED_01_8[[#This Row],[IdEstablecimiento]],'[2]Establecimiento 2024'!$A$1:$E$183,3,FALSE),0) -> 105483-Posta de Salud Rural Los Rulos | H156: 2024-11-15T14:39:18 | I156: 4 | O156: 4
A157: 10 | B157: 5 | C157: 2024 | D157: 105433 | E157: 16200210 | F157: =IFERROR(VLOOKUP(Tabla_SERIED_01_8[[#This Row],[IdEstablecimiento]],'[2]Establecimiento 2024'!$A$1:$E$183,5,FALSE),0) -> 04302-Combarbalá | G157: =IFERROR(VLOOKUP(Tabla_SERIED_01_8[[#This Row],[IdEstablecimiento]],'[2]Establecimiento 2024'!$A$1:$E$183,3,FALSE),0) -> 105433-Posta de Salud Rural San Lorenzo (Combarbalá) | H157: 2024-11-15T14:37:22 | I157: 5 | J157: 5
A158: 10 | B158: 5 | C158: 2024 | D158: 105433 | E158: 16100300 | F158: =IFERROR(VLOOKUP(Tabla_SERIED_01_8[[#This Row],[IdEstablecimiento]],'[2]Establecimiento 2024'!$A$1:$E$183,5,FALSE),0) -> 04302-Combarbalá | G158: =IFERROR(VLOOKUP(Tabla_SERIED_01_8[[#This Row],[IdEstablecimiento]],'[2]Establecimiento 2024'!$A$1:$E$183,3,FALSE),0) -> 105433-Posta de Salud Rural San Lorenzo (Combarbalá) | H158: 2024-11-15T14:37:22 | I158: 21 | J158: 11 | K158: 10
A159: 10 | B159: 5 | C159: 2024 | D159: 105433 | E159: 16200220 | F159: =IFERROR(VLOOKUP(Tabla_SERIED_01_8[[#This Row],[IdEstablecimiento]],'[2]Establecimiento 2024'!$A$1:$E$183,5,FALSE),0) -> 04302-Combarbalá | G159: =IFERROR(VLOOKUP(Tabla_SERIED_01_8[[#This Row],[IdEstablecimiento]],'[2]Establecimiento 2024'!$A$1:$E$183,3,FALSE),0) -> 105433-Posta de Salud Rural San Lorenzo (Combarbalá) | H159: 2024-11-15T14:37:22 | I159: 5 | J159: 2 | K159: 3
A160: 10 | B160: 5 | C160: 2024 | D160: 105434 | E160: 15080014 | F160: =IFERROR(VLOOKUP(Tabla_SERIED_01_8[[#This Row],[IdEstablecimiento]],'[2]Establecimiento 2024'!$A$1:$E$183,5,FALSE),0) -> 04302-Combarbalá | G160: =IFERROR(VLOOKUP(Tabla_SERIED_01_8[[#This Row],[IdEstablecimiento]],'[2]Establecimiento 2024'!$A$1:$E$183,3,FALSE),0) -> 105434-Posta de Salud Rural San Marcos (Combarbalá) | H160: 2024-11-15T14:37:24 | I160: 4 | M160: 2 | N160: 2
A161: 10 | B161: 5 | C161: 2024 | D161: 105434 | E161: 15080015 | F161: =IFERROR(VLOOKUP(Tabla_SERIED_01_8[[#This Row],[IdEstablecimiento]],'[2]Establecimiento 2024'!$A$1:$E$183,5,FALSE),0) -> 04302-Combarbalá | G161: =IFERROR(VLOOKUP(Tabla_SERIED_01_8[[#This Row],[IdEstablecimiento]],'[2]Establecimiento 2024'!$A$1:$E$183,3,FALSE),0) -> 105434-Posta de Salud Rural San Marcos (Combarbalá) | H161: 2024-11-15T14:37:24 | I161: 14 | O161: 2 | P161: 12
A162: 10 | B162: 5 | C162: 2024 | D162: 105434 | E162: 15080008 | F162: =IFERROR(VLOOKUP(Tabla_SERIED_01_8[[#This Row],[IdEstablecimiento]],'[2]Establecimiento 2024'!$A$1:$E$183,5,FALSE),0) -> 04302-Combarbalá | G162: =IFERROR(VLOOKUP(Tabla_SERIED_01_8[[#This Row],[IdEstablecimiento]],'[2]Establecimiento 2024'!$A$1:$E$183,3,FALSE),0) -> 105434-Posta de Salud Rural San Marcos (Combarbalá) | H162: 2024-11-15T14:37:24 | I162: 4 | Q162: 1 | T162: 3
A163: 10 | B163: 5 | C163: 2024 | D163: 105434 | E163: 15900010 | F163: =IFERROR(VLOOKUP(Tabla_SERIED_01_8[[#This Row],[IdEstablecimiento]],'[2]Establecimiento 2024'!$A$1:$E$183,5,FALSE),0) -> 04302-Combarbalá | G163: =IFERROR(VLOOKUP(Tabla_SERIED_01_8[[#This Row],[IdEstablecimiento]],'[2]Establecimiento 2024'!$A$1:$E$183,3,FALSE),0) -> 105434-Posta de Salud Rural San Marcos (Combarbalá) | H163: 2024-11-15T14:37:24 | I163: 2.7 | K163: 2.7
A164: 10 | B164: 5 | C164: 2024 | D164: 105434 | E164: 15080016 | F164: =IFERROR(VLOOKUP(Tabla_SERIED_01_8[[#This Row],[IdEstablecimiento]],'[2]Establecimiento 2024'!$A$1:$E$183,5,FALSE),0) -> 04302-Combarbalá | G164: =IFERROR(VLOOKUP(Tabla_SERIED_01_8[[#This Row],[IdEstablecimiento]],'[2]Establecimiento 2024'!$A$1:$E$183,3,FALSE),0) -> 105434-Posta de Salud Rural San Marcos (Combarbalá) | H164: 2024-11-15T14:37:24 | I164: 2 | O164: 2
A165: 10 | B165: 5 | C165: 2024 | D165: 105434 | E165: 15010500 | F165: =IFERROR(VLOOKUP(Tabla_SERIED_01_8[[#This Row],[IdEstablecimiento]],'[2]Establecimiento 2024'!$A$1:$E$183,5,FALSE),0) -> 04302-Combarbalá | G165: =IFERROR(VLOOKUP(Tabla_SERIED_01_8[[#This Row],[IdEstablecimiento]],'[2]Establecimiento 2024'!$A$1:$E$183,3,FALSE),0) -> 105434-Posta de Salud Rural San Marcos (Combarbalá) | H165: 2024-11-15T14:37:24 | I165: 2 | O165: 2
A166: 10 | B166: 5 | C166: 2024 | D166: 105441 | E166: 16090300 | F166: =IFERROR(VLOOKUP(Tabla_SERIED_01_8[[#This Row],[IdEstablecimiento]],'[2]Establecimiento 2024'!$A$1:$E$183,5,FALSE),0) -> 04302-Combarbalá | G166: =IFERROR(VLOOKUP(Tabla_SERIED_01_8[[#This Row],[IdEstablecimiento]],'[2]Establecimiento 2024'!$A$1:$E$183,3,FALSE),0) -> 105441-Posta de Salud Rural Manquehua | H166: 2024-11-15T14:37:38 | I166: 103 | J166: 103
A167: 10 | B167: 5 | C167: 2024 | D167: 105441 | E167: 16200210 | F167: =IFERROR(VLOOKUP(Tabla_SERIED_01_8[[#This Row],[IdEstablecimiento]],'[2]Establecimiento 2024'!$A$1:$E$183,5,FALSE),0) -> 04302-Combarbalá | G167: =IFERROR(VLOOKUP(Tabla_SERIED_01_8[[#This Row],[IdEstablecimiento]],'[2]Establecimiento 2024'!$A$1:$E$183,3,FALSE),0) -> 105441-Posta de Salud Rural Manquehua | H167: 2024-11-15T14:37:38 | I167: 14 | J167: 14
A168: 10 | B168: 5 | C168: 2024 | D168: 105441 | E168: 16090500 | F168: =IFERROR(VLOOKUP(Tabla_SERIED_01_8[[#This Row],[IdEstablecimiento]],'[2]Establecimiento 2024'!$A$1:$E$183,5,FALSE),0) -> 04302-Combarbalá | G168: =IFERROR(VLOOKUP(Tabla_SERIED_01_8[[#This Row],[IdEstablecimiento]],'[2]Establecimiento 2024'!$A$1:$E$183,3,FALSE),0) -> 105441-Posta de Salud Rural Manquehua | H168: 2024-11-15T14:37:38 | I168: 1 | J168: 1
A169: 10 | B169: 5 | C169: 2024 | D169: 105441 | E169: 16100300 | F169: =IFERROR(VLOOKUP(Tabla_SERIED_01_8[[#This Row],[IdEstablecimiento]],'[2]Establecimiento 2024'!$A$1:$E$183,5,FALSE),0) -> 04302-Combarbalá | G169: =IFERROR(VLOOKUP(Tabla_SERIED_01_8[[#This Row],[IdEstablecimiento]],'[2]Establecimiento 2024'!$A$1:$E$183,3,FALSE),0) -> 105441-Posta de Salud Rural Manquehua | H169: 2024-11-15T14:37:38 | I169: 103 | J169: 43 | K169: 60
A170: 10 | B170: 5 | C170: 2024 | D170: 105441 | E170: 16200220 | F170: =IFERROR(VLOOKUP(Tabla_SERIED_01_8[[#This Row],[IdEstablecimiento]],'[2]Establecimiento 2024'!$A$1:$E$183,5,FALSE),0) -> 04302-Combarbalá | G170: =IFERROR(VLOOKUP(Tabla_SERIED_01_8[[#This Row],[IdEstablecimiento]],'[2]Establecimiento 2024'!$A$1:$E$183,3,FALSE),0) -> 105441-Posta de Salud Rural Manquehua | H170: 2024-11-15T14:37:38 | I170: 14 | J170: 4 | K170: 10
A171: 10 | B171: 5 | C171: 2024 | D171: 105441 | E171: 16100600 | F171: =IFERROR(VLOOKUP(Tabla_SERIED_01_8[[#This Row],[IdEstablecimiento]],'[2]Establecimiento 2024'!$A$1:$E$183,5,FALSE),0) -> 04302-Combarbalá | G171: =IFERROR(VLOOKUP(Tabla_SERIED_01_8[[#This Row],[IdEstablecimiento]],'[2]Establecimiento 2024'!$A$1:$E$183,3,FALSE),0) -> 105441-Posta de Salud Rural Manquehua | H171: 2024-11-15T14:37:38 | I171: 1 | K171: 1
A172: 10 | B172: 5 | C172: 2024 | D172: 105441 | E172: 16200100 | F172: =IFERROR(VLOOKUP(Tabla_SERIED_01_8[[#This Row],[IdEstablecimiento]],'[2]Establecimiento 2024'!$A$1:$E$183,5,FALSE),0) -> 04302-Combarbalá | G172: =IFERROR(VLOOKUP(Tabla_SERIED_01_8[[#This Row],[IdEstablecimiento]],'[2]Establecimiento 2024'!$A$1:$E$183,3,FALSE),0) -> 105441-Posta de Salud Rural Manquehua | H172: 2024-11-15T14:37:38 | I172: 9 | J172: 5 | K172: 4
A173: 10 | B173: 5 | C173: 2024 | D173: 105442 | E173: 15080015 | F173: =IFERROR(VLOOKUP(Tabla_SERIED_01_8[[#This Row],[IdEstablecimiento]],'[2]Establecimiento 2024'!$A$1:$E$183,5,FALSE),0) -> 04304-Punitaqui | G173: =IFERROR(VLOOKUP(Tabla_SERIED_01_8[[#This Row],[IdEstablecimiento]],'[2]Establecimiento 2024'!$A$1:$E$183,3,FALSE),0) -> 105442-Posta de Salud Rural San Pedro de Quiles | H173: 2024-11-15T14:37:41 | I173: 10 | O173: 2 | P173: 8
A174: 5 | B174: 5 | C174: 2024 | D174: 105453 | E174: 15080014 | F174: =IFERROR(VLOOKUP(Tabla_SERIED_01_8[[#This Row],[IdEstablecimiento]],'[2]Establecimiento 2024'!$A$1:$E$183,5,FALSE),0) -> 04204-Salamanca | G174: =IFERROR(VLOOKUP(Tabla_SERIED_01_8[[#This Row],[IdEstablecimiento]],'[2]Establecimiento 2024'!$A$1:$E$183,3,FALSE),0) -> 105453-Posta de Salud Rural Tranquilla | H174: 2024-06-14T14:45:31 | I174: 16 | M174: 10 | N174: 6
A175: 5 | B175: 5 | C175: 2024 | D175: 105453 | E175: 15080015 | F175: =IFERROR(VLOOKUP(Tabla_SERIED_01_8[[#This Row],[IdEstablecimiento]],'[2]Establecimiento 2024'!$A$1:$E$183,5,FALSE),0) -> 04204-Salamanca | G175: =IFERROR(VLOOKUP(Tabla_SERIED_01_8[[#This Row],[IdEstablecimiento]],'[2]Establecimiento 2024'!$A$1:$E$183,3,FALSE),0) -> 105453-Posta de Salud Rural Tranquilla | H175: 2024-06-14T14:45:31 | I175: 60 | O175: 30 | P175: 30
A176: 5 | B176: 5 | C176: 2024 | D176: 105453 | E176: 15080008 | F176: =IFERROR(VLOOKUP(Tabla_SERIED_01_8[[#This Row],[IdEstablecimiento]],'[2]Establecimiento 2024'!$A$1:$E$183,5,FALSE),0) -> 04204-Salamanca | G176: =IFERROR(VLOOKUP(Tabla_SERIED_01_8[[#This Row],[IdEstablecimiento]],'[2]Establecimiento 2024'!$A$1:$E$183,3,FALSE),0) -> 105453-Posta de Salud Rural Tranquilla | H176: 2024-06-14T14:45:31 | I176: 11 | Q176: 6 | T176: 2 | U176: 3
A177: 5 | B177: 5 | C177: 2024 | D177: 105453 | E177: 15900010 | F177: =IFERROR(VLOOKUP(Tabla_SERIED_01_8[[#This Row],[IdEstablecimiento]],'[2]Establecimiento 2024'!$A$1:$E$183,5,FALSE),0) -> 04204-Salamanca | G177: =IFERROR(VLOOKUP(Tabla_SERIED_01_8[[#This Row],[IdEstablecimiento]],'[2]Establecimiento 2024'!$A$1:$E$183,3,FALSE),0) -> 105453-Posta de Salud Rural Tranquilla | H177: 2024-06-14T14:45:31 | I177: 2.7 | J177: 2.7
A178: 5 | B178: 5 | C178: 2024 | D178: 105453 | E178: 15050100 | F178: =IFERROR(VLOOKUP(Tabla_SERIED_01_8[[#This Row],[IdEstablecimiento]],'[2]Establecimiento 2024'!$A$1:$E$183,5,FALSE),0) -> 04204-Salamanca | G178: =IFERROR(VLOOKUP(Tabla_SERIED_01_8[[#This Row],[IdEstablecimiento]],'[2]Establecimiento 2024'!$A$1:$E$183,3,FALSE),0) -> 105453-Posta de Salud Rural Tranquilla | H178: 2024-06-14T14:45:31 | I178: 50 | J178: 23 | K178: 27 | L178: 1 | O178: 5 | P178: 3 | Q178: 15 | R178: 15 | S178: 6 | V178: 2 | W178: 3
A179: 5 | B179: 5 | C179: 2024 | D179: 105453 | E179: 15080019 | F179: =IFERROR(VLOOKUP(Tabla_SERIED_01_8[[#This Row],[IdEstablecimiento]],'[2]Establecimiento 2024'!$A$1:$E$183,5,FALSE),0) -> 04204-Salamanca | G179: =IFERROR(VLOOKUP(Tabla_SERIED_01_8[[#This Row],[IdEstablecimiento]],'[2]Establecimiento 2024'!$A$1:$E$183,3,FALSE),0) -> 105453-Posta de Salud Rural Tranquilla | H179: 2024-06-14T14:45:31 | I179: 2 | O179: 2
A180: 5 | B180: 5 | C180: 2024 | D180: 105453 | E180: 16090300 | F180: =IFERROR(VLOOKUP(Tabla_SERIED_01_8[[#This Row],[IdEstablecimiento]],'[2]Establecimiento 2024'!$A$1:$E$183,5,FALSE),0) -> 04204-Salamanca | G180: =IFERROR(VLOOKUP(Tabla_SERIED_01_8[[#This Row],[IdEstablecimiento]],'[2]Establecimiento 2024'!$A$1:$E$183,3,FALSE),0) -> 105453-Posta de Salud Rural Tranquilla | H180: 2024-06-14T14:45:31 | I180: 93 | J180: 93
A181: 5 | B181: 5 | C181: 2024 | D181: 105453 | E181: 16200210 | F181: =IFERROR(VLOOKUP(Tabla_SERIED_01_8[[#This Row],[IdEstablecimiento]],'[2]Establecimiento 2024'!$A$1:$E$183,5,FALSE),0) -> 04204-Salamanca | G181: =IFERROR(VLOOKUP(Tabla_SERIED_01_8[[#This Row],[IdEstablecimiento]],'[2]Establecimiento 2024'!$A$1:$E$183,3,FALSE),0) -> 105453-Posta de Salud Rural Tranquilla | H181: 2024-06-14T14:45:31 | I181: 5 | J181: 5
A182: 5 | B182: 5 | C182: 2024 | D182: 105453 | E182: 16100300 | F182: =IFERROR(VLOOKUP(Tabla_SERIED_01_8[[#This Row],[IdEstablecimiento]],'[2]Establecimiento 2024'!$A$1:$E$183,5,FALSE),0) -> 04204-Salamanca | G182: =IFERROR(VLOOKUP(Tabla_SERIED_01_8[[#This Row],[IdEstablecimiento]],'[2]Establecimiento 2024'!$A$1:$E$183,3,FALSE),0) -> 105453-Posta de Salud Rural Tranquilla | H182: 2024-06-14T14:45:31 | I182: 93 | J182: 45 | K182: 48
A183: 5 | B183: 5 | C183: 2024 | D183: 105453 | E183: 16200220 | F183: =IFERROR(VLOOKUP(Tabla_SERIED_01_8[[#This Row],[IdEstablecimiento]],'[2]Establecimiento 2024'!$A$1:$E$183,5,FALSE),0) -> 04204-Salamanca | G183: =IFERROR(VLOOKUP(Tabla_SERIED_01_8[[#This Row],[IdEstablecimiento]],'[2]Establecimiento 2024'!$A$1:$E$183,3,FALSE),0) -> 105453-Posta de Salud Rural Tranquilla | H183: 2024-06-14T14:45:31 | I183: 5 | J183: 1 | K183: 4
A184: 5 | B184: 5 | C184: 2024 | D184: 105454 | E184: 15080015 | F184: =IFERROR(VLOOKUP(Tabla_SERIED_01_8[[#This Row],[IdEstablecimiento]],'[2]Establecimiento 2024'!$A$1:$E$183,5,FALSE),0) -> 04204-Salamanca | G184: =IFERROR(VLOOKUP(Tabla_SERIED_01_8[[#This Row],[IdEstablecimiento]],'[2]Establecimiento 2024'!$A$1:$E$183,3,FALSE),0) -> 105454-Posta de Salud Rural Cunlagua | H184: 2024-06-14T14:45:32 | I184: 4 | O184: 2 | P184: 2
A185: 5 | B185: 5 | C185: 2024 | D185: 105315 | E185: 16100300 | F185: =IFERROR(VLOOKUP(Tabla_SERIED_01_8[[#This Row],[IdEstablecimiento]],'[2]Establecimiento 2024'!$A$1:$E$183,5,FALSE),0) -> 04301-Ovalle | G185: =IFERROR(VLOOKUP(Tabla_SERIED_01_8[[#This Row],[IdEstablecimiento]],'[2]Establecimiento 2024'!$A$1:$E$183,3,FALSE),0) -> 105315-Centro de Salud Familiar Cerrillos de Tamaya | H185: 2024-06-14T14:44:41 | I185: 310 | J185: 152 | K185: 158
A186: 5 | B186: 5 | C186: 2024 | D186: 105315 | E186: 16200220 | F186: =IFERROR(VLOOKUP(Tabla_SERIED_01_8[[#This Row],[IdEstablecimiento]],'[2]Establecimiento 2024'!$A$1:$E$183,5,FALSE),0) -> 04301-Ovalle | G186: =IFERROR(VLOOKUP(Tabla_SERIED_01_8[[#This Row],[IdEstablecimiento]],'[2]Establecimiento 2024'!$A$1:$E$183,3,FALSE),0) -> 105315-Centro de Salud Familiar Cerrillos de Tamaya | H186: 2024-06-14T14:44:41 | I186: 10 | J186: 4 | K186: 6
A187: 5 | B187: 5 | C187: 2024 | D187: 105317 | E187: 15060100 | F187: =IFERROR(VLOOKUP(Tabla_SERIED_01_8[[#This Row],[IdEstablecimiento]],'[2]Establecimiento 2024'!$A$1:$E$183,5,FALSE),0) -> 04301-Ovalle | G187: =IFERROR(VLOOKUP(Tabla_SERIED_01_8[[#This Row],[IdEstablecimiento]],'[2]Establecimiento 2024'!$A$1:$E$183,3,FALSE),0) -> 105317-Centro de Salud Familiar Jorge Jordán Domic | H187: 2024-06-14T14:44:42 | I187: 5 | J187: 3 | K187: 2 | N187: 1 | O187: 2 | Q187: 2
A188: 5 | B188: 5 | C188: 2024 | D188: 105317 | E188: 15080014 | F188: =IFERROR(VLOOKUP(Tabla_SERIED_01_8[[#This Row],[IdEstablecimiento]],'[2]Establecimiento 2024'!$A$1:$E$183,5,FALSE),0) -> 04301-Ovalle | G188: =IFERROR(VLOOKUP(Tabla_SERIED_01_8[[#This Row],[IdEstablecimiento]],'[2]Establecimiento 2024'!$A$1:$E$183,3,FALSE),0) -> 105317-Centro de Salud Familiar Jorge Jordán Domic | H188: 2024-06-14T14:44:42 | I188: 316 | M188: 156 | N188: 160
A189: 5 | B189: 5 | C189: 2024 | D189: 105317 | E189: 15080015 | F189: =IFERROR(VLOOKUP(Tabla_SERIED_01_8[[#This Row],[IdEstablecimiento]],'[2]Establecimiento 2024'!$A$1:$E$183,5,FALSE),0) -> 04301-Ovalle | G189: =IFERROR(VLOOKUP(Tabla_SERIED_01_8[[#This Row],[IdEstablecimiento]],'[2]Establecimiento 2024'!$A$1:$E$183,3,FALSE),0) -> 105317-Centro de Salud Familiar Jorge Jordán Domic | H189: 2024-06-14T14:44:42 | I189: 582 | O189: 328 | P189: 243 | Q189: 9 | S189: 2
A190: 5 | B190: 5 | C190: 2024 | D190: 105317 | E190: 15080008 | F190: =IFERROR(VLOOKUP(Tabla_SERIED_01_8[[#This Row],[IdEstablecimiento]],'[2]Establecimiento 2024'!$A$1:$E$183,5,FALSE),0) -> 04301-Ovalle | G190: =IFERROR(VLOOKUP(Tabla_SERIED_01_8[[#This Row],[IdEstablecimiento]],'[2]Establecimiento 2024'!$A$1:$E$183,3,FALSE),0) -> 105317-Centro de Salud Familiar Jorge Jordán Domic | H190: 2024-06-14T14:44:42 | I190: 182 | Q190: 67 | S190: 78 | T190: 9 | U190: 28
A191: 6 | B191: 5 | C191: 2024 | D191: 200366 | E191: 15900020 | F191: =IFERROR(VLOOKUP(Tabla_SERIED_01_8[[#This Row],[IdEstablecimiento]],'[2]Establecimiento 2024'!$A$1:$E$183,5,FALSE),0) -> 04201-Illapel | G191: =IFERROR(VLOOKUP(Tabla_SERIED_01_8[[#This Row],[IdEstablecimiento]],'[2]Establecimiento 2024'!$A$1:$E$183,3,FALSE),0) -> 200366-Centro de Salud Familiar Urbano de Illapel | H191: 2024-07-17T19:14:05 | I191: 12.6 | K191: 3.6 | L191: 9
A192: 6 | B192: 5 | C192: 2024 | D192: 200366 | E192: 15900030 | F192: =IFERROR(VLOOKUP(Tabla_SERIED_01_8[[#This Row],[IdEstablecimiento]],'[2]Establecimiento 2024'!$A$1:$E$183,5,FALSE),0) -> 04201-Illapel | G192: =IFERROR(VLOOKUP(Tabla_SERIED_01_8[[#This Row],[IdEstablecimiento]],'[2]Establecimiento 2024'!$A$1:$E$183,3,FALSE),0) -> 200366-Centro de Salud Familiar Urbano de Illapel | H192: 2024-07-17T19:14:05 | I192: 3.6 | N192: 3.6
A193: 6 | B193: 5 | C193: 2024 | D193: 200366 | E193: 15050100 | F193: =IFERROR(VLOOKUP(Tabla_SERIED_01_8[[#This Row],[IdEstablecimiento]],'[2]Establecimiento 2024'!$A$1:$E$183,5,FALSE),0) -> 04201-Illapel | G193: =IFERROR(VLOOKUP(Tabla_SERIED_01_8[[#This Row],[IdEstablecimiento]],'[2]Establecimiento 2024'!$A$1:$E$183,3,FALSE),0) -> 200366-Centro de Salud Familiar Urbano de Illapel | H193: 2024-07-17T19:14:05 | I193: 336 | J193: 136 | K193: 200 | L193: 7 | M193: 5 | N193: 25 | O193: 32 | P193: 41 | Q193: 83 | R193: 83 | S193: 42 | U193: 8 | V193: 3 | W193: 7
A194: 11 | B194: 5 | C194: 2024 | D194: 105301 | E194: 15030100 | F194: =IFERROR(VLOOKUP(Tabla_SERIED_01_8[[#This Row],[IdEstablecimiento]],'[2]Establecimiento 2024'!$A$1:$E$183,5,FALSE),0) -> 04101-La Serena | G194: =IFERROR(VLOOKUP(Tabla_SERIED_01_8[[#This Row],[IdEstablecimiento]],'[2]Establecimiento 2024'!$A$1:$E$183,3,FALSE),0) -> 105301-Centro de Salud Familiar Las Compañías | H194: 2024-12-18T15:35:21 | I194: 19.2 | K194: 9.6 | L194: 9.6
A195: 11 | B195: 5 | C195: 2024 | D195: 105301 | E195: 15900030 | F195: =IFERROR(VLOOKUP(Tabla_SERIED_01_8[[#This Row],[IdEstablecimiento]],'[2]Establecimiento 2024'!$A$1:$E$183,5,FALSE),0) -> 04101-La Serena | G195: =IFERROR(VLOOKUP(Tabla_SERIED_01_8[[#This Row],[IdEstablecimiento]],'[2]Establecimiento 2024'!$A$1:$E$183,3,FALSE),0) -> 105301-Centro de Salud Familiar Las Compañías | H195: 2024-12-18T15:35:21 | I195: 20.8 | K195: 8.4 | L195: 8.4 | M195: 4
A196: 11 | B196: 5 | C196: 2024 | D196: 105301 | E196: 15900040 | F196: =IFERROR(VLOOKUP(Tabla_SERIED_01_8[[#This Row],[IdEstablecimiento]],'[2]Establecimiento 2024'!$A$1:$E$183,5,FALSE),0) -> 04101-La Serena | G196: =IFERROR(VLOOKUP(Tabla_SERIED_01_8[[#This Row],[IdEstablecimiento]],'[2]Establecimiento 2024'!$A$1:$E$183,3,FALSE),0) -> 105301-Centro de Salud Familiar Las Compañías | H196: 2024-12-18T15:35:21 | I196: 8.8 | K196: 4.8 | L196: 4
A197: 11 | B197: 5 | C197: 2024 | D197: 105301 | E197: 15050100 | F197: =IFERROR(VLOOKUP(Tabla_SERIED_01_8[[#This Row],[IdEstablecimiento]],'[2]Establecimiento 2024'!$A$1:$E$183,5,FALSE),0) -> 04101-La Serena | G197: =IFERROR(VLOOKUP(Tabla_SERIED_01_8[[#This Row],[IdEstablecimiento]],'[2]Establecimiento 2024'!$A$1:$E$183,3,FALSE),0) -> 105301-Centro de Salud Familiar Las Compañías | H197: 2024-12-18T15:35:21 | I197: 393 | J197: 151 | K197: 242 | L197: 11 | M197: 15 | N197: 30 | O197: 45 | P197: 45 | Q197: 110 | R197: 66 | S197: 31 | U197: 12 | V197: 8 | W197: 20
A198: 11 | B198: 5 | C198: 2024 | D198: 105301 | E198: 15050200 | F198: =IFERROR(VLOOKUP(Tabla_SERIED_01_8[[#This Row],[IdEstablecimiento]],'[2]Establecimiento 2024'!$A$1:$E$183,5,FALSE),0) -> 04101-La Serena | G198: =IFERROR(VLOOKUP(Tabla_SERIED_01_8[[#This Row],[IdEstablecimiento]],'[2]Establecimiento 2024'!$A$1:$E$183,3,FALSE),0) -> 105301-Centro de Salud Familiar Las Compañías | H198: 2024-12-18T15:35:21 | I198: 3 | J198: 3 | P198: 1 | R198: 2
A199: 11 | B199: 5 | C199: 2024 | D199: 105301 | E199: 15050500 | F199: =IFERROR(VLOOKUP(Tabla_SERIED_01_8[[#This Row],[IdEstablecimiento]],'[2]Establecimiento 2024'!$A$1:$E$183,5,FALSE),0) -> 04101-La Serena | G199: =IFERROR(VLOOKUP(Tabla_SERIED_01_8[[#This Row],[IdEstablecimiento]],'[2]Establecimiento 2024'!$A$1:$E$183,3,FALSE),0) -> 105301-Centro de Salud Familiar Las Compañías | H199: 2024-12-18T15:35:21 | I199: 5 | J199: 2 | K199: 3 | M199: 2 | N199: 3
A200: 11 | B200: 5 | C200: 2024 | D200: 105301 | E200: 15900050 | F200: =IFERROR(VLOOKUP(Tabla_SERIED_01_8[[#This Row],[IdEstablecimiento]],'[2]Establecimiento 2024'!$A$1:$E$183,5,FALSE),0) -> 04101-La Serena | G200: =IFERROR(VLOOKUP(Tabla_SERIED_01_8[[#This Row],[IdEstablecimiento]],'[2]Establecimiento 2024'!$A$1:$E$183,3,FALSE),0) -> 105301-Centro de Salud Familiar Las Compañías | H200: 2024-12-18T15:35:21 | I200: 7 | J200: 4 | K200: 3 | M200: 3 | N200: 3 | O200: 1
... 4300 more rows
